Workbook

Sheet CM2 Filles
A1: DOSSARD | B1: NOM | C1: PRENOM | D1: SEXE | E1: DATENAISS | F1: NOMETABL | G1: CLASSE | H1: CATEGORIE | I1: TEMPS | J1: PLACE
A2: 70907 | B2: IMARA | C2: Elsa | D2: F | E2: 39401 | F2: Mr MARLAT | G2: CRESSONNIE | H2: POUSSIN | I2: 00:09:30 | J2: 1
A3: 70814 | B3: MOUTAMA | C3: Rihanna | D3: F | E3: 39386 | F3: Mme DESIRE | G3: CRESSONNIE | H3: POUSSIN | I3: 00:09:32 | J3: 2
A4: 70405 | B4: CALCINE | C4: Lucie | D4: F | E4: 39293 | F4: Mme GERBANDIER | G4: LECONTE DE | H4: POUSSIN | I4: 00:10:53 | J4: 3
A5: 70903 | B5: CHELMI | C5: Nelly | D5: F | E5: 39397 | F5: Mr MARLAT | G5: CRESSONNIE | H5: POUSSIN | I5: 00:11:19 | J5: 4
A6: 70420 | B6: SEUSSE | C6: Lauraine | D6: F | E6: 39308 | F6: Mme GERBANDIER | G6: LECONTE DE | H6: POUSSIN | I6: 00:11:27 | J6: 5
A7: 70812 | B7: MASSON | C7: Iliana | D7: F | E7: 39384 | F7: Mme DESIRE | G7: CRESSONNIE | H7: POUSSIN | I7: 00:12:18 | J7: 6
A8: 70821 | B8: SIVAPALAN | C8: Tharshini | D8: F | E8: 39393 | F8: Mme DESIRE | G8: CRESSONNIE | H8: POUSSIN | I8: 00:12:23 | J8: 7
A9: 70815 | B9: PALMISEN | C9: Kecyl | D9: F | E9: 39387 | F9: Mme DESIRE | G9: CRESSONNIE | H9: POUSSIN | I9: 00:12:25 | J9: 8
A10: 70507 | B10: CORBIERE | C10: Héloise | D10: F | E10: 39318 | F10: Mme BILLON | G10: LECONTE DE | H10: POUSSIN | I10: 00:12:26 | J10: 9
A11: 70810 | B11: LEVENEUR | C11: Delphine | D11: F | E11: 39382 | F11: Mme DESIRE | G11: CRESSONNIE | H11: POUSSIN | I11: 00:12:30 | J11: 10
A12: 70809 | B12: ELISABETH | C12: Méline | D12: F | E12: 39381 | F12: Mme DESIRE | G12: CRESSONNIE | H12: POUSSIN | I12: 00:12:31 | J12: 11
A13: 70811 | B13: MANGATA | C13: Mandavi | D13: F | E13: 39383 | F13: Mme DESIRE | G13: CRESSONNIE | H13: POUSSIN | I13: 00:12:34 | J13: 12
A14: 70902 | B14: CHABOU | C14: Maïcha | D14: F | E14: 39396 | F14: Mr MARLAT | G14: CRESSONNIE | H14: POUSSIN | I14: 00:12:40 | J14: 13
A15: 70801 | B15: ALECTON | C15: Sylvia | D15: F | E15: 39373 | F15: Mme DESIRE | G15: CRESSONNIE | H15: POUSSIN | I15: 00:13:11 | J15: 14
A16: 70315 | B16: MASSELLAMANY-SORNOM | C16: Maëlys | D16: F | E16: 39279 | F16: Mme RINGASSAMY | G16: LECONTE DE | H16: POUSSIN | I16: 00:13:26 | J16: 15
A17: 70302 | B17: DAMOUR | C17: Cassie | D17: F | E17: 39266 | F17: Mme RINGASSAMY | G17: LECONTE DE | H17: POUSSIN | I17: 00:13:31 | J17: 16
A18: 70422 | B18: VAÏTHILINGOM | C18: Enola | D18: F | E18: 39310 | F18: Mme GERBANDIER | G18: LECONTE DE | H18: POUSSIN | I18: 00:13:39 | J18: 17
A19: 70908 | B19: LAUP | C19: Orlane | D19: F | E19: 39402 | F19: Mr MARLAT | G19: CRESSONNIE | H19: POUSSIN | I19: 00:13:48 | J19: 18
A20: 70913 | B20: MITON | C20: Loona | D20: F | E20: 39407 | F20: Mr MARLAT | G20: CRESSONNIE | H20: POUSSIN | I20: 00:13:54 | J20: 19
A21: 70804 | B21: BOYER | C21: Amélie | D21: F | E21: 39376 | F21: Mme DESIRE | G21: CRESSONNIE | H21: POUSSIN | I21: 00:13:55 | J21: 20
A22: 70818 | B22: ROBERT | C22: Anaelle | D22: F | E22: 39390 | F22: Mme DESIRE | G22: CRESSONNIE | H22: POUSSIN | I22: 00:14:19 | J22: 21
A23: 70922 | B23: SINGH-BANOUBIE | C23: Chamya | D23: F | E23: 39416 | F23: Mr MARLAT | G23: CRESSONNIE | H23: POUSSIN | I23: 00:14:21 | J23: 22
A24: 70307 | B24: GANNE | C24: Emma | D24: F | E24: 39271 | F24: Mme RINGASSAMY | G24: LECONTE DE | H24: POUSSIN | I24: 00:14:58 | J24: 23
A25: 70916 | B25: RAMASSAMY | C25: Kenza | D25: F | E25: 39410 | F25: Mr MARLAT | G25: CRESSONNIE | H25: POUSSIN | I25: 00:14:59 | J25: 24
A26: 70414 | B26: PERMALNAICK | C26: Erine | D26: F | E26: 39302 | F26: Mme GERBANDIER | G26: LECONTE DE | H26: POUSSIN | I26: 00:15:01 | J26: 25
A27: 70523 | B27: TURPIN | C27: Anjali | D27: F | E27: 39334 | F27: Mme BILLON | G27: LECONTE DE | H27: POUSSIN | I27: 00:15:03 | J27: 26
A28: 70323 | B28: SOUMARA | C28: Béréline | D28: F | E28: 39287 | F28: Mme RINGASSAMY | G28: LECONTE DE | H28: POUSSIN | I28: 00:15:07 | J28: 27
A29: 70911 | B29: MARIAYE | C29: Annaëlle | D29: F | E29: 39405 | F29: Mr MARLAT | G29: CRESSONNIE | H29: POUSSIN | I29: 00:15:09 | J29: 28
A30: 70419 | B30: SERY | C30: Emilie-Shana | D30: F | E30: 39307 | F30: Mme GERBANDIER | G30: LECONTE DE | H30: POUSSIN | I30: 00:15:11 | J30: 29
A31: 70502 | B31: BARANTE | C31: Karysha | D31: F | E31: 39313 | F31: Mme BILLON | G31: LECONTE DE | H31: POUSSIN | I31: 00:15:31 | J31: 30
A32: 70504 | B32: BOYER | C32: Ephigénie | D32: F | E32: 39315 | F32: Mme BILLON | G32: LECONTE DE | H32: POUSSIN | I32: 00:16:01 | J32: 31
A33: 70506 | B33: CERVEAU | C33: Loana | D33: F | E33: 39317 | F33: Mme BILLON | G33: LECONTE DE | H33: POUSSIN | I33: 00:16:18 | J33: 32
A34: 70515 | B34: PAYET | C34: Eléna | D34: F | E34: 39326 | F34: Mme BILLON | G34: LECONTE DE | H34: POUSSIN | I34: 00:16:19 | J34: 33
A35: 70407 | B35: FENELON | C35: Joséphine | D35: F | E35: 39295 | F35: Mme GERBANDIER | G35: LECONTE DE | H35: POUSSIN | I35: 00:16:22 | J35: 34
A36: 70510 | B36: GUICHARD | C36: Léa | D36: F | E36: 39321 | F36: Mme BILLON | G36: LECONTE DE | H36: POUSSIN | I36: 00:16:24 | J36: 35
A37: 70509 | B37: GOSSARD | C37: Léana | D37: F | E37: 39320 | F37: Mme BILLON | G37: LECONTE DE | H37: POUSSIN | I37: 00:16:32 | J37: 36
A38: 70305 | B38: FONTAINE | C38: Cecile | D38: F | E38: 39269 | F38: Mme RINGASSAMY | G38: LECONTE DE | H38: POUSSIN | I38: 00:16:41 | J38: 37
A39: 70806 | B39: CLAIN | C39: Rachel | D39: F | E39: 39378 | F39: Mme DESIRE | G39: CRESSONNIE | H39: POUSSIN | I39: 00:16:47 | J39: 38
A40: 70904 | B40: CLAIN | C40: Indrany | D40: F | E40: 39398 | F40: Mr MARLAT | G40: CRESSONNIE | H40: POUSSIN | I40: 00:16:55 | J40: 39
A41: 70316 | B41: MAZELLIER | C41: Alyhanna | D41: F | E41: 39280 | F41: Mme RINGASSAMY | G41: LECONTE DE | H41: POUSSIN | I41: 00:17:03 | J41: 40
A42: 70516 | B42: PERMALNAICK | C42: Justine | D42: F | E42: 39327 | F42: Mme BILLON | G42: LECONTE DE | H42: POUSSIN | I42: 00:17:04 | J42: 41
A43: 70410 | B43: LESTE | C43: Karell | D43: F | E43: 39298 | F43: Mme GERBANDIER | G43: LECONTE DE | H43: POUSSIN | I43: 00:17:06 | J43: 42
A44: 70512 | B44: LEPERLIER | C44: Chalina | D44: F | E44: 39323 | F44: Mme BILLON | G44: LECONTE DE | H44: POUSSIN | I44: 00:17:29 | J44: 43
A45: 70303 | B45: DANY | C45: Yasmina | D45: F | E45: 39267 | F45: Mme RINGASSAMY | G45: LECONTE DE | H45: POUSSIN | I45: 00:17:34 | J45: 44
A46: 70508 | B46: DANY | C46: Rachel | D46: F | E46: 39319 | F46: Mme BILLON | G46: LECONTE DE | H46: POUSSIN | I46: 00:17:35 | J46: 45
A47: 70412 | B47: OVA | C47: Anna | D47: F | E47: 39300 | F47: Mme GERBANDIER | G47: LECONTE DE | H47: POUSSIN | I47: 00:17:37 | J47: 46
A48: 70310 | B48: GUICHARD | C48: Lalita | D48: F | E48: 39274 | F48: Mme RINGASSAMY | G48: LECONTE DE | H48: POUSSIN | I48: 00:17:40 | J48: 47
A49: 70416 | B49: QUINOIS MAVANDE | C49: Dhalianna | D49: F | E49: 39304 | F49: Mme GERBANDIER | G49: LECONTE DE | H49: POUSSIN | I49: 00:17:42 | J49: 48
A50: 70309 | B50: GUICHARD | C50: Kassandra | D50: F | E50: 39273 | F50: Mme RINGASSAMY | G50: LECONTE DE | H50: POUSSIN | I50: 00:17:44 | J50: 49
A51: 70308 | B51: GOSSARD | C51: Lalita | D51: F | E51: 39272 | F51: Mme RINGASSAMY | G51: LECONTE DE | H51: POUSSIN | I51: 00:17:58 | J51: 50
A52: 70415 | B52: PONIN | C52: Marie Mathilde | D52: F | E52: 39303 | F52: Mme GERBANDIER | G52: LECONTE DE | H52: POUSSIN | I52: 00:18:16 | J52: 51
J53: 52
J54: 53
J55: 54
J56: 55
J57: 56
J58: 57
J59: 58
J60: 59
J61: 60
J62: 61
J63: 62
J64: 63
J65: 64
J66: 65
J67: 66
J68: 67
J69: 68
J70: 69
J71: 70
J72: 71
J73: 72
J74: 73
J75: 74
J76: 75
J77: 76
J78: 77
J79: 78
J80: 79
J81: 80
J82: 81
J83: 82
J84: 83
J85: 84
J86: 85
J87: 86
J88: 87
J89: 88
J90: 89
J91: 90
J92: 91
J93: 92
J94: 93
J95: 94
J96: 95
J97: 96
J98: 97
J99: 98
J100: 99
J101: 100
J102: 101
J103: 102
J104: 103
J105: 104
J106: 105
J107: 106
J108: 107
J109: 108
J110: 109
J111: 110
J112: 111
J113: 112
J114: 113
J115: 114
J116: 115
J117: 116
J118: 117
J119: 118
J120: 119

Sheet CM2 Garçons
A1: DOSSARD | B1: NOM | C1: PRENOM | D1: SEXE | E1: DATENAISS | F1: NOMETABL | G1: CLASSE | H1: CATEGORIE | I1: TEMPS | J1: PLACE
A2: 70319 | B2: RAMSAMY | C2: Jérémy | D2: M | E2: 2007-07-20 | F2: Mme RINGASSAMY | G2: LECONTE DE | H2: POUSSIN | I2: 00:08:52 | J2: 1
A3: 70318 | B3: MOEDINE SAEB | C3: Waren | D3: M | E3: 2007-07-19 | F3: Mme RINGASSAMY | G3: LECONTE DE | H3: POUSSIN | I3: 00:09:41 | J3: 2
A4: 70519 | B4: ROBERT | C4: Théodore | D4: M | E4: 2007-09-05 | F4: Mme BILLON | G4: LECONTE DE | H4: POUSSIN | I4: 00:10:09 | J4: 3
A5: 70805 | B5: CEBARRE-GRONDIN | C5: Jérémy | D5: M | E5: 2007-10-22 | F5: Mme DESIRE | G5: CRESSONNIE | H5: POUSSIN | I5: 00:10:45 | J5: 4
A6: 70914 | B6: NATIVEL | C6: Ryan | D6: M | E6: 2007-11-22 | F6: Mr MARLAT | G6: CRESSONNIE | H6: POUSSIN | I6: 00:11:09 | J6: 5
A7: 70311 | B7: LAMARDELLE-POUNOUSSAMY | C7: Valentin | D7: M | E7: 2007-07-12 | F7: Mme RINGASSAMY | G7: LECONTE DE | H7: POUSSIN | I7: 00:11:16 | J7: 6
A8: 70513 | B8: OLLIVIER | C8: Raphaêl | D8: M | E8: 2007-08-30 | F8: Mme BILLON | G8: LECONTE DE | H8: POUSSIN | I8: 00:11:18 | J8: 7
A9: 70413 | B9: PAYET-CIMADOMO | C9: Yvan | D9: M | E9: 2007-08-07 | F9: Mme GERBANDIER | G9: LECONTE DE | H9: POUSSIN | I9: 00:11:56 | J9: 8
A10: 70808 | B10: DIJOUX | C10: Kenzo | D10: M | E10: 2007-10-25 | F10: Mme DESIRE | G10: CRESSONNIE | H10: POUSSIN | I10: 00:11:57 | J10: 9
A11: 70910 | B11: MARDAMA | C11: Evan | D11: M | E11: 2007-11-18 | F11: Mr MARLAT | G11: CRESSONNIE | H11: POUSSIN | I11: 00:11:59 | J11: 10
A12: 70522 | B12: SYLVAIN | C12: Lucas | D12: M | E12: 2007-09-08 | F12: Mme BILLON | G12: LECONTE DE | H12: POUSSIN | I12: 00:12:02 | J12: 11
A13: 70915 | B13: NAZE | C13: Djurian | D13: M | E13: 2007-11-23 | F13: Mr MARLAT | G13: CRESSONNIE | H13: POUSSIN | I13: 00:12:04 | J13: 12
A14: 70905 | B14: COUESNON | C14: Louka | D14: M | E14: 2007-11-13 | F14: Mr MARLAT | G14: CRESSONNIE | H14: POUSSIN | I14: 00:12:14 | J14: 13
A15: 70320 | B15: RINGASSAMY-RAMALINGOM | C15: Noah | D15: M | E15: 2007-07-21 | F15: Mme RINGASSAMY | G15: LECONTE DE | H15: POUSSIN | I15: 00:13:06 | J15: 14
A16: 70321 | B16: SAUROY | C16: Kian | D16: M | E16: 2007-07-22 | F16: Mme RINGASSAMY | G16: LECONTE DE | H16: POUSSIN | I16: 00:14:25 | J16: 15
A17: 70322 | B17: SOUCRAMANIEN | C17: Sandjivi | D17: M | E17: 2007-07-23 | F17: Mme RINGASSAMY | G17: LECONTE DE | H17: POUSSIN | I17: 00:14:36 | J17: 16
A18: 70822 | B18: YOUSSOUF | C18: Djael | D18: M | E18: 2007-11-08 | F18: Mme DESIRE | G18: CRESSONNIE | H18: POUSSIN | I18: 00:14:47 | J18: 17
A19: 70918 | B19: ROBERT | C19: Vincent | D19: M | E19: 2007-11-26 | F19: Mr MARLAT | G19: CRESSONNIE | H19: POUSSIN | I19: 00:14:49 | J19: 18
A20: 70501 | B20: ANDUMA | C20: Ravalson | D20: M | E20: 2007-08-18 | F20: Mme BILLON | G20: LECONTE DE | H20: POUSSIN | I20: 00:14:56 | J20: 19
A21: 70917 | B21: RANDRETSIMIVONY | C21: Greg | D21: M | E21: 2007-11-25 | F21: Mr MARLAT | G21: CRESSONNIE | H21: POUSSIN | I21: 00:14:58 | J21: 20
A22: 70906 | B22: GRONDIN | C22: Grégory | D22: M | E22: 2007-11-14 | F22: Mr MARLAT | G22: CRESSONNIE | H22: POUSSIN | I22: 00:15:02 | J22: 21
A23: 70802 | B23: BEGUE | C23: Rowan | D23: M | E23: 2007-10-19 | F23: Mme DESIRE | G23: CRESSONNIE | H23: POUSSIN | I23: 00:15:06 | J23: 22
A24: 70503 | B24: BILY | C24: Stomy | D24: M | E24: 2007-08-20 | F24: Mme BILLON | G24: LECONTE DE | H24: POUSSIN | I24: 00:15:20 | J24: 23
A25: 70817 | B25: RAMOUCHE | C25: Kenjy | D25: M | E25: 2007-11-03 | F25: Mme DESIRE | G25: CRESSONNIE | H25: POUSSIN | I25: 00:15:35 | J25: 24
A26: 70816 | B26: PICQUOT | C26: Mathéo | D26: M | E26: 2007-11-02 | F26: Mme DESIRE | G26: CRESSONNIE | H26: POUSSIN | I26: 00:15:40 | J26: 25
A27: 70807 | B27: DAMOUR | C27: Maxime | D27: M | E27: 2007-10-24 | F27: Mme DESIRE | G27: CRESSONNIE | H27: POUSSIN | I27: 00:15:41 | J27: 26
A28: 70921 | B28: SINAN | C28: Kendrique | D28: M | E28: 2007-11-29 | F28: Mr MARLAT | G28: CRESSONNIE | H28: POUSSIN | I28: 00:15:44 | J28: 27
A29: 70421 | B29: SINAMALE | C29: Rohan | D29: M | E29: 2007-08-15 | F29: Mme GERBANDIER | G29: LECONTE DE | H29: POUSSIN | I29: 00:15:49 | J29: 28
A30: 70317 | B30: MERLO | C30: Medhy | D30: M | E30: 2007-07-18 | F30: Mme RINGASSAMY | G30: LECONTE DE | H30: POUSSIN | I30: 00:15:59 | J30: 29
A31: 70304 | B31: DUBARD | C31: Judicaël | D31: M | E31: 2007-07-05 | F31: Mme RINGASSAMY | G31: LECONTE DE | H31: POUSSIN | I31: 00:16:04 | J31: 30
A32: 70409 | B32: GUSTAVIN | C32: Samuel | D32: M | E32: 2007-08-03 | F32: Mme GERBANDIER | G32: LECONTE DE | H32: POUSSIN | I32: 00:16:05 | J32: 31
A33: 70520 | B33: SETAPI | C33: Melvyn | D33: M | E33: 2007-09-06 | F33: Mme BILLON | G33: LECONTE DE | H33: POUSSIN | I33: 00:16:07 | J33: 32
A34: 70803 | B34: BERNON | C34: Théo | D34: M | E34: 2007-10-20 | F34: Mme DESIRE | G34: CRESSONNIE | H34: POUSSIN | I34: 00:16:08 | J34: 33
A35: 70314 | B35: MARIE | C35: Steve | D35: M | E35: 2007-07-15 | F35: Mme RINGASSAMY | G35: LECONTE DE | H35: POUSSIN | I35: 00:16:20 | J35: 34
A36: 70517 | B36: PIGNOLET | C36: Alexandre | D36: M | E36: 2007-09-03 | F36: Mme BILLON | G36: LECONTE DE | H36: POUSSIN | I36: 00:16:22 | J36: 35
A37: 70402 | B37: BENARD | C37: OWEN | D37: M | E37: 2007-07-27 | F37: Mme GERBANDIER | G37: LECONTE DE | H37: POUSSIN | I37: 00:16:25 | J37: 36
A38: 70417 | B38: REAME | C38: Ulrick | D38: M | E38: 2007-08-11 | F38: Mme GERBANDIER | G38: LECONTE DE | H38: POUSSIN | I38: 00:16:26 | J38: 37
A39: 70521 | B39: SOUPRAMANIEN | C39: Alexandre | D39: M | E39: 2007-09-07 | F39: Mme BILLON | G39: LECONTE DE | H39: POUSSIN | I39: 00:16:28 | J39: 38
A40: 70401 | B40: AHAMADI | C40: Bel Hadj | D40: M | E40: 2007-07-26 | F40: Mme GERBANDIER | G40: LECONTE DE | H40: POUSSIN | I40: 00:16:44 | J40: 39
A41: 70514 | B41: PAQUIRY | C41: Marino | D41: M | E41: 2007-08-31 | F41: Mme BILLON | G41: LECONTE DE | H41: POUSSIN | I41: 00:16:59 | J41: 40
A42: 70505 | B42: CELERINE | C42: Dylan | D42: M | E42: 2007-08-22 | F42: Mme BILLON | G42: LECONTE DE | H42: POUSSIN | I42: 00:17:00 | J42: 41
A43: 70819 | B43: SARANE | C43: Lucas | D43: M | E43: 2007-11-05 | F43: Mme DESIRE | G43: CRESSONNIE | H43: POUSSIN | I43: 00:17:01 | J43: 42
A44: 70408 | B44: GRONDIN | C44: Jean-Daniel | D44: M | E44: 2007-08-02 | F44: Mme GERBANDIER | G44: LECONTE DE | H44: POUSSIN | I44: 00:17:07 | J44: 43
A45: 70411 | B45: NIVAROSA | C45: Mathéo | D45: M | E45: 2007-08-05 | F45: Mme GERBANDIER | G45: LECONTE DE | H45: POUSSIN | I45: 00:17:30 | J45: 44
A46: 70518 | B46: ROBERT | C46: Koumarèn | D46: M | E46: 2007-09-04 | F46: Mme BILLON | G46: LECONTE DE | H46: POUSSIN | I46: 00:17:33 | J46: 45
A47: 70912 | B47: MERA | C47: Péroumal | D47: M | E47: 2007-11-20 | F47: Mr MARLAT | G47: CRESSONNIE | H47: POUSSIN | I47: 00:17:40 | J47: 46
A48: 70820 | B48: SAVRIAMA | C48: Théo | D48: M | E48: 2007-11-06 | F48: Mme DESIRE | G48: CRESSONNIE | H48: POUSSIN | I48: 00:17:44 | J48: 47
A49: 70423 | B49: VIRAPIN-KEMMA | C49: Yann | D49: M | E49: 2007-08-17 | F49: Mme GERBANDIER | G49: LECONTE DE | H49: POUSSIN | I49: 00:17:45 | J49: 48
A50: 70301 | B50: CATAYE | C50: Erowan | D50: M | E50: 2007-07-02 | F50: Mme RINGASSAMY | G50: LECONTE DE | H50: POUSSIN | I50: 00:17:55 | J50: 49
A51: 70403 | B51: BINIQUE | C51: Sergio | D51: M | E51: 2007-07-28 | F51: Mme GERBANDIER | G51: LECONTE DE | H51: POUSSIN | I51: 00:17:59 | J51: 50
A52: 70418 | B52: ROBERT | C52: Ryan | D52: M | E52: 2007-08-12 | F52: Mme GERBANDIER | G52: LECONTE DE | H52: POUSSIN | I52: 00:18:04 | J52: 51
A53: 70909 | B53: LESTE | C53: Lucas | D53: M | E53: 2007-11-17 | F53: Mr MARLAT | G53: CRESSONNIE | H53: POUSSIN | I53: 00:20:18 | J53: 52
J54: 53
J55: 54
J56: 55
J57: 56
J58: 57
J59: 58
J60: 59
J61: 60
J62: 61
J63: 62
J64: 63
J65: 64
J66: 65
J67: 66
J68: 67
J69: 68
J70: 69
J71: 70
J72: 71
J73: 72
J74: 73
J75: 74
J76: 75
J77: 76
J78: 77
J79: 78
J80: 79
J81: 80
J82: 81
J83: 82
J84: 83
J85: 84
J86: 85
J87: 86
J88: 87
J89: 88
J90: 89
J91: 90
J92: 91
J93: 92
J94: 93
J95: 94
J96: 95
J97: 96
J98: 97
J99: 98
J100: 99
J101: 100
J102: 101
J103: 102
J104: 103
J105: 104
J106: 105
J107: 106
J108: 107
J109: 108
J110: 109
J111: 110
J112: 111
J113: 112
J114: 113

Sheet CM2 - 6è Filles
A1: DOSSARD | B1: NOM | C1: PRENOM | D1: SEXE | E1: DATENAISS | F1: NOMETABL | G1: CLASSE | H1: CATEGORIE | I1: TEMPS | J1: PLACE
A2: 61152 | B2: AUGUSTE | C2: Myriam | D2: F | E2: 2006-12-23 | G2: 611 | H2: BENJAMINE | I2: 00:08:23 | J2: 1
A3: 61258 | B3: THELAÏRE | C3: Lucie | D3: F | E3: 2006-01-27 | G3: 612 | H3: BENJAMINE | I3: 00:09:05 | J3: 2
A4: 61061 | B4: MHADJI | C4: Tamouni | D4: F | E4: 2006-02-27 | G4: 610 | H4: BENJAMINE | I4: 00:09:15 | J4: 3
A5: 70907 | B5: IMARA | C5: Elsa | D5: F | E5: 2007-11-15 | F5: Mr MARLAT | G5: CRESSONNIE | H5: POUSSIN | I5: 00:09:30 | J5: 4
A6: 70814 | B6: MOUTAMA | C6: Rihanna | D6: F | E6: 2007-10-31 | F6: Mme DESIRE | G6: CRESSONNIE | H6: POUSSIN | I6: 00:09:32 | J6: 5
A7: 60953 | B7: FAUSTIN | C7: Anna | D7: F | E7: 2006-12-30 | G7: 609 | H7: BENJAMINE | I7: 00:09:37 | J7: 6
A8: 60354 | B8: CLAIN | C8: Clèmence | D8: F | E8: 2006-09-01 | G8: 603 | H8: BENJAMINE | I8: 00:09:41 | J8: 7
A9: 60956 | B9: GRONDIN | C9: Mathilde | D9: F | E9: 2006-12-10 | G9: 609 | H9: BENJAMINE | I9: 00:09:42 | J9: 8
A10: 60853 | B10: BARET | C10: Sydney | D10: F | E10: 2005-06-27 | G10: 608 | H10: BENJAMINE | I10: 00:09:48 | J10: 9
A11: 61053 | B11: BOISEDU | C11: Anna | D11: F | E11: 2006-10-22 | G11: 610 | H11: BENJAMINE | I11: 00:10:08 | J11: 10
A12: 60960 | B12: MAILLOT | C12: Emeline | D12: F | E12: 2006-09-16 | G12: 609 | H12: BENJAMINE | I12: 00:10:31 | J12: 11
A13: 60762 | B13: IMARA | C13: Maëlle | D13: F | E13: 2005-03-18 | G13: 607 | H13: BENJAMINE | I13: 00:10:34 | J13: 12
A14: 61064 | B14: SOUNDRON | C14: Elisa | D14: F | E14: 2006-07-07 | G14: 610 | H14: BENJAMINE | I14: 00:10:37 | J14: 13
A15: 60862 | B15: SAMINADIN | C15: Adeline | D15: F | E15: 2006-01-26 | G15: 608 | H15: BENJAMINE | I15: 00:10:44 | J15: 14
A16: 60552 | B16: BORIGNIOL | C16: Emmanuelle | D16: F | E16: 2005-02-02 | G16: 605 | H16: BENJAMINE | I16: 00:10:45 | J16: 15
A17: 60553 | B17: FATIMA | C17: Moinamaoulida | D17: F | E17: 2006-03-31 | G17: 605 | H17: BENJAMINE | I17: 00:10:47 | J17: 16
A18: 70405 | B18: CALCINE | C18: Lucie | D18: F | E18: 2007-07-30 | F18: Mme GERBANDIER | G18: LECONTE DE | H18: POUSSIN | I18: 00:10:53 | J18: 17
A19: 60455 | B19: JANAC | C19: Lohana | D19: F | E19: 2006-05-28 | G19: 604 | H19: BENJAMINE | I19: 00:10:56 | J19: 18
A20: 60358 | B20: HOAREAU | C20: Floralie | D20: F | E20: 2006-04-04 | G20: 603 | H20: BENJAMINE | I20: 00:11:01 | J20: 19
A21: 70903 | B21: CHELMI | C21: Nelly | D21: F | E21: 2007-11-11 | F21: Mr MARLAT | G21: CRESSONNIE | H21: POUSSIN | I21: 00:11:19 | J21: 20
A22: 60651 | B22: ABDOU | C22: Sandiya | D22: F | E22: 2006-12-04 | G22: 606 | H22: BENJAMINE | I22: 00:11:22 | J22: 21
A23: 70420 | B23: SEUSSE | C23: Lauraine | D23: F | E23: 2007-08-14 | F23: Mme GERBANDIER | G23: LECONTE DE | H23: POUSSIN | I23: 00:11:27 | J23: 22
A24: 61058 | B24: LACHARMANTE | C24: Laéna | D24: F | E24: 2006-09-10 | G24: 610 | H24: BENJAMINE | I24: 00:11:28 | J24: 23
A25: 60755 | B25: CARCANY | C25: Laurine | D25: F | E25: 2006-10-16 | G25: 607 | H25: BENJAMINE | I25: 00:11:30 | J25: 24
A26: 60860 | B26: PLANTE | C26: Brianna | D26: F | E26: 2006-02-21 | G26: 608 | H26: BENJAMINE | I26: 00:11:48 | J26: 25
A27: 61259 | B27: TRAJAN | C27: Naisha | D27: F | E27: 2006-10-23 | G27: 612 | H27: BENJAMINE | I27: 00:11:50 | J27: 26
A28: 61052 | B28: BLARD | C28: Maëva | D28: F | E28: 2006-06-13 | G28: 610 | H28: BENJAMINE | I28: 00:11:51 | J28: 27
A29: 60660 | B29: SOLONIRINA | C29: Hovafiadanana | D29: F | E29: 2006-07-24 | G29: 606 | H29: BENJAMINE | I29: 00:11:53 | J29: 28
A30: 60857 | B30: LEMARCHAND | C30: Amandine | D30: F | E30: 2006-10-01 | G30: 608 | H30: BENJAMINE | I30: 00:11:55 | J30: 29
A31: 60659 | B31: PARIS | C31: Romane | D31: F | E31: 2006-11-11 | G31: 606 | H31: BENJAMINE | I31: 00:11:57 | J31: 30
A32: 60955 | B32: FETISOI-MIHA | C32: Jade | D32: F | E32: 2006-09-17 | G32: 609 | H32: BENJAMINE | I32: 00:12:01 | J32: 31
A33: 61060 | B33: LESTE | C33: Marie-Anandi | D33: F | E33: 2006-12-26 | G33: 610 | H33: BENJAMINE | I33: 00:12:04 | J33: 32
A34: 60556 | B34: HERMETTE | C34: Maïlyse | D34: F | E34: 2006-05-14 | G34: 605 | H34: BENJAMINE | I34: 00:12:14 | J34: 33
A35: 60252 | B35: ANGO | C35: Estelle | D35: F | E35: 2005-01-09 | G35: 602 | H35: BENJAMINE | I35: 00:12:16 | J35: 34
A36: 70812 | B36: MASSON | C36: Iliana | D36: F | E36: 2007-10-29 | F36: Mme DESIRE | G36: CRESSONNIE | H36: POUSSIN | I36: 00:12:18 | J36: 35
A37: 70821 | B37: SIVAPALAN | C37: Tharshini | D37: F | E37: 2007-11-07 | F37: Mme DESIRE | G37: CRESSONNIE | H37: POUSSIN | I37: 00:12:23 | J37: 36
A38: 70815 | B38: PALMISEN | C38: Kecyl | D38: F | E38: 2007-11-01 | F38: Mme DESIRE | G38: CRESSONNIE | H38: POUSSIN | I38: 00:12:25 | J38: 37
A39: 70507 | B39: CORBIERE | C39: Héloise | D39: F | E39: 2007-08-24 | F39: Mme BILLON | G39: LECONTE DE | H39: POUSSIN | I39: 00:12:26 | J39: 38
A40: 70810 | B40: LEVENEUR | C40: Delphine | D40: F | E40: 2007-10-27 | F40: Mme DESIRE | G40: CRESSONNIE | H40: POUSSIN | I40: 00:12:30 | J40: 39
A41: 70809 | B41: ELISABETH | C41: Méline | D41: F | E41: 2007-10-26 | F41: Mme DESIRE | G41: CRESSONNIE | H41: POUSSIN | I41: 00:12:31 | J41: 40
A42: 70811 | B42: MANGATA | C42: Mandavi | D42: F | E42: 2007-10-28 | F42: Mme DESIRE | G42: CRESSONNIE | H42: POUSSIN | I42: 00:12:34 | J42: 41
A43: 70902 | B43: CHABOU | C43: Maïcha | D43: F | E43: 2007-11-10 | F43: Mr MARLAT | G43: CRESSONNIE | H43: POUSSIN | I43: 00:12:40 | J43: 42
A44: 60454 | B44: GUSTAVIN | C44: Ciara | D44: F | E44: 2006-03-22 | G44: 604 | H44: BENJAMINE | I44: 00:12:41 | J44: 43
A45: 60459 | B45: MOUNIAPN | C45: Varincka | D45: F | E45: 2006-03-10 | G45: 604 | H45: BENJAMINE | I45: 00:13:09 | J45: 44
A46: 70801 | B46: ALECTON | C46: Sylvia | D46: F | E46: 2007-10-18 | F46: Mme DESIRE | G46: CRESSONNIE | H46: POUSSIN | I46: 00:13:11 | J46: 45
A47: 60554 | B47: FINAU | C47: Morgane | D47: F | E47: 2006-05-30 | G47: 605 | H47: BENJAMINE | I47: 00:13:12 | J47: 46
A48: 60756 | B48: CHAHE DAOUDOU | C48: Elysiane | D48: F | E48: 2006-08-30 | G48: 607 | H48: BENJAMINE | I48: 00:13:14 | J48: 47
A49: 60361 | B49: SCHERILLA | C49: Séréna | D49: F | E49: 2006-06-13 | G49: 603 | H49: BENJAMINE | I49: 00:13:16 | J49: 48
A50: 60961 | B50: TANCOURT | C50: Flora | D50: F | E50: 2006-08-16 | G50: 609 | H50: BENJAMINE | I50: 00:13:18 | J50: 49
A51: 60461 | B51: TANDRAYEN | C51: Alice | D51: F | E51: 2006-01-27 | G51: 604 | H51: BENJAMINE | I51: 00:13:20 | J51: 50
A52: 60551 | B52: ASSANI | C52: Nadia | D52: F | E52: 2005-10-14 | G52: 605 | H52: BENJAMINE | I52: 00:13:22 | J52: 51
A53: 60251 | B53: AHMED ANLI | C53: Radadi | D53: F | E53: 2006-04-22 | G53: 602 | H53: BENJAMINE | I53: 00:13:24 | J53: 52
A54: 70315 | B54: MASSELLAMANY-SORNOM | C54: Maëlys | D54: F | E54: 2007-07-16 | F54: Mme RINGASSAMY | G54: LECONTE DE | H54: POUSSIN | I54: 00:13:26 | J54: 53
A55: 70302 | B55: DAMOUR | C55: Cassie | D55: F | E55: 2007-07-03 | F55: Mme RINGASSAMY | G55: LECONTE DE | H55: POUSSIN | I55: 00:13:31 | J55: 54
A56: 60656 | B56: LATCHIMY | C56: Daphnée | D56: F | E56: 2006-04-04 | G56: 606 | H56: BENJAMINE | I56: 00:13:32 | J56: 55
A57: 60360 | B57: PICARD | C57: Nathanaëlle | D57: F | E57: 2007-01-03 | G57: 603 | H57: BENJAMINE | I57: 00:13:34 | J57: 56
A58: 60653 | B58: BOYER | C58: Juliana | D58: F | E58: 2005-08-03 | G58: 606 | H58: BENJAMINE | I58: 00:13:35 | J58: 57
A59: 60751 | B59: AHAMADI | C59: Nazra Zaanti | D59: F | E59: 2005-07-24 | G59: 607 | H59: BENJAMINE | I59: 00:13:37 | J59: 58
A60: 70422 | B60: VAÏTHILINGOM | C60: Enola | D60: F | E60: 2007-08-16 | F60: Mme GERBANDIER | G60: LECONTE DE | H60: POUSSIN | I60: 00:13:39 | J60: 59
A61: 60852 | B61: BARET | C61: Kérane | D61: F | E61: 2006-10-25 | G61: 608 | H61: BENJAMINE | I61: 00:13:41 | J61: 60
A62: 61151 | B62: ANDRIAMAHERY-RANJALAHY | C62: Keiko | D62: F | E62: 2006-01-19 | G62: 611 | H62: BENJAMINE | I62: 00:13:43 | J62: 61
A63: 60353 | B63: CATTY MAROUNDIN | C63: Marie Lauryne | D63: F | E63: 2006-05-15 | G63: 603 | H63: BENJAMINE | I63: 00:13:44 | J63: 62
A64: 61054 | B64: DIDAT | C64: Emma | D64: F | E64: 2006-09-15 | G64: 610 | H64: BENJAMINE | I64: 00:13:47 | J64: 63
A65: 70908 | B65: LAUP | C65: Orlane | D65: F | E65: 2007-11-16 | F65: Mr MARLAT | G65: CRESSONNIE | H65: POUSSIN | I65: 00:13:48 | J65: 64
A66: 70913 | B66: MITON | C66: Loona | D66: F | E66: 2007-11-21 | F66: Mr MARLAT | G66: CRESSONNIE | H66: POUSSIN | I66: 00:13:54 | J66: 65
A67: 70804 | B67: BOYER | C67: Amélie | D67: F | E67: 2007-10-21 | F67: Mme DESIRE | G67: CRESSONNIE | H67: POUSSIN | I67: 00:13:55 | J67: 66
A68: 60458 | B68: LAURENT | C68: Léane | D68: F | E68: 2006-11-20 | G68: 604 | H68: BENJAMINE | I68: 00:13:57 | J68: 67
A69: 60555 | B69: GAILLAC | C69: Stessy | D69: F | E69: 2006-03-05 | G69: 605 | H69: BENJAMINE | I69: 00:14:12 | J69: 68
A70: 60957 | B70: GUICHARD | C70: Salomé | D70: F | E70: 2006-02-23 | G70: 609 | H70: BENJAMINE | I70: 00:14:13 | J70: 69
A71: 60856 | B71: JHINGUT | C71: Ashnnavee Mari | D71: F | E71: 2006-01-02 | G71: 608 | H71: BENJAMINE | I71: 00:14:15 | J71: 70
A72: 60658 | B72: MUGUEL MARINA | C72: Juliana | D72: F | E72: 2005-03-16 | G72: 606 | H72: BENJAMINE | I72: 00:14:18 | J72: 71
A73: 70818 | B73: ROBERT | C73: Anaelle | D73: F | E73: 2007-11-04 | F73: Mme DESIRE | G73: CRESSONNIE | H73: POUSSIN | I73: 00:14:19 | J73: 72
A74: 70922 | B74: SINGH-BANOUBIE | C74: Chamya | D74: F | E74: 2007-11-30 | F74: Mr MARLAT | G74: CRESSONNIE | H74: POUSSIN | I74: 00:14:21 | J74: 73
A75: 61153 | B75: BALAGOUROU | C75: Cynthia Marie | D75: F | E75: 2006-06-07 | G75: 611 | H75: BENJAMINE | I75: 00:14:23 | J75: 74
A76: 61062 | B76: MIRANVILLE | C76: Ericka | D76: F | E76: 2005-09-10 | G76: 610 | H76: BENJAMINE | I76: 00:14:25 | J76: 75
A77: 61051 | B77: ADAVAMIS | C77: Jade | D77: F | E77: 2006-11-17 | G77: 610 | H77: BENJAMINE | I77: 00:14:27 | J77: 76
A78: 61154 | B78: FENART | C78: Amelie | D78: F | E78: 2006-08-21 | G78: 611 | H78: BENJAMINE | I78: 00:14:29 | J78: 77
A79: 61155 | B79: GUEDAMA | C79: Solène | D79: F | E79: 2006-05-03 | G79: 611 | H79: BENJAMINE | I79: 00:14:33 | J79: 78
A80: 60451 | B80: CHUPPA | C80: Eva | D80: F | E80: 2006-09-01 | G80: 604 | H80: BENJAMINE | I80: 00:14:39 | J80: 79
A81: 70307 | B81: GANNE | C81: Emma | D81: F | E81: 2007-07-08 | F81: Mme RINGASSAMY | G81: LECONTE DE | H81: POUSSIN | I81: 00:14:58 | J81: 80
A82: 70916 | B82: RAMASSAMY | C82: Kenza | D82: F | E82: 2007-11-24 | F82: Mr MARLAT | G82: CRESSONNIE | H82: POUSSIN | I82: 00:14:59 | J82: 81
A83: 70414 | B83: PERMALNAICK | C83: Erine | D83: F | E83: 2007-08-08 | F83: Mme GERBANDIER | G83: LECONTE DE | H83: POUSSIN | I83: 00:15:01 | J83: 82
A84: 70523 | B84: TURPIN | C84: Anjali | D84: F | E84: 2007-09-09 | F84: Mme BILLON | G84: LECONTE DE | H84: POUSSIN | I84: 00:15:03 | J84: 83
A85: 61065 | B85: TANDRAYEN | C85: Léna | D85: F | E85: 2006-02-14 | G85: 610 | H85: BENJAMINE | I85: 00:15:05 | J85: 84
A86: 70323 | B86: SOUMARA | C86: Béréline | D86: F | E86: 2007-07-24 | F86: Mme RINGASSAMY | G86: LECONTE DE | H86: POUSSIN | I86: 00:15:07 | J86: 85
A87: 70911 | B87: MARIAYE | C87: Annaëlle | D87: F | E87: 2007-11-19 | F87: Mr MARLAT | G87: CRESSONNIE | H87: POUSSIN | I87: 00:15:09 | J87: 86
A88: 70419 | B88: SERY | C88: Emilie-Shana | D88: F | E88: 2007-08-13 | F88: Mme GERBANDIER | G88: LECONTE DE | H88: POUSSIN | I88: 00:15:11 | J88: 87
A89: 60155 | B89: OILI | C89: Hidaya | D89: F | E89: 2005-05-09 | G89: 601 | H89: BENJAMINE | I89: 00:15:19 | J89: 88
A90: 60153 | B90: HOARAU | C90: Paloma | D90: F | E90: 2005-03-23 | G90: 601 | H90: BENJAMINE | I90: 00:15:20 | J90: 89
A91: 60851 | B91: ALTON | C91: Léa | D91: F | E91: 2006-11-13 | G91: 608 | H91: BENJAMINE | I91: 00:15:22 | J91: 90
A92: 60560 | B92: MOUNIA | C92: Chloé | D92: F | E92: 2006-02-19 | G92: 605 | H92: BENJAMINE | I92: 00:15:23 | J92: 91
A93: 60253 | B93: ELISABETH | C93: Asmina | D93: F | E93: 2005-06-07 | G93: 602 | H93: BENJAMINE | I93: 00:15:28 | J93: 92
A94: 60254 | B94: RANGANAYAGUY | C94: Eloise | D94: F | E94: 2006-11-04 | G94: 602 | H94: BENJAMINE | I94: 00:15:28 | J94: 93
A95: 70502 | B95: BARANTE | C95: Karysha | D95: F | E95: 2007-08-19 | F95: Mme BILLON | G95: LECONTE DE | H95: POUSSIN | I95: 00:15:31 | J95: 94
A96: 60559 | B96: LEPERLIER | C96: Colleen | D96: F | E96: 2006-01-14 | G96: 605 | H96: BENJAMINE | I96: 00:15:33 | J96: 95
A97: 60562 | B97: SEVOU | C97: Liliana | D97: F | E97: 2006-11-23 | G97: 605 | H97: BENJAMINE | I97: 00:15:37 | J97: 96
A98: 60951 | B98: BLAGNAC | C98: Chloé | D98: F | E98: 2006-09-29 | G98: 609 | H98: BENJAMINE | I98: 00:15:55 | J98: 97
A99: 61158 | B99: JOUAN | C99: Marie Séverine | D99: F | E99: 2006-05-30 | G99: 611 | H99: BENJAMINE | I99: 00:15:56 | J99: 98
A100: 70504 | B100: BOYER | C100: Ephigénie | D100: F | E100: 2007-08-21 | F100: Mme BILLON | G100: LECONTE DE | H100: POUSSIN | I100: 00:16:01 | J100: 99
A101: 61159 | B101: MARIE | C101: Stella | D101: F | E101: 2006-06-29 | G101: 611 | H101: BENJAMINE | I101: 00:16:03 | J101: 100
A102: 61160 | B102: PAPOU | C102: Aurélia | D102: F | E102: 2006-04-11 | G102: 611 | H102: BENJAMINE | I102: 00:16:06 | J102: 101
A103: 60761 | B103: GOINDEN | C103: Sandy | D103: F | E103: 2005-03-17 | G103: 607 | H103: BENJAMINE | I103: 00:16:07 | J103: 102
A104: 61252 | B104: IGOUF | C104: Néoline | D104: F | E104: 2006-11-26 | G104: 612 | H104: BENJAMINE | I104: 00:16:09 | J104: 103
A105: 10603 | B105: PAYET | C105: Audrey | G105: 603 | H105: PARRAINAGE | I105: 00:16:14 | J105: 104
A106: 60652 | B106: ALIZE | C106: Shamira | D106: F | E106: 2006-06-22 | G106: 606 | H106: BENJAMINE | I106: 00:16:16 | J106: 105
A107: 70506 | B107: CERVEAU | C107: Loana | D107: F | E107: 2007-08-23 | F107: Mme BILLON | G107: LECONTE DE | H107: POUSSIN | I107: 00:16:18 | J107: 106
A108: 70515 | B108: PAYET | C108: Eléna | D108: F | E108: 2007-09-01 | F108: Mme BILLON | G108: LECONTE DE | H108: POUSSIN | I108: 00:16:19 | J108: 107
A109: 60359 | B109: MAILLOT | C109: Marie Fany | D109: F | E109: 2006-01-07 | G109: 603 | H109: BENJAMINE | I109: 00:16:21 | J109: 108
A110: 70407 | B110: FENELON | C110: Joséphine | D110: F | E110: 2007-08-01 | F110: Mme GERBANDIER | G110: LECONTE DE | H110: POUSSIN | I110: 00:16:22 | J110: 109
A111: 70510 | B111: GUICHARD | C111: Léa | D111: F | E111: 2007-08-27 | F111: Mme BILLON | G111: LECONTE DE | H111: POUSSIN | I111: 00:16:24 | J111: 110
A112: 60959 | B112: LAFABLE | C112: Marie-Camilla | D112: F | E112: 2005-04-26 | G112: 609 | H112: BENJAMINE | I112: 00:16:31 | J112: 111
A113: 70509 | B113: GOSSARD | C113: Léana | D113: F | E113: 2007-08-26 | F113: Mme BILLON | G113: LECONTE DE | H113: POUSSIN | I113: 00:16:32 | J113: 112
A114: 60855 | B114: GOSSARD | C114: Briancy | D114: F | E114: 2006-07-06 | G114: 608 | H114: BENJAMINE | I114: 00:16:34 | J114: 113
A115: 60861 | B115: PONIN | C115: Marie | D115: F | E115: 2006-02-24 | G115: 608 | H115: BENJAMINE | I115: 00:16:37 | J115: 114
A116: 61056 | B116: HOARAU | C116: Shannah | D116: F | E116: 2006-12-22 | G116: 610 | H116: BENJAMINE | I116: 00:16:39 | J116: 115
A117: 70305 | B117: FONTAINE | C117: Cecile | D117: F | E117: 2007-07-06 | F117: Mme RINGASSAMY | G117: LECONTE DE | H117: POUSSIN | I117: 00:16:41 | J117: 116
A118: 60661 | B118: TURPIN | C118: Ludivine | D118: F | E118: 2006-07-27 | G118: 606 | H118: BENJAMINE | I118: 00:16:44 | J118: 117
A119: 60356 | B119: DIJOUX | C119: Amelie | D119: F | E119: 2006-04-29 | G119: 603 | H119: BENJAMINE | I119: 00:16:45 | J119: 118
A120: 70806 | B120: CLAIN | C120: Rachel | D120: F | E120: 2007-10-23 | F120: Mme DESIRE | G120: CRESSONNIE | H120: POUSSIN | I120: 00:16:47 | J120: 119
A121: 60763 | B121: RAYMOND | C121: Léane | D121: F | E121: 2006-12-05 | G121: 607 | H121: BENJAMINE | I121: 00:16:49 | J121: 120
A122: 60859 | B122: NADAL | C122: Laurine | D122: F | E122: 2005-01-17 | G122: 608 | H122: BENJAMINE | I122: 00:16:50 | J122: 121
A123: 61063 | B123: RAYMOND | C123: Mélyna | D123: F | E123: 2006-10-15 | G123: 610 | H123: BENJAMINE | I123: 00:16:52 | J123: 122
A124: 61057 | B124: ISSILAME | C124: Emeline | D124: F | E124: 2006-02-16 | G124: 610 | H124: BENJAMINE | I124: 00:16:53 | J124: 123
A125: 70904 | B125: CLAIN | C125: Indrany | D125: F | E125: 2007-11-12 | F125: Mr MARLAT | G125: CRESSONNIE | H125: POUSSIN | I125: 00:16:55 | J125: 124
A126: 61156 | B126: IMARY-ISSARAMBE | C126: Emilie | D126: F | E126: 2006-01-21 | G126: 611 | H126: BENJAMINE | I126: 00:16:58 | J126: 125
A127: 60758 | B127: DIJOUX | C127: Emma | D127: F | E127: 2006-03-08 | G127: 607 | H127: BENJAMINE | I127: 00:16:59 | J127: 126
A128: 70316 | B128: MAZELLIER | C128: Alyhanna | D128: F | E128: 2007-07-17 | F128: Mme RINGASSAMY | G128: LECONTE DE | H128: POUSSIN | I128: 00:17:03 | J128: 127
A129: 70516 | B129: PERMALNAICK | C129: Justine | D129: F | E129: 2007-09-02 | F129: Mme BILLON | G129: LECONTE DE | H129: POUSSIN | I129: 00:17:04 | J129: 128
A130: 70410 | B130: LESTE | C130: Karell | D130: F | E130: 2007-08-04 | F130: Mme GERBANDIER | G130: LECONTE DE | H130: POUSSIN | I130: 00:17:06 | J130: 129
A131: 61253 | B131: LOISON | C131: Elsa | D131: F | E131: 2006-03-31 | G131: 612 | H131: BENJAMINE | I131: 00:17:08 | J131: 130
A132: 61257 | B132: PAKIRCHY | C132: Marissa | D132: F | E132: 2005-05-20 | G132: 612 | H132: BENJAMINE | I132: 00:17:09 | J132: 131
A133: 60753 | B133: BEGUE | C133: Séréna | D133: F | E133: 2005-05-20 | G133: 607 | H133: BENJAMINE | I133: 00:17:10 | J133: 132
A134: 60457 | B134: LAMBLADIERE | C134: Alicia | D134: F | E134: 2005-04-15 | G134: 604 | H134: BENJAMINE | I134: 00:17:16 | J134: 133
A135: 60854 | B135: BOISEDU | C135: Anais | D135: F | E135: 2005-12-07 | G135: 608 | H135: BENJAMINE | I135: 00:17:17 | J135: 134
A136: 60452 | B136: DALLEAU | C136: Aurélie | D136: F | E136: 2006-02-25 | G136: 604 | H136: BENJAMINE | I136: 00:17:22 | J136: 135
A137: 60754 | B137: BOYER | C137: Océane | D137: F | E137: 2006-02-27 | G137: 607 | H137: BENJAMINE | I137: 00:17:24 | J137: 136
A138: 61254 | B138: MARTIN - TANDRAYEN | C138: Andjanie | D138: F | E138: 2006-11-29 | G138: 612 | H138: BENJAMINE | I138: 00:17:25 | J138: 137
A139: 61059 | B139: LESTE | C139: Kayliah | D139: F | E139: 2006-09-16 | G139: 610 | H139: BENJAMINE | I139: 00:17:27 | J139: 138
A140: 70512 | B140: LEPERLIER | C140: Chalina | D140: F | E140: 2007-08-29 | F140: Mme BILLON | G140: LECONTE DE | H140: POUSSIN | I140: 00:17:29 | J140: 139
A141: 60558 | B141: LATCHIMY | C141: Abigaël | D141: F | E141: 2006-09-14 | G141: 605 | H141: BENJAMINE | I141: 00:17:32 | J141: 140
A142: 70303 | B142: DANY | C142: Yasmina | D142: F | E142: 2007-07-04 | F142: Mme RINGASSAMY | G142: LECONTE DE | H142: POUSSIN | I142: 00:17:34 | J142: 141
A143: 70508 | B143: DANY | C143: Rachel | D143: F | E143: 2007-08-25 | F143: Mme BILLON | G143: LECONTE DE | H143: POUSSIN | I143: 00:17:35 | J143: 142
A144: 70412 | B144: OVA | C144: Anna | D144: F | E144: 2007-08-06 | F144: Mme GERBANDIER | G144: LECONTE DE | H144: POUSSIN | I144: 00:17:37 | J144: 143
A145: 60654 | B145: GANNE | C145: Eleanna | D145: F | E145: 2006-06-13 | G145: 606 | H145: BENJAMINE | I145: 00:17:38 | J145: 144
A146: 70310 | B146: GUICHARD | C146: Lalita | D146: F | E146: 2007-07-11 | F146: Mme RINGASSAMY | G146: LECONTE DE | H146: POUSSIN | I146: 00:17:40 | J146: 145
A147: 70416 | B147: QUINOIS MAVANDE | C147: Dhalianna | D147: F | E147: 2007-08-10 | F147: Mme GERBANDIER | G147: LECONTE DE | H147: POUSSIN | I147: 00:17:42 | J147: 146
A148: 70309 | B148: GUICHARD | C148: Kassandra | D148: F | E148: 2007-07-10 | F148: Mme RINGASSAMY | G148: LECONTE DE | H148: POUSSIN | I148: 00:17:44 | J148: 147
A149: 60954 | B149: FENELON | C149: Chloé | D149: F | E149: 2006-09-07 | G149: 609 | H149: BENJAMINE | I149: 00:17:50 | J149: 148
A150: 61157 | B150: JANAC | C150: Noëllia | D150: F | E150: 2006-09-07 | G150: 611 | H150: BENJAMINE | I150: 00:17:52 | J150: 149
A151: 60357 | B151: GAILLAC | C151: Jénaie | D151: F | E151: 2006-08-02 | G151: 603 | H151: BENJAMINE | I151: 00:17:53 | J151: 150
A152: 60760 | B152: FELIX | C152: Kiérane | D152: F | E152: 2006-04-09 | G152: 607 | H152: BENJAMINE | I152: 00:17:55 | J152: 151
A153: 70308 | B153: GOSSARD | C153: Lalita | D153: F | E153: 2007-07-09 | F153: Mme RINGASSAMY | G153: LECONTE DE | H153: POUSSIN | I153: 00:17:58 | J153: 152
A154: 60757 | B154: DEBY | C154: Flora | D154: F | E154: 2006-08-19 | G154: 607 | H154: BENJAMINE | I154: 00:18:00 | J154: 153
A155: 60655 | B155: GOVINDIN | C155: Annaëlle | D155: F | E155: 2006-09-09 | G155: 606 | H155: BENJAMINE | I155: 00:18:13 | J155: 154
A156: 61255 | B156: MOUHIDDINE | C156: Miroiya | D156: F | E156: 2005-04-23 | G156: 612 | H156: BENJAMINE | I156: 00:18:15 | J156: 155
A157: 70415 | B157: PONIN | C157: Marie Mathilde | D157: F | E157: 2007-08-09 | F157: Mme GERBANDIER | G157: LECONTE DE | H157: POUSSIN | I157: 00:18:16 | J157: 156
A158: 60152 | B158: GRONDIN | C158: Audrey | D158: F | E158: 2005-11-13 | G158: 601 | H158: BENJAMINE | I158: 00:18:18 | J158: 157
A159: 60352 | B159: BOYER | C159: Laurianne | D159: F | E159: 2006-09-23 | G159: 603 | H159: BENJAMINE | I159: 00:18:23 | J159: 158
A160: 60557 | B160: JEAN- BAPTISTE | C160: Maëva | D160: F | E160: 2006-01-12 | G160: 605 | H160: BENJAMINE | I160: 00:18:25 | J160: 159
A161: 60561 | B161: NDAVA | C161: Salama | D161: F | E161: 2006-09-27 | G161: 605 | H161: BENJAMINE | I161: 00:18:27 | J161: 160
A162: 61161 | B162: RODES | C162: Alana | D162: F | E162: 2006-09-14 | G162: 611 | H162: BENJAMINE | I162: 00:19:17 | J162: 161
J163: 162
J164: 163
J165: 164
J166: 165
J167: 166
J168: 167
J169: 168
J170: 169
J171: 170
J172: 171
J173: 172
J174: 173
J175: 174
J176: 175
J177: 176
J178: 177
J179: 178
J180: 179
J181: 180
J182: 181
J183: 182
J184: 183
J185: 184
J186: 185
J187: 186
J188: 187
J189: 188
J190: 189
J191: 190
J192: 191
J193: 192
J194: 193
J195: 194
J196: 195
J197: 196
J198: 197
J199: 198
J200: 199
... 47 more rows

Sheet CM2 - 6è Garçons
A1: DOSSARD | B1: NOM | C1: PRENOM | D1: SEXE | E1: DATENAISS | F1: NOMETABL | G1: CLASSE | H1: CATEGORIE | I1: TEMPS | J1: PLACE
A2: 60904 | B2: CONJAN | C2: Krishnaradja | D2: M | E2: 2006-10-14 | G2: 609 | H2: BENJAMIN | I2: 00:08:40 | J2: 1
A3: 60808 | B3: SENY-COUTY | C3: Syven | D3: M | E3: 2006-12-24 | G3: 608 | H3: BENJAMIN | I3: 00:08:42 | J3: 2
A4: 60905 | B4: FELIX | C4: Evan | D4: M | E4: 2006-12-31 | G4: 609 | H4: BENJAMIN | I4: 00:08:44 | J4: 3
A5: 70319 | B5: RAMSAMY | C5: Jérémy | D5: M | E5: 2007-07-20 | F5: Mme RINGASSAMY | G5: LECONTE DE | H5: POUSSIN | I5: 00:08:52 | J5: 4
A6: 60601 | B6: BEGUE | C6: Enzo | D6: M | E6: 2006-02-19 | G6: 606 | H6: BENJAMIN | I6: 00:09:06 | J6: 5
A7: 60705 | B7: MAHANO | C7: Giovani | D7: M | E7: 2004-10-29 | F7: ULIS | G7: 607 | H7: MINIME | I7: 00:09:07 | J7: 6
A8: 70318 | B8: MOEDINE SAEB | C8: Waren | D8: M | E8: 2007-07-19 | F8: Mme RINGASSAMY | G8: LECONTE DE | H8: POUSSIN | I8: 00:09:41 | J8: 7
A9: 60107 | B9: SINALATCHIMY | C9: Lucas | D9: M | E9: 2006-04-14 | G9: 601 | H9: BENJAMIN | I9: 00:09:44 | J9: 8
A10: 60203 | B10: DJANFFARI | C10: El Habibou | D10: M | E10: 2005-05-10 | G10: 602 | H10: BENJAMIN | I10: 00:09:54 | J10: 9
A11: 60511 | B11: MOIRABOU | C11: Kévin | D11: M | E11: 2006-08-11 | G11: 605 | H11: BENJAMIN | I11: 00:09:56 | J11: 10
A12: 70519 | B12: ROBERT | C12: Théodore | D12: M | E12: 2007-09-05 | F12: Mme BILLON | G12: LECONTE DE | H12: POUSSIN | I12: 00:10:09 | J12: 11
A13: 60311 | B13: TAFA | C13: Gaël | D13: M | E13: 2006-03-09 | G13: 603 | H13: BENJAMIN | I13: 00:10:10 | J13: 12
A14: 60505 | B14: DEVILLE | C14: Quentin | D14: M | E14: 2006-07-11 | G14: 605 | H14: BENJAMIN | I14: 00:10:12 | J14: 13
A15: 61213 | B15: PLANTE | C15: Kendjee | D15: M | E15: 2005-05-23 | G15: 612 | H15: BENJAMIN | I15: 00:10:14 | J15: 14
A16: 60502 | B16: AROULAPIN | C16: Kyllian | D16: M | E16: 2006-07-25 | G16: 605 | H16: BENJAMIN | I16: 00:10:16 | J16: 15
A17: 60403 | B17: ANQUIBOU | C17: Erwan | D17: M | E17: 2006-12-19 | G17: 604 | H17: BENJAMIN | I17: 00:10:17 | J17: 16
A18: 60711 | B18: THIONVILLE | C18: Enzo | D18: M | E18: 2006-08-18 | G18: 607 | H18: BENJAMIN | I18: 00:10:19 | J18: 17
A19: 60701 | B19: IBRAHIME | C19: Ambdillah | D19: M | E19: 2006-12-02 | G19: 607 | H19: BENJAMIN | I19: 00:10:40 | J19: 18
A20: 60409 | B20: LESTE | C20: Enzo | D20: M | E20: 2006-04-08 | G20: 604 | H20: BENJAMIN | I20: 00:10:43 | J20: 19
A21: 70805 | B21: CEBARRE-GRONDIN | C21: Jérémy | D21: M | E21: 2007-10-22 | F21: Mme DESIRE | G21: CRESSONNIE | H21: POUSSIN | I21: 00:10:45 | J21: 20
A22: 60903 | B22: BANCALIN | C22: Djanaël | D22: M | E22: 2006-01-09 | G22: 609 | H22: BENJAMIN | I22: 00:10:46 | J22: 21
A23: 60507 | B23: FOUSSANE | C23: Romain | D23: M | E23: 2006-06-08 | G23: 605 | H23: BENJAMIN | I23: 00:10:48 | J23: 22
A24: 60509 | B24: MBINGA | C24: Ayache | D24: M | E24: 2006-12-06 | G24: 605 | H24: BENJAMIN | I24: 00:10:50 | J24: 23
A25: 60704 | B25: LESTE | C25: Miguel | D25: M | E25: 2006-02-10 | G25: 607 | H25: BENJAMIN | I25: 00:11:06 | J25: 24
A26: 61209 | B26: CREPU | C26: Kyan | D26: M | E26: 2006-03-28 | G26: 612 | H26: BENJAMIN | I26: 00:11:07 | J26: 25
A27: 70914 | B27: NATIVEL | C27: Ryan | D27: M | E27: 2007-11-22 | F27: Mr MARLAT | G27: CRESSONNIE | H27: POUSSIN | I27: 00:11:09 | J27: 26
A28: 61203 | B28: ARMOET | C28: Evan | D28: M | E28: 2006-06-30 | G28: 612 | H28: BENJAMIN | I28: 00:11:11 | J28: 27
A29: 60411 | B29: REVASK-RABOULA | C29: Emerick | D29: M | E29: 2006-05-31 | G29: 604 | H29: BENJAMIN | I29: 00:11:13 | J29: 28
A30: 70311 | B30: LAMARDELLE-POUNOUSSAMY | C30: Valentin | D30: M | E30: 2007-07-12 | F30: Mme RINGASSAMY | G30: LECONTE DE | H30: POUSSIN | I30: 00:11:16 | J30: 29
A31: 70513 | B31: OLLIVIER | C31: Raphaêl | D31: M | E31: 2007-08-30 | F31: Mme BILLON | G31: LECONTE DE | H31: POUSSIN | I31: 00:11:18 | J31: 30
A32: 60508 | B32: LESTE | C32: Pascal | D32: M | E32: 2006-01-30 | G32: 605 | H32: BENJAMIN | I32: 00:11:20 | J32: 31
A33: 60809 | B33: VAÏTINADAPOULLE | C33: Noah | D33: M | E33: 2005-04-22 | G33: 608 | H33: BENJAMIN | I33: 00:11:27 | J33: 32
A34: 60902 | B34: ARMOUGOM AYNOU | C34: Matéo | D34: M | E34: 2006-06-16 | G34: 609 | H34: BENJAMIN | I34: 00:11:28 | J34: 33
A35: 61004 | B35: CERNOT | C35: Henson | D35: M | E35: 2006-04-08 | G35: 610 | H35: BENJAMIN | I35: 00:11:52 | J35: 34
A36: 61103 | B36: MARTIAL | C36: Ulrich | D36: M | E36: 2006-11-29 | G36: 611 | H36: BENJAMIN | I36: 00:11:53 | J36: 35
A37: 60707 | B37: PAYET | C37: Evan | D37: M | E37: 2006-11-29 | G37: 607 | H37: BENJAMIN | I37: 00:11:54 | J37: 36
A38: 70413 | B38: PAYET-CIMADOMO | C38: Yvan | D38: M | E38: 2007-08-07 | F38: Mme GERBANDIER | G38: LECONTE DE | H38: POUSSIN | I38: 00:11:56 | J38: 37
A39: 70808 | B39: DIJOUX | C39: Kenzo | D39: M | E39: 2007-10-25 | F39: Mme DESIRE | G39: CRESSONNIE | H39: POUSSIN | I39: 00:11:57 | J39: 38
A40: 70910 | B40: MARDAMA | C40: Evan | D40: M | E40: 2007-11-18 | F40: Mr MARLAT | G40: CRESSONNIE | H40: POUSSIN | I40: 00:11:59 | J40: 39
A41: 60912 | B41: YAYA TOLSY | C41: Alexandre | D41: M | E41: 2006-06-15 | G41: 609 | H41: BENJAMIN | I41: 00:12:01 | J41: 40
A42: 70522 | B42: SYLVAIN | C42: Lucas | D42: M | E42: 2007-09-08 | F42: Mme BILLON | G42: LECONTE DE | H42: POUSSIN | I42: 00:12:02 | J42: 41
A43: 70915 | B43: NAZE | C43: Djurian | D43: M | E43: 2007-11-23 | F43: Mr MARLAT | G43: CRESSONNIE | H43: POUSSIN | I43: 00:12:04 | J43: 42
A44: 60907 | B44: IMAZOUTE-ISSIMA | C44: Joachim | D44: M | E44: 2006-07-09 | G44: 609 | H44: BENJAMIN | I44: 00:12:06 | J44: 43
A45: 61003 | B45: CATEMA | C45: Liévan | D45: M | E45: 2006-08-30 | G45: 610 | H45: BENJAMIN | I45: 00:12:11 | J45: 44
A46: 61005 | B46: CLAIN | C46: Logan | D46: M | E46: 2006-06-23 | G46: 610 | H46: BENJAMIN | I46: 00:12:12 | J46: 45
A47: 70905 | B47: COUESNON | C47: Louka | D47: M | E47: 2007-11-13 | F47: Mr MARLAT | G47: CRESSONNIE | H47: POUSSIN | I47: 00:12:14 | J47: 46
A48: 61201 | B48: AMIRBACASSE MOHADI | C48: Emerick | D48: M | E48: 2006-07-23 | G48: 612 | H48: BENJAMIN | I48: 00:12:59 | J48: 47
A49: 61106 | B49: PAYET | C49: Kérian | D49: M | E49: 2005-08-25 | G49: 611 | H49: BENJAMIN | I49: 00:13:05 | J49: 48
A50: 70320 | B50: RINGASSAMY-RAMALINGOM | C50: Noah | D50: M | E50: 2007-07-21 | F50: Mme RINGASSAMY | G50: LECONTE DE | H50: POUSSIN | I50: 00:13:06 | J50: 49
A51: 60503 | B51: BEN AHAMED | C51: Fadel | D51: M | E51: 2005-11-27 | G51: 605 | H51: BENJAMIN | I51: 00:13:08 | J51: 50
A52: 60908 | B52: LEBON | C52: Kyllian | D52: M | E52: 2006-08-25 | G52: 609 | H52: BENJAMIN | I52: 00:13:09 | J52: 51
A53: 60510 | B53: MOHAMED | C53: Kayed | D53: M | E53: 2005-03-28 | F53: ULIS | G53: 605 | H53: BENJAMIN | I53: 00:13:10 | J53: 52
A54: 61212 | B54: PERRAULT | C54: Davy | D54: M | E54: 2006-11-22 | G54: 612 | H54: BENJAMIN | I54: 00:13:57 | J54: 53
A55: 60301 | B55: BAËTI | C55: Rafaël | D55: M | E55: 2006-11-22 | G55: 603 | H55: BENJAMIN | I55: 00:13:58 | J55: 54
A56: 61108 | B56: PROVENCHERE | C56: Nicolas | D56: M | E56: 2007-01-26 | G56: 611 | H56: BENJAMIN | I56: 00:14:00 | J56: 55
A57: 60303 | B57: CASIMIR | C57: Yannick | D57: M | E57: 2006-07-13 | G57: 603 | H57: BENJAMIN | I57: 00:14:01 | J57: 56
A58: 60108 | B58: TAVERNIER | C58: Jordan | D58: M | E58: 2006-09-20 | G58: 601 | H58: BENJAMIN | I58: 00:14:03 | J58: 57
A59: 60101 | B59: ALI | C59: Jovani | D59: M | E59: 2005-11-22 | G59: 601 | H59: BENJAMIN | I59: 00:14:05 | J59: 58
A60: 60307 | B60: M'DOIHOMA | C60: David | D60: M | E60: 2006-05-29 | G60: 603 | H60: BENJAMIN | I60: 00:14:07 | J60: 59
A61: 60512 | B61: VINGUETAMA-PERIANAGOM | C61: Raoul | D61: M | E61: 2006-09-20 | G61: 605 | H61: BENJAMIN | I61: 00:14:09 | J61: 60
A62: 60611 | B62: THIANCOURT | C62: Théo | D62: M | E62: 2006-06-13 | G62: 606 | H62: BENJAMIN | I62: 00:14:11 | J62: 61
A63: 60608 | B63: PAPAMA-COUTIAMA | C63: Mathias | D63: M | E63: 2006-03-01 | G63: 606 | H63: BENJAMIN | I63: 00:14:12 | J63: 62
A64: 60806 | B64: MAILLOT | C64: Evan | D64: M | E64: 2006-06-19 | G64: 608 | H64: BENJAMIN | I64: 00:14:13 | J64: 63
A65: 60657 | B65: MOUSSA ALI | C65: Hamsa | D65: F | E65: 2005-02-04 | G65: 606 | H65: BENJAMINE | I65: 00:14:18 | J65: 64
A66: 60607 | B66: LEPERLIER | C66: Kalahan | D66: M | E66: 2006-10-04 | G66: 606 | H66: BENJAMIN | I66: 00:14:19 | J66: 65
A67: 60103 | B67: MATEYA | C67: Dylan | D67: M | E67: 2005-10-17 | G67: 601 | H67: BENJAMIN | I67: 00:14:21 | J67: 66
A68: 60803 | B68: DALLEAU | C68: Evan | D68: M | E68: 2006-05-05 | G68: 608 | H68: BENJAMIN | I68: 00:14:22 | J68: 67
A69: 60302 | B69: BRIGY-CATRONIA | C69: Kéran | D69: M | E69: 2006-03-11 | G69: 603 | H69: BENJAMIN | I69: 00:14:23 | J69: 68
A70: 70321 | B70: SAUROY | C70: Kian | D70: M | E70: 2007-07-22 | F70: Mme RINGASSAMY | G70: LECONTE DE | H70: POUSSIN | I70: 00:14:25 | J70: 69
A71: 70322 | B71: SOUCRAMANIEN | C71: Sandjivi | D71: M | E71: 2007-07-23 | F71: Mme RINGASSAMY | G71: LECONTE DE | H71: POUSSIN | I71: 00:14:36 | J71: 70
A72: 60906 | B72: GENTAZ | C72: Mathéo | D72: M | E72: 2006-12-22 | G72: 609 | H72: BENJAMIN | I72: 00:14:37 | J72: 71
A73: 60110 | B73: TECHER | C73: Roman | D73: M | E73: 2005-01-15 | G73: 601 | H73: BENJAMIN | I73: 00:14:38 | J73: 72
A74: 60609 | B74: PARAVEMAN | C74: Lenny | D74: M | E74: 2006-08-21 | G74: 606 | H74: BENJAMIN | I74: 00:14:40 | J74: 73
A75: 61211 | B75: MALET | C75: Quentin | D75: M | E75: 2006-04-21 | G75: 612 | H75: BENJAMIN | I75: 00:14:42 | J75: 74
A76: 60310 | B76: ROMELY | C76: Warren | D76: M | E76: 2006-09-20 | G76: 603 | H76: BENJAMIN | I76: 00:14:44 | J76: 75
A77: 60604 | B77: GRONDIN | C77: Yohan | D77: M | E77: 2006-04-29 | G77: 606 | H77: BENJAMIN | I77: 00:14:45 | J77: 76
A78: 70822 | B78: YOUSSOUF | C78: Djael | D78: M | E78: 2007-11-08 | F78: Mme DESIRE | G78: CRESSONNIE | H78: POUSSIN | I78: 00:14:47 | J78: 77
A79: 70918 | B79: ROBERT | C79: Vincent | D79: M | E79: 2007-11-26 | F79: Mr MARLAT | G79: CRESSONNIE | H79: POUSSIN | I79: 00:14:49 | J79: 78
A80: 60804 | B80: DOUYERE | C80: Yvann | D80: M | E80: 2005-02-28 | G80: 608 | H80: BENJAMIN | I80: 00:14:54 | J80: 79
A81: 70501 | B81: ANDUMA | C81: Ravalson | D81: M | E81: 2007-08-18 | F81: Mme BILLON | G81: LECONTE DE | H81: POUSSIN | I81: 00:14:56 | J81: 80
A82: 70917 | B82: RANDRETSIMIVONY | C82: Greg | D82: M | E82: 2007-11-25 | F82: Mr MARLAT | G82: CRESSONNIE | H82: POUSSIN | I82: 00:14:58 | J82: 81
A83: 70906 | B83: GRONDIN | C83: Grégory | D83: M | E83: 2007-11-14 | F83: Mr MARLAT | G83: CRESSONNIE | H83: POUSSIN | I83: 00:15:02 | J83: 82
A84: 70802 | B84: BEGUE | C84: Rowan | D84: M | E84: 2007-10-19 | F84: Mme DESIRE | G84: CRESSONNIE | H84: POUSSIN | I84: 00:15:06 | J84: 83
A85: 61110 | B85: SINAN | C85: Rohann | D85: M | E85: 2005-09-14 | G85: 611 | H85: BENJAMIN | I85: 00:15:08 | J85: 84
A86: 61101 | B86: BREZE | C86: Lucas | D86: M | E86: 2006-04-13 | G86: 611 | H86: BENJAMIN | I86: 00:15:09 | J86: 85
A87: 61111 | B87: SOILIHI | C87: Johan | D87: M | E87: 2005-11-17 | G87: 611 | H87: BENJAMIN | I87: 00:15:10 | J87: 86
A88: 60306 | B88: GOURVILLE | C88: Hosman | D88: M | E88: 2006-11-17 | G88: 603 | H88: BENJAMIN | I88: 00:15:12 | J88: 87
A89: 60910 | B89: PERIANAYAGOM | C89: Thomas | D89: M | E89: 2006-02-05 | G89: 609 | H89: BENJAMIN | I89: 00:15:14 | J89: 88
A90: 60901 | B90: ADOLPHE--VENEROSY | C90: Grégory | D90: M | E90: 2006-08-25 | G90: 609 | H90: BENJAMIN | I90: 00:15:15 | J90: 89
A91: 60911 | B91: SAVRIAMA | C91: Lucas | D91: M | E91: 2006-09-22 | G91: 609 | H91: BENJAMIN | I91: 00:15:17 | J91: 90
A92: 60909 | B92: MAILLOT | C92: Lucas | D92: M | E92: 2006-02-10 | G92: 609 | H92: BENJAMIN | I92: 00:15:18 | J92: 91
A93: 70503 | B93: BILY | C93: Stomy | D93: M | E93: 2007-08-20 | F93: Mme BILLON | G93: LECONTE DE | H93: POUSSIN | I93: 00:15:20 | J93: 92
A94: 61007 | B94: GRONDIN | C94: Alexandre | D94: M | E94: 2006-01-24 | G94: 610 | H94: BENJAMIN | I94: 00:15:22 | J94: 93
A95: 60304 | B95: COLI-JUN-ONG | C95: Wilson | D95: M | E95: 2006-08-23 | G95: 603 | H95: BENJAMIN | I95: 00:15:23 | J95: 94
A96: 61105 | B96: NARASSAMY VIRAMA | C96: Hugo | D96: M | E96: 2006-10-08 | G96: 611 | H96: BENJAMIN | I96: 00:15:29 | J96: 95
A97: 61001 | B97: APPAVOU | C97: Maxence | D97: M | E97: 2006-10-06 | G97: 610 | H97: BENJAMIN | I97: 00:15:30 | J97: 96
A98: 61006 | B98: COTAYA | C98: Raphael | D98: M | E98: 2006-04-07 | G98: 610 | H98: BENJAMIN | I98: 00:15:32 | J98: 97
A99: 60412 | B99: ROBERT | C99: Lucas | D99: M | E99: 2006-10-08 | G99: 604 | H99: BENJAMIN | I99: 00:15:33 | J99: 98
A100: 70817 | B100: RAMOUCHE | C100: Kenjy | D100: M | E100: 2007-11-03 | F100: Mme DESIRE | G100: CRESSONNIE | H100: POUSSIN | I100: 00:15:35 | J100: 99
A101: 60706 | B101: MCHINDRA | C101: Ambdi | D101: M | E101: 2005-05-25 | G101: 607 | H101: BENJAMIN | I101: 00:15:37 | J101: 100
A102: 60305 | B102: DIJOUX | C102: Thomas | D102: M | E102: 2006-01-07 | G102: 603 | H102: BENJAMIN | I102: 00:15:38 | J102: 101
A103: 70816 | B103: PICQUOT | C103: Mathéo | D103: M | E103: 2007-11-02 | F103: Mme DESIRE | G103: CRESSONNIE | H103: POUSSIN | I103: 00:15:40 | J103: 102
A104: 70807 | B104: DAMOUR | C104: Maxime | D104: M | E104: 2007-10-24 | F104: Mme DESIRE | G104: CRESSONNIE | H104: POUSSIN | I104: 00:15:41 | J104: 103
A105: 70921 | B105: SINAN | C105: Kendrique | D105: M | E105: 2007-11-29 | F105: Mr MARLAT | G105: CRESSONNIE | H105: POUSSIN | I105: 00:15:44 | J105: 104
A106: 60207 | B106: IBRAHIM | C106: Ayad-Ibn-Djadi | D106: M | E106: 2005-01-06 | G106: 602 | H106: BENJAMIN | I106: 00:15:47 | J106: 105
A107: 70421 | B107: SINAMALE | C107: Rohan | D107: M | E107: 2007-08-15 | F107: Mme GERBANDIER | G107: LECONTE DE | H107: POUSSIN | I107: 00:15:49 | J107: 106
A108: 60106 | B108: ROMON | C108: Mattheo | D108: M | E108: 2005-06-22 | G108: 601 | H108: BENJAMIN | I108: 00:15:51 | J108: 107
A109: 60104 | B109: MOEGNE | C109: Youlhadje | D109: M | E109: 2005-06-19 | G109: 601 | H109: BENJAMIN | I109: 00:15:57 | J109: 108
A110: 70317 | B110: MERLO | C110: Medhy | D110: M | E110: 2007-07-18 | F110: Mme RINGASSAMY | G110: LECONTE DE | H110: POUSSIN | I110: 00:15:59 | J110: 109
A111: 60506 | B111: DOUYERE | C111: Roman | D111: M | E111: 2006-06-04 | G111: 605 | H111: BENJAMIN | I111: 00:16:00 | J111: 110
A112: 61208 | B112: BOYER | C112: Lucas | D112: M | E112: 2006-02-22 | G112: 612 | H112: BENJAMIN | I112: 00:16:01 | J112: 111
A113: 70304 | B113: DUBARD | C113: Judicaël | D113: M | E113: 2007-07-05 | F113: Mme RINGASSAMY | G113: LECONTE DE | H113: POUSSIN | I113: 00:16:04 | J113: 112
A114: 70409 | B114: GUSTAVIN | C114: Samuel | D114: M | E114: 2007-08-03 | F114: Mme GERBANDIER | G114: LECONTE DE | H114: POUSSIN | I114: 00:16:05 | J114: 113
A115: 70520 | B115: SETAPI | C115: Melvyn | D115: M | E115: 2007-09-06 | F115: Mme BILLON | G115: LECONTE DE | H115: POUSSIN | I115: 00:16:07 | J115: 114
A116: 70803 | B116: BERNON | C116: Théo | D116: M | E116: 2007-10-20 | F116: Mme DESIRE | G116: CRESSONNIE | H116: POUSSIN | I116: 00:16:08 | J116: 115
A117: 60404 | B117: BANCALIN | C117: Benjy | D117: M | E117: 2005-05-09 | G117: 604 | H117: BENJAMIN | I117: 00:16:10 | J117: 116
A118: 60801 | B118: BELIM | C118: Alban | D118: M | E118: 2006-12-27 | G118: 608 | H118: BENJAMIN | I118: 00:16:17 | J118: 117
A119: 70314 | B119: MARIE | C119: Steve | D119: M | E119: 2007-07-15 | F119: Mme RINGASSAMY | G119: LECONTE DE | H119: POUSSIN | I119: 00:16:20 | J119: 118
A120: 60210 | B120: MOUTOUSSAMY | C120: Bradley J Fred | D120: M | E120: 2005-05-01 | G120: 602 | H120: BENJAMIN | I120: 00:16:21 | J120: 119
A121: 70517 | B121: PIGNOLET | C121: Alexandre | D121: M | E121: 2007-09-03 | F121: Mme BILLON | G121: LECONTE DE | H121: POUSSIN | I121: 00:16:22 | J121: 120
A122: 70402 | B122: BENARD | C122: OWEN | D122: M | E122: 2007-07-27 | F122: Mme GERBANDIER | G122: LECONTE DE | H122: POUSSIN | I122: 00:16:25 | J122: 121
A123: 70417 | B123: REAME | C123: Ulrick | D123: M | E123: 2007-08-11 | F123: Mme GERBANDIER | G123: LECONTE DE | H123: POUSSIN | I123: 00:16:26 | J123: 122
A124: 70521 | B124: SOUPRAMANIEN | C124: Alexandre | D124: M | E124: 2007-09-07 | F124: Mme BILLON | G124: LECONTE DE | H124: POUSSIN | I124: 00:16:28 | J124: 123
A125: 60410 | B125: MNEMOSYME--DIJOUX | C125: Anthony | D125: M | E125: 2006-03-09 | G125: 604 | H125: BENJAMIN | I125: 00:16:30 | J125: 124
A126: 61210 | B126: HOAREAU | C126: Isaac | D126: M | E126: 2006-11-06 | G126: 612 | H126: BENJAMIN | I126: 00:16:35 | J126: 125
A127: 61112 | B127: TURPIN | C127: Devan | D127: M | E127: 2006-01-11 | G127: 611 | H127: BENJAMIN | I127: 00:16:35 | J127: 126
A128: 61204 | B128: ATCHIAMA-ERAPA | C128: Anthony | D128: M | E128: 2006-09-18 | G128: 612 | H128: BENJAMIN | I128: 00:16:37 | J128: 127
A129: 60405 | B129: BORIGNIOL | C129: Gaëtan | D129: M | E129: 2006-08-09 | G129: 604 | H129: BENJAMIN | I129: 00:16:39 | J129: 128
A130: 60212 | B130: VALLIAMEE | C130: Dylan | D130: M | E130: 2006-05-05 | G130: 602 | H130: BENJAMIN | I130: 00:16:41 | J130: 129
A131: 60407 | B131: FOUMBO-BENAO | C131: Kenny | D131: M | E131: 2006-07-22 | G131: 604 | H131: BENJAMIN | I131: 00:16:42 | J131: 130
A132: 70401 | B132: AHAMADI | C132: Bel Hadj | D132: M | E132: 2007-07-26 | F132: Mme GERBANDIER | G132: LECONTE DE | H132: POUSSIN | I132: 00:16:44 | J132: 131
A133: 61202 | B133: ANGAMA | C133: Darren | D133: M | E133: 2006-12-28 | G133: 612 | H133: BENJAMIN | I133: 00:16:46 | J133: 132
A134: 60610 | B134: PAUSE | C134: Esteban | D134: M | E134: 2006-09-27 | G134: 606 | H134: BENJAMIN | I134: 00:16:47 | J134: 133
A135: 60205 | B135: DUBOURG | C135: Julien | D135: M | E135: 2005-11-16 | G135: 602 | H135: BENJAMIN | I135: 00:16:49 | J135: 134
A136: 70514 | B136: PAQUIRY | C136: Marino | D136: M | E136: 2007-08-31 | F136: Mme BILLON | G136: LECONTE DE | H136: POUSSIN | I136: 00:16:59 | J136: 135
A137: 70505 | B137: CELERINE | C137: Dylan | D137: M | E137: 2007-08-22 | F137: Mme BILLON | G137: LECONTE DE | H137: POUSSIN | I137: 00:17:00 | J137: 136
A138: 70819 | B138: SARANE | C138: Lucas | D138: M | E138: 2007-11-05 | F138: Mme DESIRE | G138: CRESSONNIE | H138: POUSSIN | I138: 00:17:01 | J138: 137
A139: 61008 | B139: POINY | C139: Ethan | D139: M | E139: 2006-06-15 | G139: 610 | H139: BENJAMIN | I139: 00:17:02 | J139: 138
A140: 60202 | B140: DAMOUR | C140: Thomas | D140: M | E140: 2005-12-07 | G140: 602 | H140: BENJAMIN | I140: 00:17:04 | J140: 139
A141: 60308 | B141: MOUTALE | C141: Yorann | D141: M | E141: 2006-05-03 | G141: 603 | H141: BENJAMIN | I141: 00:17:05 | J141: 140
A142: 70408 | B142: GRONDIN | C142: Jean-Daniel | D142: M | E142: 2007-08-02 | F142: Mme GERBANDIER | G142: LECONTE DE | H142: POUSSIN | I142: 00:17:07 | J142: 141
A143: 61206 | B143: BANCALIN | C143: Kheïry | D143: M | E143: 2006-08-01 | G143: 612 | H143: BENJAMIN | I143: 00:17:10 | J143: 142
A144: 60401 | B144: AIMART | C144: Dany | D144: M | E144: 2005-08-05 | G144: 604 | H144: BENJAMIN | I144: 00:17:11 | J144: 143
A145: 70411 | B145: NIVAROSA | C145: Mathéo | D145: M | E145: 2007-08-05 | F145: Mme GERBANDIER | G145: LECONTE DE | H145: POUSSIN | I145: 00:17:30 | J145: 144
A146: 60201 | B146: AROULAPIN | C146: Gayge | D146: M | E146: 2005-02-20 | G146: 602 | H146: BENJAMIN | I146: 00:17:31 | J146: 145
A147: 70518 | B147: ROBERT | C147: Koumarèn | D147: M | E147: 2007-09-04 | F147: Mme BILLON | G147: LECONTE DE | H147: POUSSIN | I147: 00:17:33 | J147: 146
A148: 60807 | B148: SELLAMBAYE | C148: Darryl | D148: M | E148: 2006-04-18 | G148: 608 | H148: BENJAMIN | I148: 00:17:34 | J148: 147
A149: 60309 | B149: PAUCHET-BOCA | C149: Huroy | D149: M | E149: 2006-06-06 | G149: 603 | H149: BENJAMIN | I149: 00:17:36 | J149: 148
A150: 61205 | B150: BALAGA | C150: Mathieu | D150: M | E150: 2005-12-16 | G150: 612 | H150: BENJAMIN | I150: 00:17:38 | J150: 149
A151: 70912 | B151: MERA | C151: Péroumal | D151: M | E151: 2007-11-20 | F151: Mr MARLAT | G151: CRESSONNIE | H151: POUSSIN | I151: 00:17:40 | J151: 150
A152: 60709 | B152: POUGARY | C152: Alfred | D152: M | E152: 2006-10-02 | G152: 607 | H152: BENJAMIN | I152: 00:17:42 | J152: 151
A153: 70820 | B153: SAVRIAMA | C153: Théo | D153: M | E153: 2007-11-06 | F153: Mme DESIRE | G153: CRESSONNIE | H153: POUSSIN | I153: 00:17:44 | J153: 152
A154: 70423 | B154: VIRAPIN-KEMMA | C154: Yann | D154: M | E154: 2007-08-17 | F154: Mme GERBANDIER | G154: LECONTE DE | H154: POUSSIN | I154: 00:17:45 | J154: 153
A155: 60208 | B155: M'BALIA | C155: Idriss | D155: M | E155: 2005-10-06 | G155: 602 | H155: BENJAMIN | I155: 00:17:47 | J155: 154
A156: 60504 | B156: BLAIN | C156: Kyliann | D156: M | E156: 2006-12-12 | G156: 605 | H156: BENJAMIN | I156: 00:17:51 | J156: 155
A157: 70301 | B157: CATAYE | C157: Erowan | D157: M | E157: 2007-07-02 | F157: Mme RINGASSAMY | G157: LECONTE DE | H157: POUSSIN | I157: 00:17:55 | J157: 156
A158: 60710 | B158: POUNIANDY | C158: Yann | D158: M | E158: 2006-10-03 | G158: 607 | H158: BENJAMIN | I158: 00:17:57 | J158: 157
A159: 70403 | B159: BINIQUE | C159: Sergio | D159: M | E159: 2007-07-28 | F159: Mme GERBANDIER | G159: LECONTE DE | H159: POUSSIN | I159: 00:17:59 | J159: 158
A160: 70418 | B160: ROBERT | C160: Ryan | D160: M | E160: 2007-08-12 | F160: Mme GERBANDIER | G160: LECONTE DE | H160: POUSSIN | I160: 00:18:04 | J160: 159
A161: 61207 | B161: BEGUE | C161: Lucas | D161: M | E161: 2006-05-03 | G161: 612 | H161: BENJAMIN | I161: 00:18:06 | J161: 160
A162: 60603 | B162: FURCY | C162: Florent | D162: M | E162: 2005-01-18 | G162: 606 | H162: BENJAMIN | I162: 00:18:57 | J162: 161
A163: 60602 | B163: BENARD | C163: Hans | D163: M | E163: 2004-03-15 | F163: ULIS | G163: 606 | H163: MINIME | I163: 00:19:00 | J163: 162
A164: 60805 | B164: IMAHO-IVOU | C164: Kéran | D164: M | E164: 2005-04-02 | G164: 608 | H164: BENJAMIN | I164: 00:19:00 | J164: 163
A165: 60206 | B165: ETHEVE | C165: Iglory | D165: M | E165: 2006-02-14 | G165: 602 | H165: BENJAMIN | I165: 00:20:16 | J165: 164
A166: 60402 | B166: ANDY | C166: Samuel | D166: M | E166: 2006-03-17 | G166: 604 | H166: BENJAMIN | I166: 00:20:17 | J166: 165
A167: 70909 | B167: LESTE | C167: Lucas | D167: M | E167: 2007-11-17 | F167: Mr MARLAT | G167: CRESSONNIE | H167: POUSSIN | I167: 00:20:18 | J167: 166
A168: 61107 | B168: POTHIN | C168: Vincent | D168: M | E168: 2006-09-10 | G168: 611 | H168: BENJAMIN | I168: 00:20:26 | J168: 167
J169: 168
J170: 169
J171: 170
J172: 171
J173: 172
J174: 173
J175: 174
J176: 175
J177: 176
J178: 177
J179: 178
J180: 179
J181: 180
J182: 181
J183: 182
J184: 183
J185: 184
J186: 185
J187: 186
J188: 187
J189: 188
J190: 189
J191: 190
J192: 191
J193: 192
J194: 193
J195: 194
J196: 195
J197: 196
J198: 197
J199: 198
J200: 199
... 36 more rows

Sheet 6èFilles
A1: DOSSARD | B1: NOM | C1: PRENOM | D1: SEXE | E1: DATENAISS | F1: NOMETABL | G1: CLASSE | H1: CATEGORIE | I1: TEMPS | J1: PLACE | O1: Classe | P1: Classement des 5 premières coureuses de chaque classe | U1: total
A2: 61152 | B2: AUGUSTE | C2: Myriam | D2: F | E2: 2006-12-23 | G2: 611 | H2: BENJAMINE | I2: 00:08:23 | J2: 1 | N2: 1er | O2: 610 | P2: 3 | Q2: 8 | R2: 11 | S2: 18 | T2: 22 | U2: =IF(OR(ISBLANK(P2),ISBLANK(Q2),ISBLANK(R2),ISBLANK(S2),ISBLANK(T2)),"< 5 coureurs",SUM(P2:T2)) -> 62
A3: 61258 | B3: THELAÏRE | C3: Lucie | D3: F | E3: 2006-01-27 | G3: 612 | H3: BENJAMINE | I3: 00:09:05 | J3: 2 | N3: 2ème | O3: 609 | P3: 4 | Q3: 6 | R3: 9 | S3: 26 | T3: 35 | U3: =IF(OR(ISBLANK(P3),ISBLANK(Q3),ISBLANK(R3),ISBLANK(S3),ISBLANK(T3)),"< 5 coureurs",SUM(P3:T3)) -> 80
A4: 61061 | B4: MHADJI | C4: Tamouni | D4: F | E4: 2006-02-27 | G4: 610 | H4: BENJAMINE | I4: 00:09:15 | J4: 3 | N4: 3ème | O4: 608 | P4: 7 | Q4: 12 | R4: 20 | S4: 24 | T4: 43 | U4: =IF(OR(ISBLANK(P4),ISBLANK(Q4),ISBLANK(R4),ISBLANK(S4),ISBLANK(T4)),"< 5 coureurs",SUM(P4:T4)) -> 106
A5: 60953 | B5: FAUSTIN | C5: Anna | D5: F | E5: 2006-12-30 | G5: 609 | H5: BENJAMINE | I5: 00:09:37 | J5: 4 | N5: 4ème | O5: 605 | P5: 13 | Q5: 14 | R5: 28 | S5: 32 | T5: 37 | U5: =IF(OR(ISBLANK(P5),ISBLANK(Q5),ISBLANK(R5),ISBLANK(S5),ISBLANK(T5)),"< 5 coureurs",SUM(P5:T5)) -> 124
A6: 60354 | B6: CLAIN | C6: Clèmence | D6: F | E6: 2006-09-01 | G6: 603 | H6: BENJAMINE | I6: 00:09:41 | J6: 5 | N6: 5ème | O6: 603 | P6: 5 | Q6: 16 | R6: 34 | S6: 40 | T6: 45 | U6: =IF(OR(ISBLANK(P6),ISBLANK(Q6),ISBLANK(R6),ISBLANK(S6),ISBLANK(T6)),"< 5 coureurs",SUM(P6:T6)) -> 140
A7: 60956 | B7: GRONDIN | C7: Mathilde | D7: F | E7: 2006-12-10 | G7: 609 | H7: BENJAMINE | I7: 00:09:42 | J7: 6 | N7: 6ème | O7: 606 | P7: 17 | Q7: 23 | R7: 25 | S7: 39 | T7: 41 | U7: =IF(OR(ISBLANK(P7),ISBLANK(Q7),ISBLANK(R7),ISBLANK(S7),ISBLANK(T7)),"< 5 coureurs",SUM(P7:T7)) -> 145
A8: 60853 | B8: BARET | C8: Sydney | D8: F | E8: 2005-06-27 | G8: 608 | H8: BENJAMINE | I8: 00:09:48 | J8: 7 | N8: 7ème | O8: 604 | P8: 15 | Q8: 30 | R8: 31 | S8: 36 | T8: 47 | U8: =IF(OR(ISBLANK(P8),ISBLANK(Q8),ISBLANK(R8),ISBLANK(S8),ISBLANK(T8)),"< 5 coureurs",SUM(P8:T8)) -> 159
A9: 61053 | B9: BOISEDU | C9: Anna | D9: F | E9: 2006-10-22 | G9: 610 | H9: BENJAMINE | I9: 00:10:08 | J9: 8 | N9: 8ème | O9: 607 | P9: 10 | Q9: 19 | R9: 33 | S9: 42 | T9: 72 | U9: =IF(OR(ISBLANK(P9),ISBLANK(Q9),ISBLANK(R9),ISBLANK(S9),ISBLANK(T9)),"< 5 coureurs",SUM(P9:T9)) -> 176
A10: 60960 | B10: MAILLOT | C10: Emeline | D10: F | E10: 2006-09-16 | G10: 609 | H10: BENJAMINE | I10: 00:10:31 | J10: 9 | N10: 9ème | O10: 611 | P10: 1 | Q10: 44 | R10: 52 | S10: 55 | T10: 56 | U10: =IF(OR(ISBLANK(P10),ISBLANK(Q10),ISBLANK(R10),ISBLANK(S10),ISBLANK(T10)),"< 5 coureurs",SUM(P10:T10)) -> 208
A11: 60762 | B11: IMARA | C11: Maëlle | D11: F | E11: 2005-03-18 | G11: 607 | H11: BENJAMINE | I11: 00:10:34 | J11: 10 | N11: 10ème | O11: 612 | P11: 2 | Q11: 21 | R11: 73 | S11: 89 | T11: 90 | U11: =IF(OR(ISBLANK(P11),ISBLANK(Q11),ISBLANK(R11),ISBLANK(S11),ISBLANK(T11)),"< 5 coureurs",SUM(P11:T11)) -> 275
A12: 61064 | B12: SOUNDRON | C12: Elisa | D12: F | E12: 2006-07-07 | G12: 610 | H12: BENJAMINE | I12: 00:10:37 | J12: 11 | N12: 11ème | O12: 601 | P12: 60 | Q12: 61 | R12: 107 | U12: =IF(OR(ISBLANK(P12),ISBLANK(Q12),ISBLANK(R12),ISBLANK(S12),ISBLANK(T12)),"< 5 coureurs",SUM(P12:T12)) -> < 5 coureurs
A13: 60862 | B13: SAMINADIN | C13: Adeline | D13: F | E13: 2006-01-26 | G13: 608 | H13: BENJAMINE | I13: 00:10:44 | J13: 12 | N13: 12ème | O13: 602 | P13: 29 | Q13: 38 | R13: 64 | S13: 65 | U13: =IF(OR(ISBLANK(P13),ISBLANK(Q13),ISBLANK(R13),ISBLANK(S13),ISBLANK(T13)),"< 5 coureurs",SUM(P13:T13)) -> < 5 coureurs
A14: 60552 | B14: BORIGNIOL | C14: Emmanuelle | D14: F | E14: 2005-02-02 | G14: 605 | H14: BENJAMINE | I14: 00:10:45 | J14: 13
A15: 60553 | B15: FATIMA | C15: Moinamaoulida | D15: F | E15: 2006-03-31 | G15: 605 | H15: BENJAMINE | I15: 00:10:47 | J15: 14 | N15: Médailles d'or | P15: 610
A16: 60455 | B16: JANAC | C16: Lohana | D16: F | E16: 2006-05-28 | G16: 604 | H16: BENJAMINE | I16: 00:10:56 | J16: 15
A17: 60358 | B17: HOAREAU | C17: Floralie | D17: F | E17: 2006-04-04 | G17: 603 | H17: BENJAMINE | I17: 00:11:01 | J17: 16 | M17: MHADJI | O17: BOISEDU | Q17: SOUNDRON | S17: LACHARMANTE | U17: BLARD
A18: 60651 | B18: ABDOU | C18: Sandiya | D18: F | E18: 2006-12-04 | G18: 606 | H18: BENJAMINE | I18: 00:11:22 | J18: 17 | M18: Tamouni | O18: Anna | Q18: Elisa | S18: Laéna | U18: Maëva
A19: 61058 | B19: LACHARMANTE | C19: Laéna | D19: F | E19: 2006-09-10 | G19: 610 | H19: BENJAMINE | I19: 00:11:28 | J19: 18
A20: 60755 | B20: CARCANY | C20: Laurine | D20: F | E20: 2006-10-16 | G20: 607 | H20: BENJAMINE | I20: 00:11:30 | J20: 19 | N20: Médailles d'argent | P20: 609
A21: 60860 | B21: PLANTE | C21: Brianna | D21: F | E21: 2006-02-21 | G21: 608 | H21: BENJAMINE | I21: 00:11:48 | J21: 20
A22: 61259 | B22: TRAJAN | C22: Naisha | D22: F | E22: 2006-10-23 | G22: 612 | H22: BENJAMINE | I22: 00:11:50 | J22: 21 | M22: FAUSTIN | O22: GRONDIN | Q22: MAILLOT | S22: FETISOI-MIHA | U22: TANCOURT
A23: 61052 | B23: BLARD | C23: Maëva | D23: F | E23: 2006-06-13 | G23: 610 | H23: BENJAMINE | I23: 00:11:51 | J23: 22 | M23: Anna | O23: Mathilde | Q23: Emeline | S23: Jade | U23: Flora
A24: 60660 | B24: SOLONIRINA | C24: Hovafiadanana | D24: F | E24: 2006-07-24 | G24: 606 | H24: BENJAMINE | I24: 00:11:53 | J24: 23
A25: 60857 | B25: LEMARCHAND | C25: Amandine | D25: F | E25: 2006-10-01 | G25: 608 | H25: BENJAMINE | I25: 00:11:55 | J25: 24 | N25: Médailles de bronze | P25: 608
A26: 60659 | B26: PARIS | C26: Romane | D26: F | E26: 2006-11-11 | G26: 606 | H26: BENJAMINE | I26: 00:11:57 | J26: 25
A27: 60955 | B27: FETISOI-MIHA | C27: Jade | D27: F | E27: 2006-09-17 | G27: 609 | H27: BENJAMINE | I27: 00:12:01 | J27: 26 | M27: BARET | O27: SAMINADIN | Q27: PLANTE | S27: LEMARCHAND | U27: BARET
A28: 61060 | B28: LESTE | C28: Marie-Anandi | D28: F | E28: 2006-12-26 | G28: 610 | H28: BENJAMINE | I28: 00:12:04 | J28: 27 | M28: Sydney | O28: Adeline | Q28: Brianna | S28: Amandine | U28: Kérane
A29: 60556 | B29: HERMETTE | C29: Maïlyse | D29: F | E29: 2006-05-14 | G29: 605 | H29: BENJAMINE | I29: 00:12:14 | J29: 28
A30: 60252 | B30: ANGO | C30: Estelle | D30: F | E30: 2005-01-09 | G30: 602 | H30: BENJAMINE | I30: 00:12:16 | J30: 29
A31: 60454 | B31: GUSTAVIN | C31: Ciara | D31: F | E31: 2006-03-22 | G31: 604 | H31: BENJAMINE | I31: 00:12:41 | J31: 30
A32: 60459 | B32: MOUNIAPN | C32: Varincka | D32: F | E32: 2006-03-10 | G32: 604 | H32: BENJAMINE | I32: 00:13:09 | J32: 31
A33: 60554 | B33: FINAU | C33: Morgane | D33: F | E33: 2006-05-30 | G33: 605 | H33: BENJAMINE | I33: 00:13:12 | J33: 32
A34: 60756 | B34: CHAHE DAOUDOU | C34: Elysiane | D34: F | E34: 2006-08-30 | G34: 607 | H34: BENJAMINE | I34: 00:13:14 | J34: 33
A35: 60361 | B35: SCHERILLA | C35: Séréna | D35: F | E35: 2006-06-13 | G35: 603 | H35: BENJAMINE | I35: 00:13:16 | J35: 34
A36: 60961 | B36: TANCOURT | C36: Flora | D36: F | E36: 2006-08-16 | G36: 609 | H36: BENJAMINE | I36: 00:13:18 | J36: 35
A37: 60461 | B37: TANDRAYEN | C37: Alice | D37: F | E37: 2006-01-27 | G37: 604 | H37: BENJAMINE | I37: 00:13:20 | J37: 36
A38: 60551 | B38: ASSANI | C38: Nadia | D38: F | E38: 2005-10-14 | G38: 605 | H38: BENJAMINE | I38: 00:13:22 | J38: 37
A39: 60251 | B39: AHMED ANLI | C39: Radadi | D39: F | E39: 2006-04-22 | G39: 602 | H39: BENJAMINE | I39: 00:13:24 | J39: 38
A40: 60656 | B40: LATCHIMY | C40: Daphnée | D40: F | E40: 2006-04-04 | G40: 606 | H40: BENJAMINE | I40: 00:13:32 | J40: 39
A41: 60360 | B41: PICARD | C41: Nathanaëlle | D41: F | E41: 2007-01-03 | G41: 603 | H41: BENJAMINE | I41: 00:13:34 | J41: 40
A42: 60653 | B42: BOYER | C42: Juliana | D42: F | E42: 2005-08-03 | G42: 606 | H42: BENJAMINE | I42: 00:13:35 | J42: 41
A43: 60751 | B43: AHAMADI | C43: Nazra Zaanti | D43: F | E43: 2005-07-24 | G43: 607 | H43: BENJAMINE | I43: 00:13:37 | J43: 42
A44: 60852 | B44: BARET | C44: Kérane | D44: F | E44: 2006-10-25 | G44: 608 | H44: BENJAMINE | I44: 00:13:41 | J44: 43
A45: 61151 | B45: ANDRIAMAHERY-RANJALAHY | C45: Keiko | D45: F | E45: 2006-01-19 | G45: 611 | H45: BENJAMINE | I45: 00:13:43 | J45: 44
A46: 60353 | B46: CATTY MAROUNDIN | C46: Marie Lauryne | D46: F | E46: 2006-05-15 | G46: 603 | H46: BENJAMINE | I46: 00:13:44 | J46: 45
A47: 61054 | B47: DIDAT | C47: Emma | D47: F | E47: 2006-09-15 | G47: 610 | H47: BENJAMINE | I47: 00:13:47 | J47: 46
A48: 60458 | B48: LAURENT | C48: Léane | D48: F | E48: 2006-11-20 | G48: 604 | H48: BENJAMINE | I48: 00:13:57 | J48: 47
A49: 60555 | B49: GAILLAC | C49: Stessy | D49: F | E49: 2006-03-05 | G49: 605 | H49: BENJAMINE | I49: 00:14:12 | J49: 48
A50: 60957 | B50: GUICHARD | C50: Salomé | D50: F | E50: 2006-02-23 | G50: 609 | H50: BENJAMINE | I50: 00:14:13 | J50: 49
A51: 60856 | B51: JHINGUT | C51: Ashnnavee Mari | D51: F | E51: 2006-01-02 | G51: 608 | H51: BENJAMINE | I51: 00:14:15 | J51: 50
A52: 60658 | B52: MUGUEL MARINA | C52: Juliana | D52: F | E52: 2005-03-16 | G52: 606 | H52: BENJAMINE | I52: 00:14:18 | J52: 51
A53: 61153 | B53: BALAGOUROU | C53: Cynthia Marie | D53: F | E53: 2006-06-07 | G53: 611 | H53: BENJAMINE | I53: 00:14:23 | J53: 52
A54: 61062 | B54: MIRANVILLE | C54: Ericka | D54: F | E54: 2005-09-10 | G54: 610 | H54: BENJAMINE | I54: 00:14:25 | J54: 53
A55: 61051 | B55: ADAVAMIS | C55: Jade | D55: F | E55: 2006-11-17 | G55: 610 | H55: BENJAMINE | I55: 00:14:27 | J55: 54
A56: 61154 | B56: FENART | C56: Amelie | D56: F | E56: 2006-08-21 | G56: 611 | H56: BENJAMINE | I56: 00:14:29 | J56: 55
A57: 61155 | B57: GUEDAMA | C57: Solène | D57: F | E57: 2006-05-03 | G57: 611 | H57: BENJAMINE | I57: 00:14:33 | J57: 56
A58: 60952 | B58: BOURLY | C58: Noémie | D58: F | E58: 2005-12-16 | G58: 609 | H58: BENJAMINE | I58: 00:14:38 | J58: 57
A59: 60451 | B59: CHUPPA | C59: Eva | D59: F | E59: 2006-09-01 | G59: 604 | H59: BENJAMINE | I59: 00:14:39 | J59: 58
A60: 61065 | B60: TANDRAYEN | C60: Léna | D60: F | E60: 2006-02-14 | G60: 610 | H60: BENJAMINE | I60: 00:15:05 | J60: 59
A61: 60155 | B61: OILI | C61: Hidaya | D61: F | E61: 2005-05-09 | G61: 601 | H61: BENJAMINE | I61: 00:15:19 | J61: 60
A62: 60153 | B62: HOARAU | C62: Paloma | D62: F | E62: 2005-03-23 | G62: 601 | H62: BENJAMINE | I62: 00:15:20 | J62: 61
A63: 60851 | B63: ALTON | C63: Léa | D63: F | E63: 2006-11-13 | G63: 608 | H63: BENJAMINE | I63: 00:15:22 | J63: 62
A64: 60560 | B64: MOUNIA | C64: Chloé | D64: F | E64: 2006-02-19 | G64: 605 | H64: BENJAMINE | I64: 00:15:23 | J64: 63
A65: 60253 | B65: ELISABETH | C65: Asmina | D65: F | E65: 2005-06-07 | G65: 602 | H65: BENJAMINE | I65: 00:15:28 | J65: 64
A66: 60254 | B66: RANGANAYAGUY | C66: Eloise | D66: F | E66: 2006-11-04 | G66: 602 | H66: BENJAMINE | I66: 00:15:28 | J66: 65
A67: 60559 | B67: LEPERLIER | C67: Colleen | D67: F | E67: 2006-01-14 | G67: 605 | H67: BENJAMINE | I67: 00:15:33 | J67: 66
A68: 60562 | B68: SEVOU | C68: Liliana | D68: F | E68: 2006-11-23 | G68: 605 | H68: BENJAMINE | I68: 00:15:37 | J68: 67
A69: 60951 | B69: BLAGNAC | C69: Chloé | D69: F | E69: 2006-09-29 | G69: 609 | H69: BENJAMINE | I69: 00:15:55 | J69: 68
A70: 61158 | B70: JOUAN | C70: Marie Séverine | D70: F | E70: 2006-05-30 | G70: 611 | H70: BENJAMINE | I70: 00:15:56 | J70: 69
A71: 61159 | B71: MARIE | C71: Stella | D71: F | E71: 2006-06-29 | G71: 611 | H71: BENJAMINE | I71: 00:16:03 | J71: 70
A72: 61160 | B72: PAPOU | C72: Aurélia | D72: F | E72: 2006-04-11 | G72: 611 | H72: BENJAMINE | I72: 00:16:06 | J72: 71
A73: 60761 | B73: GOINDEN | C73: Sandy | D73: F | E73: 2005-03-17 | G73: 607 | H73: BENJAMINE | I73: 00:16:07 | J73: 72
A74: 61252 | B74: IGOUF | C74: Néoline | D74: F | E74: 2006-11-26 | G74: 612 | H74: BENJAMINE | I74: 00:16:09 | J74: 73
A75: 10603 | B75: PAYET | C75: Audrey | G75: 603 | H75: PARRAINAGE | I75: 00:16:14 | J75: 74
A76: 60652 | B76: ALIZE | C76: Shamira | D76: F | E76: 2006-06-22 | G76: 606 | H76: BENJAMINE | I76: 00:16:16 | J76: 75
A77: 60359 | B77: MAILLOT | C77: Marie Fany | D77: F | E77: 2006-01-07 | G77: 603 | H77: BENJAMINE | I77: 00:16:21 | J77: 76
A78: 60959 | B78: LAFABLE | C78: Marie-Camilla | D78: F | E78: 2005-04-26 | G78: 609 | H78: BENJAMINE | I78: 00:16:31 | J78: 77
A79: 60855 | B79: GOSSARD | C79: Briancy | D79: F | E79: 2006-07-06 | G79: 608 | H79: BENJAMINE | I79: 00:16:34 | J79: 78
A80: 60861 | B80: PONIN | C80: Marie | D80: F | E80: 2006-02-24 | G80: 608 | H80: BENJAMINE | I80: 00:16:37 | J80: 79
A81: 61056 | B81: HOARAU | C81: Shannah | D81: F | E81: 2006-12-22 | G81: 610 | H81: BENJAMINE | I81: 00:16:39 | J81: 80
A82: 60661 | B82: TURPIN | C82: Ludivine | D82: F | E82: 2006-07-27 | G82: 606 | H82: BENJAMINE | I82: 00:16:44 | J82: 81
A83: 60356 | B83: DIJOUX | C83: Amelie | D83: F | E83: 2006-04-29 | G83: 603 | H83: BENJAMINE | I83: 00:16:45 | J83: 82
A84: 60763 | B84: RAYMOND | C84: Léane | D84: F | E84: 2006-12-05 | G84: 607 | H84: BENJAMINE | I84: 00:16:49 | J84: 83
A85: 60859 | B85: NADAL | C85: Laurine | D85: F | E85: 2005-01-17 | G85: 608 | H85: BENJAMINE | I85: 00:16:50 | J85: 84
A86: 61063 | B86: RAYMOND | C86: Mélyna | D86: F | E86: 2006-10-15 | G86: 610 | H86: BENJAMINE | I86: 00:16:52 | J86: 85
A87: 61057 | B87: ISSILAME | C87: Emeline | D87: F | E87: 2006-02-16 | G87: 610 | H87: BENJAMINE | I87: 00:16:53 | J87: 86
A88: 61156 | B88: IMARY-ISSARAMBE | C88: Emilie | D88: F | E88: 2006-01-21 | G88: 611 | H88: BENJAMINE | I88: 00:16:58 | J88: 87
A89: 60758 | B89: DIJOUX | C89: Emma | D89: F | E89: 2006-03-08 | G89: 607 | H89: BENJAMINE | I89: 00:16:59 | J89: 88
A90: 61253 | B90: LOISON | C90: Elsa | D90: F | E90: 2006-03-31 | G90: 612 | H90: BENJAMINE | I90: 00:17:08 | J90: 89
A91: 61257 | B91: PAKIRCHY | C91: Marissa | D91: F | E91: 2005-05-20 | G91: 612 | H91: BENJAMINE | I91: 00:17:09 | J91: 90
A92: 60753 | B92: BEGUE | C92: Séréna | D92: F | E92: 2005-05-20 | G92: 607 | H92: BENJAMINE | I92: 00:17:10 | J92: 91
A93: 60457 | B93: LAMBLADIERE | C93: Alicia | D93: F | E93: 2005-04-15 | G93: 604 | H93: BENJAMINE | I93: 00:17:16 | J93: 92
A94: 60854 | B94: BOISEDU | C94: Anais | D94: F | E94: 2005-12-07 | G94: 608 | H94: BENJAMINE | I94: 00:17:17 | J94: 93
A95: 60452 | B95: DALLEAU | C95: Aurélie | D95: F | E95: 2006-02-25 | G95: 604 | H95: BENJAMINE | I95: 00:17:22 | J95: 94
A96: 60754 | B96: BOYER | C96: Océane | D96: F | E96: 2006-02-27 | G96: 607 | H96: BENJAMINE | I96: 00:17:24 | J96: 95
A97: 61254 | B97: MARTIN - TANDRAYEN | C97: Andjanie | D97: F | E97: 2006-11-29 | G97: 612 | H97: BENJAMINE | I97: 00:17:25 | J97: 96
A98: 61059 | B98: LESTE | C98: Kayliah | D98: F | E98: 2006-09-16 | G98: 610 | H98: BENJAMINE | I98: 00:17:27 | J98: 97
A99: 60558 | B99: LATCHIMY | C99: Abigaël | D99: F | E99: 2006-09-14 | G99: 605 | H99: BENJAMINE | I99: 00:17:32 | J99: 98
A100: 60654 | B100: GANNE | C100: Eleanna | D100: F | E100: 2006-06-13 | G100: 606 | H100: BENJAMINE | I100: 00:17:38 | J100: 99
A101: 60954 | B101: FENELON | C101: Chloé | D101: F | E101: 2006-09-07 | G101: 609 | H101: BENJAMINE | I101: 00:17:50 | J101: 100
A102: 61157 | B102: JANAC | C102: Noëllia | D102: F | E102: 2006-09-07 | G102: 611 | H102: BENJAMINE | I102: 00:17:52 | J102: 101
A103: 60357 | B103: GAILLAC | C103: Jénaie | D103: F | E103: 2006-08-02 | G103: 603 | H103: BENJAMINE | I103: 00:17:53 | J103: 102
A104: 60760 | B104: FELIX | C104: Kiérane | D104: F | E104: 2006-04-09 | G104: 607 | H104: BENJAMINE | I104: 00:17:55 | J104: 103
A105: 60757 | B105: DEBY | C105: Flora | D105: F | E105: 2006-08-19 | G105: 607 | H105: BENJAMINE | I105: 00:18:00 | J105: 104
A106: 60655 | B106: GOVINDIN | C106: Annaëlle | D106: F | E106: 2006-09-09 | G106: 606 | H106: BENJAMINE | I106: 00:18:13 | J106: 105
A107: 61255 | B107: MOUHIDDINE | C107: Miroiya | D107: F | E107: 2005-04-23 | G107: 612 | H107: BENJAMINE | I107: 00:18:15 | J107: 106
A108: 60152 | B108: GRONDIN | C108: Audrey | D108: F | E108: 2005-11-13 | G108: 601 | H108: BENJAMINE | I108: 00:18:18 | J108: 107
A109: 60352 | B109: BOYER | C109: Laurianne | D109: F | E109: 2006-09-23 | G109: 603 | H109: BENJAMINE | I109: 00:18:23 | J109: 108
A110: 60557 | B110: JEAN- BAPTISTE | C110: Maëva | D110: F | E110: 2006-01-12 | G110: 605 | H110: BENJAMINE | I110: 00:18:25 | J110: 109
A111: 60561 | B111: NDAVA | C111: Salama | D111: F | E111: 2006-09-27 | G111: 605 | H111: BENJAMINE | I111: 00:18:27 | J111: 110
A112: 61161 | B112: RODES | C112: Alana | D112: F | E112: 2006-09-14 | G112: 611 | H112: BENJAMINE | I112: 00:19:17 | J112: 111

Sheet 6èGarçons
A1: DOSSARD | B1: NOM | C1: PRENOM | D1: SEXE | E1: DATENAISS | F1: NOMETABL | G1: CLASSE | H1: CATEGORIE | I1: TEMPS | J1: PLACE | O1: Classe | P1: Classement des 5 premiers coureurs de chaque classe | U1: total
A2: 60904 | B2: CONJAN | C2: Krishnaradja | D2: M | E2: 2006-10-14 | G2: 609 | H2: BENJAMIN | I2: 00:08:40 | J2: 1 | N2: 1er | O2: 605 | P2: 8 | Q2: 10 | R2: 12 | S2: 18 | T2: 19 | U2: =IF(OR(ISBLANK(P2),ISBLANK(Q2),ISBLANK(R2),ISBLANK(S2),ISBLANK(T2)),"< 5 coureurs",SUM(P2:T2)) -> 67
A3: 60808 | B3: SENY-COUTY | C3: Syven | D3: M | E3: 2006-12-24 | G3: 608 | H3: BENJAMIN | I3: 00:08:42 | J3: 2 | N3: 2ème | O3: 609 | P3: 1 | Q3: 3 | R3: 17 | S3: 26 | T3: 30 | U3: =IF(OR(ISBLANK(P3),ISBLANK(Q3),ISBLANK(R3),ISBLANK(S3),ISBLANK(T3)),"< 5 coureurs",SUM(P3:T3)) -> 77
A4: 60905 | B4: FELIX | C4: Evan | D4: M | E4: 2006-12-31 | G4: 609 | H4: BENJAMIN | I4: 00:08:44 | J4: 3 | N4: 3ème | O4: 607 | P4: 5 | Q4: 14 | R4: 15 | S4: 20 | T4: 29 | U4: =IF(OR(ISBLANK(P4),ISBLANK(Q4),ISBLANK(R4),ISBLANK(S4),ISBLANK(T4)),"< 5 coureurs",SUM(P4:T4)) -> 83
A5: 60601 | B5: BEGUE | C5: Enzo | D5: M | E5: 2006-02-19 | G5: 606 | H5: BENJAMIN | I5: 00:09:06 | J5: 4 | N5: 4ème | O5: 612 | P5: 11 | Q5: 21 | R5: 22 | S5: 34 | T5: 39 | U5: =IF(OR(ISBLANK(P5),ISBLANK(Q5),ISBLANK(R5),ISBLANK(S5),ISBLANK(T5)),"< 5 coureurs",SUM(P5:T5)) -> 127
A6: 60705 | B6: MAHANO | C6: Giovani | D6: M | E6: 2004-10-29 | F6: ULIS | G6: 607 | H6: MINIME | I6: 00:09:07 | J6: 5 | N6: 5ème | O6: 603 | P6: 9 | Q6: 40 | R6: 42 | S6: 45 | T6: 54 | U6: =IF(OR(ISBLANK(P6),ISBLANK(Q6),ISBLANK(R6),ISBLANK(S6),ISBLANK(T6)),"< 5 coureurs",SUM(P6:T6)) -> 190
A7: 60107 | B7: SINALATCHIMY | C7: Lucas | D7: M | E7: 2006-04-14 | G7: 601 | H7: BENJAMIN | I7: 00:09:44 | J7: 6 | N7: 6ème | O7: 608 | P7: 2 | Q7: 25 | R7: 49 | S7: 53 | T7: 61 | U7: =IF(OR(ISBLANK(P7),ISBLANK(Q7),ISBLANK(R7),ISBLANK(S7),ISBLANK(T7)),"< 5 coureurs",SUM(P7:T7)) -> 190
A8: 60203 | B8: DJANFFARI | C8: El Habibou | D8: M | E8: 2005-05-10 | G8: 602 | H8: BENJAMIN | I8: 00:09:54 | J8: 7 | N8: 7ème | O8: 606 | P8: 4 | Q8: 47 | R8: 48 | S8: 50 | T8: 51 | U8: =IF(OR(ISBLANK(P8),ISBLANK(Q8),ISBLANK(R8),ISBLANK(S8),ISBLANK(T8)),"< 5 coureurs",SUM(P8:T8)) -> 200
A9: 60511 | B9: MOIRABOU | C9: Kévin | D9: M | E9: 2006-08-11 | G9: 605 | H9: BENJAMIN | I9: 00:09:56 | J9: 8 | N9: 8ème | O9: 601 | P9: 6 | Q9: 43 | R9: 44 | S9: 52 | T9: 56 | U9: =IF(OR(ISBLANK(P9),ISBLANK(Q9),ISBLANK(R9),ISBLANK(S9),ISBLANK(T9)),"< 5 coureurs",SUM(P9:T9)) -> 201
A10: 60311 | B10: TAFA | C10: Gaël | D10: M | E10: 2006-03-09 | G10: 603 | H10: BENJAMIN | I10: 00:10:10 | J10: 9 | N10: 9ème | O10: 604 | P10: 13 | Q10: 16 | R10: 23 | S10: 75 | T10: 83 | U10: =IF(OR(ISBLANK(P10),ISBLANK(Q10),ISBLANK(R10),ISBLANK(S10),ISBLANK(T10)),"< 5 coureurs",SUM(P10:T10)) -> 210
A11: 60505 | B11: DEVILLE | C11: Quentin | D11: M | E11: 2006-07-11 | G11: 605 | H11: BENJAMIN | I11: 00:10:12 | J11: 10 | N11: 10ème | O11: 611 | P11: 28 | Q11: 35 | R11: 41 | S11: 62 | T11: 63 | U11: =IF(OR(ISBLANK(P11),ISBLANK(Q11),ISBLANK(R11),ISBLANK(S11),ISBLANK(T11)),"< 5 coureurs",SUM(P11:T11)) -> 229
A12: 61213 | B12: PLANTE | C12: Kendjee | D12: M | E12: 2005-05-23 | G12: 612 | H12: BENJAMIN | I12: 00:10:14 | J12: 11 | N12: 11ème | O12: 610 | P12: 27 | Q12: 32 | R12: 33 | S12: 70 | T12: 73 | U12: =IF(OR(ISBLANK(P12),ISBLANK(Q12),ISBLANK(R12),ISBLANK(S12),ISBLANK(T12)),"< 5 coureurs",SUM(P12:T12)) -> 235
A13: 60502 | B13: AROULAPIN | C13: Kyllian | D13: M | E13: 2006-07-25 | G13: 605 | H13: BENJAMIN | I13: 00:10:16 | J13: 12 | N13: 12ème | O13: 602 | P13: 7 | Q13: 78 | R13: 85 | S13: 91 | T13: 95 | U13: =IF(OR(ISBLANK(P13),ISBLANK(Q13),ISBLANK(R13),ISBLANK(S13),ISBLANK(T13)),"< 5 coureurs",SUM(P13:T13)) -> 356
A14: 60403 | B14: ANQUIBOU | C14: Erwan | D14: M | E14: 2006-12-19 | G14: 604 | H14: BENJAMIN | I14: 00:10:17 | J14: 13
A15: 60711 | B15: THIONVILLE | C15: Enzo | D15: M | E15: 2006-08-18 | G15: 607 | H15: BENJAMIN | I15: 00:10:19 | J15: 14 | N15: Médailles d'or | P15: 605
A16: 60701 | B16: IBRAHIME | C16: Ambdillah | D16: M | E16: 2006-12-02 | G16: 607 | H16: BENJAMIN | I16: 00:10:40 | J16: 15
A17: 60409 | B17: LESTE | C17: Enzo | D17: M | E17: 2006-04-08 | G17: 604 | H17: BENJAMIN | I17: 00:10:43 | J17: 16 | M17: MOIRABOU | O17: DEVILLE | Q17: AROULAPIN | S17: FOUSSANE | U17: MBINGA
A18: 60903 | B18: BANCALIN | C18: Djanaël | D18: M | E18: 2006-01-09 | G18: 609 | H18: BENJAMIN | I18: 00:10:46 | J18: 17 | M18: Kévin | O18: Quentin | Q18: Kyllian | S18: Romain | U18: Ayache
A19: 60507 | B19: FOUSSANE | C19: Romain | D19: M | E19: 2006-06-08 | G19: 605 | H19: BENJAMIN | I19: 00:10:48 | J19: 18
A20: 60509 | B20: MBINGA | C20: Ayache | D20: M | E20: 2006-12-06 | G20: 605 | H20: BENJAMIN | I20: 00:10:50 | J20: 19 | N20: Médailles d'argent | P20: 609
A21: 60704 | B21: LESTE | C21: Miguel | D21: M | E21: 2006-02-10 | G21: 607 | H21: BENJAMIN | I21: 00:11:06 | J21: 20
A22: 61209 | B22: CREPU | C22: Kyan | D22: M | E22: 2006-03-28 | G22: 612 | H22: BENJAMIN | I22: 00:11:07 | J22: 21 | M22: CONJAN | O22: FELIX | Q22: BANCALIN | S22: ARMOUGOM AYNOU | U22: YAYA TOLSY
A23: 61203 | B23: ARMOET | C23: Evan | D23: M | E23: 2006-06-30 | G23: 612 | H23: BENJAMIN | I23: 00:11:11 | J23: 22 | M23: Krishnaradja | O23: Evan | Q23: Djanaël | S23: Matéo | U23: Alexandre
A24: 60411 | B24: REVASK-RABOULA | C24: Emerick | D24: M | E24: 2006-05-31 | G24: 604 | H24: BENJAMIN | I24: 00:11:13 | J24: 23
A25: 60508 | B25: LESTE | C25: Pascal | D25: M | E25: 2006-01-30 | G25: 605 | H25: BENJAMIN | I25: 00:11:20 | J25: 24 | N25: Médailles de bronze | P25: 607
A26: 60809 | B26: VAÏTINADAPOULLE | C26: Noah | D26: M | E26: 2005-04-22 | G26: 608 | H26: BENJAMIN | I26: 00:11:27 | J26: 25
A27: 60902 | B27: ARMOUGOM AYNOU | C27: Matéo | D27: M | E27: 2006-06-16 | G27: 609 | H27: BENJAMIN | I27: 00:11:28 | J27: 26 | M27: MAHANO | O27: THIONVILLE | Q27: IBRAHIME | S27: LESTE | U27: PAYET
A28: 61004 | B28: CERNOT | C28: Henson | D28: M | E28: 2006-04-08 | G28: 610 | H28: BENJAMIN | I28: 00:11:52 | J28: 27 | M28: Giovani | O28: Enzo | Q28: Ambdillah | S28: Miguel | U28: Evan
A29: 61103 | B29: MARTIAL | C29: Ulrich | D29: M | E29: 2006-11-29 | G29: 611 | H29: BENJAMIN | I29: 00:11:53 | J29: 28
A30: 60707 | B30: PAYET | C30: Evan | D30: M | E30: 2006-11-29 | G30: 607 | H30: BENJAMIN | I30: 00:11:54 | J30: 29
A31: 60912 | B31: YAYA TOLSY | C31: Alexandre | D31: M | E31: 2006-06-15 | G31: 609 | H31: BENJAMIN | I31: 00:12:01 | J31: 30
A32: 60907 | B32: IMAZOUTE-ISSIMA | C32: Joachim | D32: M | E32: 2006-07-09 | G32: 609 | H32: BENJAMIN | I32: 00:12:06 | J32: 31
A33: 61003 | B33: CATEMA | C33: Liévan | D33: M | E33: 2006-08-30 | G33: 610 | H33: BENJAMIN | I33: 00:12:11 | J33: 32
A34: 61005 | B34: CLAIN | C34: Logan | D34: M | E34: 2006-06-23 | G34: 610 | H34: BENJAMIN | I34: 00:12:12 | J34: 33
A35: 61201 | B35: AMIRBACASSE MOHADI | C35: Emerick | D35: M | E35: 2006-07-23 | G35: 612 | H35: BENJAMIN | I35: 00:12:59 | J35: 34
A36: 61106 | B36: PAYET | C36: Kérian | D36: M | E36: 2005-08-25 | G36: 611 | H36: BENJAMIN | I36: 00:13:05 | J36: 35
A37: 60503 | B37: BEN AHAMED | C37: Fadel | D37: M | E37: 2005-11-27 | G37: 605 | H37: BENJAMIN | I37: 00:13:08 | J37: 36
A38: 60908 | B38: LEBON | C38: Kyllian | D38: M | E38: 2006-08-25 | G38: 609 | H38: BENJAMIN | I38: 00:13:09 | J38: 37
A39: 60510 | B39: MOHAMED | C39: Kayed | D39: M | E39: 2005-03-28 | F39: ULIS | G39: 605 | H39: BENJAMIN | I39: 00:13:10 | J39: 38
A40: 61212 | B40: PERRAULT | C40: Davy | D40: M | E40: 2006-11-22 | G40: 612 | H40: BENJAMIN | I40: 00:13:57 | J40: 39
A41: 60301 | B41: BAËTI | C41: Rafaël | D41: M | E41: 2006-11-22 | G41: 603 | H41: BENJAMIN | I41: 00:13:58 | J41: 40
A42: 61108 | B42: PROVENCHERE | C42: Nicolas | D42: M | E42: 2007-01-26 | G42: 611 | H42: BENJAMIN | I42: 00:14:00 | J42: 41
A43: 60303 | B43: CASIMIR | C43: Yannick | D43: M | E43: 2006-07-13 | G43: 603 | H43: BENJAMIN | I43: 00:14:01 | J43: 42
A44: 60108 | B44: TAVERNIER | C44: Jordan | D44: M | E44: 2006-09-20 | G44: 601 | H44: BENJAMIN | I44: 00:14:03 | J44: 43
A45: 60101 | B45: ALI | C45: Jovani | D45: M | E45: 2005-11-22 | G45: 601 | H45: BENJAMIN | I45: 00:14:05 | J45: 44
A46: 60307 | B46: M'DOIHOMA | C46: David | D46: M | E46: 2006-05-29 | G46: 603 | H46: BENJAMIN | I46: 00:14:07 | J46: 45
A47: 60512 | B47: VINGUETAMA-PERIANAGOM | C47: Raoul | D47: M | E47: 2006-09-20 | G47: 605 | H47: BENJAMIN | I47: 00:14:09 | J47: 46
A48: 60611 | B48: THIANCOURT | C48: Théo | D48: M | E48: 2006-06-13 | G48: 606 | H48: BENJAMIN | I48: 00:14:11 | J48: 47
A49: 60608 | B49: PAPAMA-COUTIAMA | C49: Mathias | D49: M | E49: 2006-03-01 | G49: 606 | H49: BENJAMIN | I49: 00:14:12 | J49: 48
A50: 60806 | B50: MAILLOT | C50: Evan | D50: M | E50: 2006-06-19 | G50: 608 | H50: BENJAMIN | I50: 00:14:13 | J50: 49
A51: 60657 | B51: MOUSSA ALI | C51: Hamsa | D51: F | E51: 2005-02-04 | G51: 606 | H51: BENJAMINE | I51: 00:14:18 | J51: 50
A52: 60607 | B52: LEPERLIER | C52: Kalahan | D52: M | E52: 2006-10-04 | G52: 606 | H52: BENJAMIN | I52: 00:14:19 | J52: 51
A53: 60103 | B53: MATEYA | C53: Dylan | D53: M | E53: 2005-10-17 | G53: 601 | H53: BENJAMIN | I53: 00:14:21 | J53: 52
A54: 60803 | B54: DALLEAU | C54: Evan | D54: M | E54: 2006-05-05 | G54: 608 | H54: BENJAMIN | I54: 00:14:22 | J54: 53
A55: 60302 | B55: BRIGY-CATRONIA | C55: Kéran | D55: M | E55: 2006-03-11 | G55: 603 | H55: BENJAMIN | I55: 00:14:23 | J55: 54
A56: 60906 | B56: GENTAZ | C56: Mathéo | D56: M | E56: 2006-12-22 | G56: 609 | H56: BENJAMIN | I56: 00:14:37 | J56: 55
A57: 60110 | B57: TECHER | C57: Roman | D57: M | E57: 2005-01-15 | G57: 601 | H57: BENJAMIN | I57: 00:14:38 | J57: 56
A58: 60609 | B58: PARAVEMAN | C58: Lenny | D58: M | E58: 2006-08-21 | G58: 606 | H58: BENJAMIN | I58: 00:14:40 | J58: 57
A59: 61211 | B59: MALET | C59: Quentin | D59: M | E59: 2006-04-21 | G59: 612 | H59: BENJAMIN | I59: 00:14:42 | J59: 58
A60: 60310 | B60: ROMELY | C60: Warren | D60: M | E60: 2006-09-20 | G60: 603 | H60: BENJAMIN | I60: 00:14:44 | J60: 59
A61: 60604 | B61: GRONDIN | C61: Yohan | D61: M | E61: 2006-04-29 | G61: 606 | H61: BENJAMIN | I61: 00:14:45 | J61: 60
A62: 60804 | B62: DOUYERE | C62: Yvann | D62: M | E62: 2005-02-28 | G62: 608 | H62: BENJAMIN | I62: 00:14:54 | J62: 61
A63: 61110 | B63: SINAN | C63: Rohann | D63: M | E63: 2005-09-14 | G63: 611 | H63: BENJAMIN | I63: 00:15:08 | J63: 62
A64: 61101 | B64: BREZE | C64: Lucas | D64: M | E64: 2006-04-13 | G64: 611 | H64: BENJAMIN | I64: 00:15:09 | J64: 63
A65: 61111 | B65: SOILIHI | C65: Johan | D65: M | E65: 2005-11-17 | G65: 611 | H65: BENJAMIN | I65: 00:15:10 | J65: 64
A66: 60306 | B66: GOURVILLE | C66: Hosman | D66: M | E66: 2006-11-17 | G66: 603 | H66: BENJAMIN | I66: 00:15:12 | J66: 65
A67: 60910 | B67: PERIANAYAGOM | C67: Thomas | D67: M | E67: 2006-02-05 | G67: 609 | H67: BENJAMIN | I67: 00:15:14 | J67: 66
A68: 60901 | B68: ADOLPHE--VENEROSY | C68: Grégory | D68: M | E68: 2006-08-25 | G68: 609 | H68: BENJAMIN | I68: 00:15:15 | J68: 67
A69: 60911 | B69: SAVRIAMA | C69: Lucas | D69: M | E69: 2006-09-22 | G69: 609 | H69: BENJAMIN | I69: 00:15:17 | J69: 68
A70: 60909 | B70: MAILLOT | C70: Lucas | D70: M | E70: 2006-02-10 | G70: 609 | H70: BENJAMIN | I70: 00:15:18 | J70: 69
A71: 61007 | B71: GRONDIN | C71: Alexandre | D71: M | E71: 2006-01-24 | G71: 610 | H71: BENJAMIN | I71: 00:15:22 | J71: 70
A72: 60304 | B72: COLI-JUN-ONG | C72: Wilson | D72: M | E72: 2006-08-23 | G72: 603 | H72: BENJAMIN | I72: 00:15:23 | J72: 71
A73: 61105 | B73: NARASSAMY VIRAMA | C73: Hugo | D73: M | E73: 2006-10-08 | G73: 611 | H73: BENJAMIN | I73: 00:15:29 | J73: 72
A74: 61001 | B74: APPAVOU | C74: Maxence | D74: M | E74: 2006-10-06 | G74: 610 | H74: BENJAMIN | I74: 00:15:30 | J74: 73
A75: 61006 | B75: COTAYA | C75: Raphael | D75: M | E75: 2006-04-07 | G75: 610 | H75: BENJAMIN | I75: 00:15:32 | J75: 74
A76: 60412 | B76: ROBERT | C76: Lucas | D76: M | E76: 2006-10-08 | G76: 604 | H76: BENJAMIN | I76: 00:15:33 | J76: 75
A77: 60706 | B77: MCHINDRA | C77: Ambdi | D77: M | E77: 2005-05-25 | G77: 607 | H77: BENJAMIN | I77: 00:15:37 | J77: 76
A78: 60305 | B78: DIJOUX | C78: Thomas | D78: M | E78: 2006-01-07 | G78: 603 | H78: BENJAMIN | I78: 00:15:38 | J78: 77
A79: 60207 | B79: IBRAHIM | C79: Ayad-Ibn-Djadi | D79: M | E79: 2005-01-06 | G79: 602 | H79: BENJAMIN | I79: 00:15:47 | J79: 78
A80: 60106 | B80: ROMON | C80: Mattheo | D80: M | E80: 2005-06-22 | G80: 601 | H80: BENJAMIN | I80: 00:15:51 | J80: 79
A81: 60104 | B81: MOEGNE | C81: Youlhadje | D81: M | E81: 2005-06-19 | G81: 601 | H81: BENJAMIN | I81: 00:15:57 | J81: 80
A82: 60506 | B82: DOUYERE | C82: Roman | D82: M | E82: 2006-06-04 | G82: 605 | H82: BENJAMIN | I82: 00:16:00 | J82: 81
A83: 61208 | B83: BOYER | C83: Lucas | D83: M | E83: 2006-02-22 | G83: 612 | H83: BENJAMIN | I83: 00:16:01 | J83: 82
A84: 60404 | B84: BANCALIN | C84: Benjy | D84: M | E84: 2005-05-09 | G84: 604 | H84: BENJAMIN | I84: 00:16:10 | J84: 83
A85: 60801 | B85: BELIM | C85: Alban | D85: M | E85: 2006-12-27 | G85: 608 | H85: BENJAMIN | I85: 00:16:17 | J85: 84
A86: 60210 | B86: MOUTOUSSAMY | C86: Bradley J Fred | D86: M | E86: 2005-05-01 | G86: 602 | H86: BENJAMIN | I86: 00:16:21 | J86: 85
A87: 60410 | B87: MNEMOSYME--DIJOUX | C87: Anthony | D87: M | E87: 2006-03-09 | G87: 604 | H87: BENJAMIN | I87: 00:16:30 | J87: 86
A88: 61210 | B88: HOAREAU | C88: Isaac | D88: M | E88: 2006-11-06 | G88: 612 | H88: BENJAMIN | I88: 00:16:35 | J88: 87
A89: 61112 | B89: TURPIN | C89: Devan | D89: M | E89: 2006-01-11 | G89: 611 | H89: BENJAMIN | I89: 00:16:35 | J89: 88
A90: 61204 | B90: ATCHIAMA-ERAPA | C90: Anthony | D90: M | E90: 2006-09-18 | G90: 612 | H90: BENJAMIN | I90: 00:16:37 | J90: 89
A91: 60405 | B91: BORIGNIOL | C91: Gaëtan | D91: M | E91: 2006-08-09 | G91: 604 | H91: BENJAMIN | I91: 00:16:39 | J91: 90
A92: 60212 | B92: VALLIAMEE | C92: Dylan | D92: M | E92: 2006-05-05 | G92: 602 | H92: BENJAMIN | I92: 00:16:41 | J92: 91
A93: 60407 | B93: FOUMBO-BENAO | C93: Kenny | D93: M | E93: 2006-07-22 | G93: 604 | H93: BENJAMIN | I93: 00:16:42 | J93: 92
A94: 61202 | B94: ANGAMA | C94: Darren | D94: M | E94: 2006-12-28 | G94: 612 | H94: BENJAMIN | I94: 00:16:46 | J94: 93
A95: 60610 | B95: PAUSE | C95: Esteban | D95: M | E95: 2006-09-27 | G95: 606 | H95: BENJAMIN | I95: 00:16:47 | J95: 94
A96: 60205 | B96: DUBOURG | C96: Julien | D96: M | E96: 2005-11-16 | G96: 602 | H96: BENJAMIN | I96: 00:16:49 | J96: 95
A97: 61008 | B97: POINY | C97: Ethan | D97: M | E97: 2006-06-15 | G97: 610 | H97: BENJAMIN | I97: 00:17:02 | J97: 96
A98: 60202 | B98: DAMOUR | C98: Thomas | D98: M | E98: 2005-12-07 | G98: 602 | H98: BENJAMIN | I98: 00:17:04 | J98: 97
A99: 60308 | B99: MOUTALE | C99: Yorann | D99: M | E99: 2006-05-03 | G99: 603 | H99: BENJAMIN | I99: 00:17:05 | J99: 98
A100: 61206 | B100: BANCALIN | C100: Kheïry | D100: M | E100: 2006-08-01 | G100: 612 | H100: BENJAMIN | I100: 00:17:10 | J100: 99
A101: 60401 | B101: AIMART | C101: Dany | D101: M | E101: 2005-08-05 | G101: 604 | H101: BENJAMIN | I101: 00:17:11 | J101: 100
A102: 60201 | B102: AROULAPIN | C102: Gayge | D102: M | E102: 2005-02-20 | G102: 602 | H102: BENJAMIN | I102: 00:17:31 | J102: 101
A103: 60807 | B103: SELLAMBAYE | C103: Darryl | D103: M | E103: 2006-04-18 | G103: 608 | H103: BENJAMIN | I103: 00:17:34 | J103: 102
A104: 60309 | B104: PAUCHET-BOCA | C104: Huroy | D104: M | E104: 2006-06-06 | G104: 603 | H104: BENJAMIN | I104: 00:17:36 | J104: 103
A105: 61205 | B105: BALAGA | C105: Mathieu | D105: M | E105: 2005-12-16 | G105: 612 | H105: BENJAMIN | I105: 00:17:38 | J105: 104
A106: 60709 | B106: POUGARY | C106: Alfred | D106: M | E106: 2006-10-02 | G106: 607 | H106: BENJAMIN | I106: 00:17:42 | J106: 105
A107: 60208 | B107: M'BALIA | C107: Idriss | D107: M | E107: 2005-10-06 | G107: 602 | H107: BENJAMIN | I107: 00:17:47 | J107: 106
A108: 60504 | B108: BLAIN | C108: Kyliann | D108: M | E108: 2006-12-12 | G108: 605 | H108: BENJAMIN | I108: 00:17:51 | J108: 107
A109: 60710 | B109: POUNIANDY | C109: Yann | D109: M | E109: 2006-10-03 | G109: 607 | H109: BENJAMIN | I109: 00:17:57 | J109: 108
A110: 61207 | B110: BEGUE | C110: Lucas | D110: M | E110: 2006-05-03 | G110: 612 | H110: BENJAMIN | I110: 00:18:06 | J110: 109
A111: 60603 | B111: FURCY | C111: Florent | D111: M | E111: 2005-01-18 | G111: 606 | H111: BENJAMIN | I111: 00:18:57 | J111: 110
A112: 60602 | B112: BENARD | C112: Hans | D112: M | E112: 2004-03-15 | F112: ULIS | G112: 606 | H112: MINIME | I112: 00:19:00 | J112: 111
A113: 60805 | B113: IMAHO-IVOU | C113: Kéran | D113: M | E113: 2005-04-02 | G113: 608 | H113: BENJAMIN | I113: 00:19:00 | J113: 112
A114: 60206 | B114: ETHEVE | C114: Iglory | D114: M | E114: 2006-02-14 | G114: 602 | H114: BENJAMIN | I114: 00:20:16 | J114: 113
A115: 60402 | B115: ANDY | C115: Samuel | D115: M | E115: 2006-03-17 | G115: 604 | H115: BENJAMIN | I115: 00:20:17 | J115: 114
A116: 61107 | B116: POTHIN | C116: Vincent | D116: M | E116: 2006-09-10 | G116: 611 | H116: BENJAMIN | I116: 00:20:26 | J116: 115

Sheet 5èFilles
A1: DOSSARD | B1: NOM | C1: PRENOM | D1: SEXE | E1: DATENAISS | F1: NOMETABL | G1: CLASSE | H1: CATEGORIE | I1: TEMPS | J1: PLACE | O1: Classe | P1: Classement des 5 premières coureuses de chaque classe | U1: total
A2: 51053 | B2: ANTIER | C2: Britanie | D2: F | E2: 2005-09-26 | G2: 510 | H2: BENJAMINE | I2: 00:08:27 | J2: 1 | N2: 1er | O2: 503 | P2: 3 | Q2: 4 | R2: 6 | S2: 14 | T2: 15 | U2: =IF(OR(ISBLANK(P2),ISBLANK(Q2),ISBLANK(R2),ISBLANK(S2),ISBLANK(T2)),"< 5 coureurs",SUM(P2:T2)) -> 42
A3: 50862 | B3: NIACAVERE | C3: Prudence | D3: F | E3: 2005-08-15 | G3: 508 | H3: BENJAMINE | I3: 00:09:33 | J3: 2 | N3: 2ème | O3: 506 | P3: 8 | Q3: 9 | R3: 12 | S3: 19 | T3: 25 | U3: =IF(OR(ISBLANK(P3),ISBLANK(Q3),ISBLANK(R3),ISBLANK(S3),ISBLANK(T3)),"< 5 coureurs",SUM(P3:T3)) -> 73
A4: 50357 | B4: ISSOUFI | C4: Saouda | D4: F | E4: 2005-10-07 | G4: 503 | H4: BENJAMINE | I4: 00:09:34 | J4: 3 | N4: 3ème | O4: 508 | P4: 2 | Q4: 11 | R4: 13 | S4: 23 | T4: 26 | U4: =IF(OR(ISBLANK(P4),ISBLANK(Q4),ISBLANK(R4),ISBLANK(S4),ISBLANK(T4)),"< 5 coureurs",SUM(P4:T4)) -> 75
A5: 50359 | B5: MANGATA | C5: Kavindra | D5: F | E5: 2005-07-04 | G5: 503 | H5: BENJAMINE | I5: 00:10:15 | J5: 4 | N5: 4ème | O5: 510 | P5: 1 | Q5: 16 | R5: 17 | S5: 21 | T5: 27 | U5: =IF(OR(ISBLANK(P5),ISBLANK(Q5),ISBLANK(R5),ISBLANK(S5),ISBLANK(T5)),"< 5 coureurs",SUM(P5:T5)) -> 82
A6: 50955 | B6: ITEMA | C6: Emmy | D6: F | E6: 2005-12-14 | G6: 509 | H6: BENJAMINE | I6: 00:10:16 | J6: 5 | N6: 5ème | O6: 507 | P6: 20 | Q6: 22 | R6: 24 | S6: 35 | T6: 36 | U6: =IF(OR(ISBLANK(P6),ISBLANK(Q6),ISBLANK(R6),ISBLANK(S6),ISBLANK(T6)),"< 5 coureurs",SUM(P6:T6)) -> 137
A7: 50354 | B7: GOSSARD | C7: Marie-Loena | D7: F | E7: 2006-06-22 | G7: 503 | H7: BENJAMINE | I7: 00:10:32 | J7: 6 | N7: 6ème | O7: 509 | P7: 5 | Q7: 32 | R7: 34 | S7: 49 | T7: 53 | U7: =IF(OR(ISBLANK(P7),ISBLANK(Q7),ISBLANK(R7),ISBLANK(S7),ISBLANK(T7)),"< 5 coureurs",SUM(P7:T7)) -> 173
A8: 51151 | B8: ADEKALOM | C8: Naïma | D8: F | E8: 2005-03-13 | G8: 511 | H8: BENJAMINE | I8: 00:11:01 | J8: 7 | N8: 7ème | O8: 505 | P8: 37 | Q8: 44 | R8: 50 | S8: 54 | T8: 55 | U8: =IF(OR(ISBLANK(P8),ISBLANK(Q8),ISBLANK(R8),ISBLANK(S8),ISBLANK(T8)),"< 5 coureurs",SUM(P8:T8)) -> 240
A9: 50659 | B9: SOUBA | C9: Loana | D9: F | E9: 2004-09-15 | G9: 506 | H9: MINIME | I9: 00:11:02 | J9: 8 | N9: 8ème | O9: 512 | P9: 10 | Q9: 42 | R9: 52 | S9: 71 | T9: 73 | U9: =IF(OR(ISBLANK(P9),ISBLANK(Q9),ISBLANK(R9),ISBLANK(S9),ISBLANK(T9)),"< 5 coureurs",SUM(P9:T9)) -> 248
A10: 50658 | B10: SAUTRON | C10: Cérhéna | D10: F | E10: 2005-01-03 | G10: 506 | H10: BENJAMINE | I10: 00:11:03 | J10: 9 | N10: 9ème | O10: 511 | P10: 7 | Q10: 30 | R10: 89 | S10: 90 | T10: 106 | U10: =IF(OR(ISBLANK(P10),ISBLANK(Q10),ISBLANK(R10),ISBLANK(S10),ISBLANK(T10)),"< 5 coureurs",SUM(P10:T10)) -> 322
A11: 51255 | B11: GAILLAC | C11: Anaëlle | D11: F | E11: 2005-04-01 | G11: 512 | H11: BENJAMINE | I11: 00:11:07 | J11: 10 | N11: 10ème | O11: 504 | P11: 31 | Q11: 57 | R11: 76 | S11: 81 | T11: 88 | U11: =IF(OR(ISBLANK(P11),ISBLANK(Q11),ISBLANK(R11),ISBLANK(S11),ISBLANK(T11)),"< 5 coureurs",SUM(P11:T11)) -> 333
A12: 50866 | B12: TECHER | C12: Amel | D12: F | E12: 2005-09-05 | G12: 508 | H12: BENJAMINE | I12: 00:11:09 | J12: 11 | N12: 11ème | O12: 501 | P12: 33 | Q12: 63 | R12: 64 | S12: 78 | U12: =IF(OR(ISBLANK(P12),ISBLANK(Q12),ISBLANK(R12),ISBLANK(S12),ISBLANK(T12)),"< 5 coureurs",SUM(P12:T12)) -> < 5 coureurs
A13: 50653 | B13: BANCALIN | C13: Jade | D13: F | E13: 2005-05-09 | G13: 506 | H13: BENJAMINE | I13: 00:11:11 | J13: 12 | N13: 12ème | O13: 502 | P13: 29 | Q13: 58 | R13: 59 | S13: 65 | U13: =IF(OR(ISBLANK(P13),ISBLANK(Q13),ISBLANK(R13),ISBLANK(S13),ISBLANK(T13)),"< 5 coureurs",SUM(P13:T13)) -> < 5 coureurs
A14: 50852 | B14: CHABOU | C14: Maria | D14: F | E14: 2005-04-19 | G14: 508 | H14: BENJAMINE | I14: 00:11:26 | J14: 13
A15: 50360 | B15: NALLAMAN | C15: Eva | D15: F | E15: 2005-10-15 | G15: 503 | H15: BENJAMINE | I15: 00:11:27 | J15: 14 | N15: Médailles d'or | P15: 503
A16: 50353 | B16: GASPARD | C16: Marie Cortney | D16: F | E16: 2005-07-06 | G16: 503 | H16: BENJAMINE | I16: 00:12:14 | J16: 15
A17: 51054 | B17: BERILE | C17: Lorélène | D17: F | E17: 2005-03-29 | G17: 510 | H17: BENJAMINE | I17: 00:12:15 | J17: 16 | M17: ISSOUFI | O17: MANGATA | Q17: GOSSARD | S17: NALLAMAN | U17: GASPARD
A18: 51051 | B18: ABDOU | C18: Thalia | D18: F | E18: 2005-05-11 | G18: 510 | H18: BENJAMINE | I18: 00:12:17 | J18: 17 | M18: Saouda | O18: Kavindra | Q18: Marie-Loena | S18: Eva | U18: Marie Cortney
A19: 50358 | B19: LAUDES | C19: Mélodie | D19: F | E19: 2005-07-30 | G19: 503 | H19: BENJAMINE | I19: 00:12:19 | J19: 18
A20: 50655 | B20: LAUP | C20: Maurane | D20: F | E20: 2005-04-13 | G20: 506 | H20: BENJAMINE | I20: 00:12:20 | J20: 19 | N20: Médailles d'argent | P20: 506
A21: 50752 | B21: BORIGNIOL | C21: Keyra | D21: F | E21: 2005-03-16 | G21: 507 | H21: BENJAMINE | I21: 00:12:22 | J21: 20
A22: 51055 | B22: BOYER | C22: Jenny | D22: F | E22: 2005-05-03 | G22: 510 | H22: BENJAMINE | I22: 00:12:25 | J22: 21 | M22: SOUBA | O22: SAUTRON | Q22: BANCALIN | S22: LAUP | U22: POLEYA
A23: 50755 | B23: CASIMIR | C23: Maëna | D23: F | E23: 2005-12-14 | G23: 507 | H23: BENJAMINE | I23: 00:12:29 | J23: 22 | M23: Loana | O23: Cérhéna | Q23: Jade | S23: Maurane | U23: Lornha
A24: 50860 | B24: M'BAE | C24: Luciana | D24: F | E24: 2005-05-12 | G24: 508 | H24: BENJAMINE | I24: 00:12:30 | J24: 23
A25: 50751 | B25: BERNARD | C25: Iliona | D25: F | E25: 2005-12-08 | G25: 507 | H25: BENJAMINE | I25: 00:12:32 | J25: 24 | N25: Médailles de bronze | P25: 508
A26: 50657 | B26: POLEYA | C26: Lornha | D26: F | E26: 2005-04-01 | G26: 506 | H26: BENJAMINE | I26: 00:12:36 | J26: 25
A27: 50859 | B27: MAILLOT | C27: Ludivine | D27: F | E27: 2005-05-30 | G27: 508 | H27: BENJAMINE | I27: 00:12:37 | J27: 26 | M27: NIACAVERE | O27: TECHER | Q27: CHABOU | S27: M'BAE | U27: MAILLOT
A28: 51061 | B28: MOUTALOU RANGAMA | C28: Shana | D28: F | E28: 2005-02-06 | G28: 510 | H28: BENJAMINE | I28: 00:12:39 | J28: 27 | M28: Prudence | O28: Amel | Q28: Maria | S28: Luciana | U28: Ludivine
A29: 50651 | B29: AMADI | C29: Samrane | D29: F | E29: 2005-05-04 | G29: 506 | H29: BENJAMINE | I29: 00:12:40 | J29: 28
A30: 50252 | B30: FILA | C30: Zoulaïka | D30: F | E30: 2004-04-22 | G30: 502 | H30: MINIME | I30: 00:12:42 | J30: 29
A31: 51157 | B31: SAINT-LYS | C31: Chloe | D31: F | E31: 2004-12-14 | G31: 511 | H31: MINIME | I31: 00:12:51 | J31: 30
A32: 50452 | B32: ARDOIN | C32: Léa | D32: F | E32: 2005-02-10 | G32: 504 | H32: BENJAMINE | I32: 00:12:52 | J32: 31
A33: 50958 | B33: PAPOU-POUNOUSSAMY | C33: Eva | D33: F | E33: 2005-06-26 | G33: 509 | H33: BENJAMINE | I33: 00:12:55 | J33: 32
A34: 50155 | B34: ROUSSEAU | C34: Indrany | D34: F | E34: 2004-04-13 | G34: 501 | H34: MINIME | I34: 00:12:58 | J34: 33
A35: 50959 | B35: SAMINADIN | C35: Mily | D35: F | E35: 2005-01-07 | G35: 509 | H35: BENJAMINE | I35: 00:12:59 | J35: 34
A36: 50761 | B36: TECHER | C36: Lorenza | D36: F | E36: 2005-08-22 | G36: 507 | H36: BENJAMINE | I36: 00:13:00 | J36: 35
A37: 50756 | B37: CHINDRA | C37: Océane | D37: F | E37: 2005-09-11 | G37: 507 | H37: BENJAMINE | I37: 00:13:40 | J37: 36
A38: 50553 | B38: CARPANIN | C38: Marion | D38: F | E38: 2006-05-05 | G38: 505 | H38: BENJAMINE | I38: 00:13:41 | J38: 37
A39: 50856 | B39: GERCARA | C39: Marie-Eva | D39: F | E39: 2005-08-04 | G39: 508 | H39: BENJAMINE | I39: 00:13:42 | J39: 38
A40: 51062 | B40: NARSAPA | C40: Lauriane | D40: F | E40: 2005-09-29 | G40: 510 | H40: BENJAMINE | I40: 00:13:44 | J40: 39
A41: 51057 | B41: CORSET | C41: Léa | D41: F | E41: 2006-02-08 | G41: 510 | H41: BENJAMINE | I41: 00:13:45 | J41: 40
A42: 51059 | B42: MINATCHY | C42: Aurélie | D42: F | E42: 2005-12-29 | G42: 510 | H42: BENJAMINE | I42: 00:13:47 | J42: 41
A43: 51257 | B43: MOIMBE | C43: Jade | D43: F | E43: 2005-10-21 | G43: 512 | H43: BENJAMINE | I43: 00:13:48 | J43: 42
A44: 50754 | B44: BRUN | C44: Manon | D44: F | E44: 2005-08-23 | G44: 507 | H44: BENJAMINE | I44: 00:13:50 | J44: 43
A45: 50552 | B45: AMIRBACASSE MOHADI | C45: Maria | D45: F | E45: 2005-09-29 | G45: 505 | H45: BENJAMINE | I45: 00:13:52 | J45: 44
A46: 50759 | B46: NAZE | C46: Emeline | D46: F | E46: 2004-04-21 | G46: 507 | H46: MINIME | I46: 00:13:54 | J46: 45
A47: 50861 | B47: MOINACHE | C47: Noémie | D47: F | E47: 2005-05-20 | G47: 508 | H47: BENJAMINE | I47: 00:13:55 | J47: 46
A48: 51056 | B48: CELY | C48: Cassie | D48: F | E48: 2005-11-20 | G48: 510 | H48: BENJAMINE | I48: 00:14:23 | J48: 47
A49: 50355 | B49: HACHIM | C49: Hania | D49: F | E49: 2005-03-11 | G49: 503 | H49: BENJAMINE | I49: 00:14:24 | J49: 48
A50: 50951 | B50: ALLAMELE | C50: Marie Noémie | D50: F | E50: 2005-03-16 | G50: 509 | H50: BENJAMINE | I50: 00:14:25 | J50: 49
A51: 50556 | B51: HOAREAU-COTARD | C51: Chloé | D51: F | E51: 2003-08-25 | F51: ULIS | G51: 505 | H51: MINIME | I51: 00:14:28 | J51: 50
A52: 50855 | B52: FLORESTAN | C52: Angie | D52: F | E52: 2005-09-08 | G52: 508 | H52: BENJAMINE | I52: 00:14:29 | J52: 51
A53: 51258 | B53: ROBERT | C53: Camille | D53: F | E53: 2005-06-18 | G53: 512 | H53: BENJAMINE | I53: 00:14:30 | J53: 52
A54: 50952 | B54: AMADA | C54: Chahamati | D54: F | E54: 2004-03-26 | G54: 509 | H54: MINIME | I54: 00:14:32 | J54: 53
A55: 50555 | B55: FLAVIEN | C55: Adèle | D55: F | E55: 2005-11-13 | G55: 505 | H55: BENJAMINE | I55: 00:14:36 | J55: 54
A56: 50558 | B56: MILANI AMADI | C56: Samira | D56: F | E56: 2005-03-12 | G56: 505 | H56: BENJAMINE | I56: 00:14:37 | J56: 55
A57: 50854 | B57: ELLAMA | C57: Delphyne | D57: F | E57: 2005-08-27 | G57: 508 | H57: BENJAMINE | I57: 00:14:39 | J57: 56
A58: 50460 | B58: THIONVILLE | C58: Liyah | D58: F | E58: 2005-10-18 | G58: 504 | H58: BENJAMINE | I58: 00:14:41 | J58: 57
A59: 50256 | B59: YOUSSOUF | C59: Rachma | D59: F | E59: 2004-09-13 | G59: 502 | H59: MINIME | I59: 00:14:42 | J59: 58
A60: 50253 | B60: HARIBOU | C60: Maryam | D60: F | E60: 2005-03-11 | G60: 502 | H60: BENJAMINE | I60: 00:14:44 | J60: 59
A61: 50956 | B61: LESTE | C61: Marie - Ahora | D61: F | E61: 2004-01-08 | G61: 509 | H61: MINIME | I61: 00:14:49 | J61: 60
A62: 50352 | B62: GASPAL | C62: Manon | D62: F | E62: 2005-06-11 | G62: 503 | H62: BENJAMINE | I62: 00:14:50 | J62: 61
A63: 50356 | B63: INESE | C63: Naomie | D63: F | E63: 2005-02-28 | G63: 503 | H63: BENJAMINE | I63: 00:14:52 | J63: 62
A64: 50151 | B64: ABDOU | C64: Naïlida | D64: F | E64: 2004-02-12 | G64: 501 | H64: MINIME | I64: 00:14:53 | J64: 63
A65: 50153 | B65: FABI | C65: Ismaëla | D65: F | E65: 2004-04-10 | G65: 501 | H65: MINIME | I65: 00:14:55 | J65: 64
A66: 50251 | B66: ALIZE | C66: Blandine | D66: F | E66: 2004-10-09 | G66: 502 | H66: MINIME | I66: 00:14:56 | J66: 65
A67: 50865 | B67: SINATA | C67: Leane | D67: F | E67: 2005-09-27 | G67: 508 | H67: BENJAMINE | I67: 00:14:58 | J67: 66
A68: 50864 | B68: SENSEE | C68: Laurie | D68: F | E68: 2005-10-28 | G68: 508 | H68: BENJAMINE | I68: 00:15:06 | J68: 67
A69: 51060 | B69: MONITEUR | C69: Sarah | D69: F | E69: 2005-08-26 | G69: 510 | H69: BENJAMINE | I69: 00:15:07 | J69: 68
A70: 51064 | B70: VOSGES | C70: Ashdrine | D70: F | E70: 2005-01-24 | G70: 510 | H70: BENJAMINE | I70: 00:15:09 | J70: 69
A71: 51058 | B71: DAMOUR | C71: Flora | D71: F | E71: 2006-02-09 | F71: IME | G71: 510 | H71: BENJAMINE | I71: 00:15:12 | J71: 70
A72: 51253 | B72: CANDASSAMY SOCOLINGOMC | C72: Shanaelle | D72: F | E72: 2005-09-21 | G72: 512 | H72: BENJAMINE | I72: 00:15:15 | J72: 71
A73: 50652 | B73: ASTY | C73: Daphné | D73: F | E73: 2005-02-18 | G73: 506 | H73: BENJAMINE | I73: 00:15:17 | J73: 72
A74: 51252 | B74: BOYER | C74: Wylcina | D74: F | E74: 2005-01-25 | G74: 512 | H74: BENJAMINE | I74: 00:15:25 | J74: 73
A75: 51063 | B75: RATENON | C75: Marie Stella | D75: F | E75: 2005-08-26 | G75: 510 | H75: BENJAMINE | I75: 00:15:27 | J75: 74
A76: 50954 | B76: GOSSARD | C76: Savitri | D76: F | E76: 2005-11-04 | G76: 509 | H76: BENJAMINE | I76: 00:15:31 | J76: 75
A77: 50454 | B77: CARINY | C77: Noemie | D77: F | E77: 2005-01-27 | G77: 504 | H77: BENJAMINE | I77: 00:15:32 | J77: 76
A78: 50561 | B78: SAMINADIN | C78: Gwennhaëlle | D78: F | E78: 2004-07-05 | G78: 505 | H78: MINIME | I78: 00:15:34 | J78: 77
A79: 50156 | B79: TEVANIN | C79: Loana | D79: F | E79: 2004-10-19 | G79: 501 | H79: MINIME | I79: 00:15:36 | J79: 78
A80: 50960 | B80: SAVRIMOUTOU | C80: Djamila | D80: F | E80: 2005-09-01 | G80: 509 | H80: BENJAMINE | I80: 00:15:56 | J80: 79
A81: 50560 | B81: RAOUL | C81: Layana | D81: F | E81: 2005-11-21 | G81: 505 | H81: BENJAMINE | I81: 00:15:58 | J81: 80
A82: 50453 | B82: BEGUE | C82: Emilie | D82: F | E82: 2005-03-31 | G82: 504 | H82: BENJAMINE | I82: 00:15:59 | J82: 81
A83: 50562 | B83: TRULES | C83: Lea | D83: F | E83: 2005-05-19 | G83: 505 | H83: BENJAMINE | I83: 00:16:00 | J83: 82
A84: 51251 | B84: ALI MADI | C84: Raïza | D84: F | E84: 2004-11-22 | G84: 512 | H84: MINIME | I84: 00:16:02 | J84: 83
A85: 50857 | B85: GRONDIN | C85: Adriana | D85: F | E85: 2005-07-28 | G85: 508 | H85: BENJAMINE | I85: 00:16:03 | J85: 84
A86: 50868 | B86: TURPIN | C86: Kamy | D86: F | E86: 2005-12-26 | G86: 508 | H86: BENJAMINE | I86: 00:16:04 | J86: 85
A87: 50858 | B87: HOULAM | C87: Emma | D87: F | E87: 2005-12-29 | G87: 508 | H87: BENJAMINE | I87: 00:16:06 | J87: 86
A88: 50867 | B88: TOLSY | C88: Shalini | D88: F | E88: 2005-06-25 | G88: 508 | H88: BENJAMINE | I88: 00:16:08 | J88: 87
A89: 50456 | B89: MOHAMED | C89: Faïna | D89: F | E89: 2005-07-11 | G89: 504 | H89: BENJAMINE | I89: 00:16:13 | J89: 88
A90: 51154 | B90: GRONDIN | C90: Loriane | D90: F | E90: 2005-06-18 | G90: 511 | H90: BENJAMINE | I90: 00:16:17 | J90: 89
A91: 51158 | B91: SEUSSE | C91: Elisa | D91: F | E91: 2005-04-15 | G91: 511 | H91: BENJAMINE | I91: 00:16:18 | J91: 90
A92: 50957 | B92: MOUCHA | C92: Ophélie | D92: F | E92: 2005-03-23 | G92: 509 | H92: BENJAMINE | I92: 00:16:25 | J92: 91
A93: 50455 | B93: ETHEVE | C93: Laure | D93: F | E93: 2005-09-28 | G93: 504 | H93: BENJAMINE | I93: 00:16:26 | J93: 92
A94: 50557 | B94: JACQUENET | C94: Marie | D94: F | E94: 2005-07-05 | G94: 505 | H94: BENJAMINE | I94: 00:16:28 | J94: 93
A95: 50654 | B95: CELERINE | C95: Laurina | D95: F | E95: 2005-05-10 | G95: 506 | H95: BENJAMINE | I95: 00:16:29 | J95: 94
A96: 51260 | B96: TURPIN | C96: Manon | D96: F | E96: 2004-10-26 | G96: 512 | H96: MINIME | I96: 00:16:30 | J96: 95
A97: 50863 | B97: ROBERT | C97: Naïka | D97: F | E97: 2005-12-11 | G97: 508 | H97: BENJAMINE | I97: 00:16:32 | J97: 96
A98: 50457 | B98: MOLLY | C98: Léa Marie Alex | D98: F | E98: 2005-07-22 | G98: 504 | H98: BENJAMINE | I98: 00:16:33 | J98: 97
A99: 50461 | B99: VIRIN-CALY | C99: Leslie | D99: F | E99: 2005-06-30 | G99: 504 | H99: BENJAMINE | I99: 00:16:35 | J99: 98
A100: 51003 | B100: BOUTCHAMA | C100: Alicia | D100: M | E100: 2005-12-14 | G100: 510 | H100: BENJAMIN | I100: 00:16:52 | J100: 99
A101: 50459 | B101: RANDRETSIMIVONY | C101: Cohen | D101: F | E101: 2005-06-16 | G101: 504 | H101: BENJAMINE | I101: 00:16:54 | J101: 100
A102: 50758 | B102: ETHEVE | C102: Cassandra | D102: F | E102: 2005-10-10 | G102: 507 | H102: BENJAMINE | I102: 00:16:56 | J102: 101
A103: 50559 | B103: RAMSAMY-CANTALIA | C103: Indrally | D103: F | E103: 2005-05-02 | G103: 505 | H103: BENJAMINE | I103: 00:16:57 | J103: 102
A104: 50660 | B104: SOUCOURI | C104: Alexia | D104: F | E104: 2005-09-30 | G104: 506 | H104: BENJAMINE | I104: 00:16:59 | J104: 103
A105: 50851 | B105: CAFRAN | C105: Léa | D105: F | E105: 2006-05-09 | G105: 508 | H105: BENJAMINE | I105: 00:17:01 | J105: 104
A106: 50962 | B106: VICTOIRE | C106: Florence | D106: F | E106: 2005-08-25 | G106: 509 | H106: BENJAMINE | I106: 00:17:02 | J106: 105
A107: 51159 | B107: TRINGER | C107: Maëlle | D107: F | E107: 2005-09-08 | G107: 511 | H107: BENJAMINE | I107: 00:17:04 | J107: 106
A108: 51156 | B108: MARIMOUTOU | C108: Chloé | D108: F | E108: 2005-12-15 | G108: 511 | H108: BENJAMINE | I108: 00:17:05 | J108: 107
A109: 51153 | B109: ERRAPA | C109: Chaïma | D109: F | E109: 2005-05-04 | G109: 511 | H109: BENJAMINE | I109: 00:17:07 | J109: 108
A110: 50551 | B110: AHAMADI | C110: Samra | D110: F | E110: 2005-07-11 | G110: 505 | H110: BENJAMINE | I110: 00:17:53 | J110: 109
A111: 50760 | B111: ROSBAUD | C111: Ludivine | D111: F | E111: 2004-09-02 | G111: 507 | H111: MINIME | I111: 00:17:55 | J111: 110
A112: 50753 | B112: BOYER | C112: Thaïs | D112: F | E112: 2005-12-02 | G112: 507 | H112: BENJAMINE | I112: 00:17:56 | J112: 111
A113: 51052 | B113: ADAM-YAMPS | C113: Cassandra | D113: F | E113: 2005-12-28 | G113: 510 | H113: BENJAMINE | I113: 00:18:00 | J113: 112
A114: 51155 | B114: MAILLOT | C114: Romane | D114: F | E114: 2005-03-31 | G114: 511 | H114: BENJAMINE | I114: 00:19:07 | J114: 113
A115: 51152 | B115: DALLEAU | C115: Nahéla | D115: F | E115: 2005-10-23 | G115: 511 | H115: BENJAMINE | I115: 00:19:25 | J115: 114
A116: 50554 | B116: FIN | C116: Nicole | D116: F | E116: 2002-02-24 | F116: ULIS | G116: 505 | H116: CADETTE | I116: 00:19:52 | J116: 115

Sheet 5èGarçons
A1: DOSSARD | B1: NOM | C1: PRENOM | D1: SEXE | E1: DATENAISS | F1: NOMETABL | G1: CLASSE | H1: CATEGORIE | I1: TEMPS | J1: PLACE | O1: Classe | P1: Classement des 5 premiers coureurs de chaque classe | U1: total
A2: 51211 | B2: RAYAPIN | C2: Etienne | D2: M | E2: 2005-08-23 | G2: 512 | H2: BENJAMIN | I2: 00:12:48 | J2: 1 | N2: 1er | O2: 503 | P2: 2 | Q2: 7 | R2: 15 | S2: 21 | T2: 22 | U2: =IF(OR(ISBLANK(P2),ISBLANK(Q2),ISBLANK(R2),ISBLANK(S2),ISBLANK(T2)),"< 5 coureurs",SUM(P2:T2)) -> 67
A3: 50302 | B3: BEAUPATRE | C3: Killian | D3: M | E3: 2004-06-25 | G3: 503 | H3: MINIME | I3: 00:12:51 | J3: 2 | N3: 2ème | O3: 502 | P3: 3 | Q3: 4 | R3: 11 | S3: 30 | T3: 38 | U3: =IF(OR(ISBLANK(P3),ISBLANK(Q3),ISBLANK(R3),ISBLANK(S3),ISBLANK(T3)),"< 5 coureurs",SUM(P3:T3)) -> 86
A4: 50207 | B4: MOUZIDALIFFA | C4: Yacer | D4: M | E4: 2004-08-15 | G4: 502 | H4: MINIME | I4: 00:12:53 | J4: 3 | N4: 3ème | O4: 501 | P4: 6 | Q4: 10 | R4: 17 | S4: 18 | T4: 55 | U4: =IF(OR(ISBLANK(P4),ISBLANK(Q4),ISBLANK(R4),ISBLANK(S4),ISBLANK(T4)),"< 5 coureurs",SUM(P4:T4)) -> 106
A5: 50205 | B5: IMARE | C5: Emrick | D5: M | E5: 2004-07-27 | G5: 502 | H5: MINIME | I5: 00:12:57 | J5: 4 | N5: 4ème | O5: 510 | P5: 9 | Q5: 16 | R5: 19 | S5: 36 | T5: 40 | U5: =IF(OR(ISBLANK(P5),ISBLANK(Q5),ISBLANK(R5),ISBLANK(S5),ISBLANK(T5)),"< 5 coureurs",SUM(P5:T5)) -> 120
A6: 50503 | B6: FETISOI-MIHA | C6: Johanny | D6: M | E6: 2005-10-26 | G6: 505 | H6: BENJAMIN | I6: 00:12:58 | J6: 5 | N6: 5ème | O6: 512 | P6: 1 | Q6: 12 | R6: 33 | S6: 47 | T6: 58 | U6: =IF(OR(ISBLANK(P6),ISBLANK(Q6),ISBLANK(R6),ISBLANK(S6),ISBLANK(T6)),"< 5 coureurs",SUM(P6:T6)) -> 151
A7: 50103 | B7: MADI | C7: Rahiki | D7: M | E7: 2004-03-16 | G7: 501 | H7: MINIME | I7: 00:13:00 | J7: 6 | N7: 6ème | O7: 506 | P7: 23 | Q7: 24 | R7: 31 | S7: 35 | T7: 49 | U7: =IF(OR(ISBLANK(P7),ISBLANK(Q7),ISBLANK(R7),ISBLANK(S7),ISBLANK(T7)),"< 5 coureurs",SUM(P7:T7)) -> 162
A8: 50308 | B8: PICARD | C8: Kirane | D8: M | E8: 2005-02-19 | G8: 503 | H8: BENJAMIN | I8: 00:13:02 | J8: 7 | N8: 7ème | O8: 505 | P8: 5 | Q8: 8 | R8: 45 | S8: 54 | T8: 64 | U8: =IF(OR(ISBLANK(P8),ISBLANK(Q8),ISBLANK(R8),ISBLANK(S8),ISBLANK(T8)),"< 5 coureurs",SUM(P8:T8)) -> 176
A9: 50505 | B9: HAFIDHOU | C9: Mousslime | D9: M | E9: 2005-09-22 | G9: 505 | H9: BENJAMIN | I9: 00:13:03 | J9: 8 | N9: 8ème | O9: 509 | P9: 27 | Q9: 28 | R9: 32 | S9: 43 | T9: 51 | U9: =IF(OR(ISBLANK(P9),ISBLANK(Q9),ISBLANK(R9),ISBLANK(S9),ISBLANK(T9)),"< 5 coureurs",SUM(P9:T9)) -> 181
A10: 51008 | B10: MANDER | C10: Zakary | D10: M | E10: 2005-11-26 | G10: 510 | H10: BENJAMIN | I10: 00:13:05 | J10: 9 | N10: 9ème | O10: 511 | P10: 26 | Q10: 34 | R10: 37 | S10: 48 | T10: 69 | U10: =IF(OR(ISBLANK(P10),ISBLANK(Q10),ISBLANK(R10),ISBLANK(S10),ISBLANK(T10)),"< 5 coureurs",SUM(P10:T10)) -> 214
A11: 50108 | B11: MOEGNE | C11: Youlda | D11: M | E11: 2004-05-16 | G11: 501 | H11: MINIME | I11: 00:13:06 | J11: 10 | N11: 10ème | O11: 508 | P11: 14 | Q11: 20 | R11: 25 | S11: 76 | T11: 86 | U11: =IF(OR(ISBLANK(P11),ISBLANK(Q11),ISBLANK(R11),ISBLANK(S11),ISBLANK(T11)),"< 5 coureurs",SUM(P11:T11)) -> 221
A12: 50208 | B12: M'ROIVILI | C12: Naim | D12: M | E12: 2004-10-18 | G12: 502 | H12: MINIME | I12: 00:13:08 | J12: 11 | N12: 11ème | O12: 507 | P12: 13 | Q12: 39 | R12: 50 | S12: 52 | T12: 75 | U12: =IF(OR(ISBLANK(P12),ISBLANK(Q12),ISBLANK(R12),ISBLANK(S12),ISBLANK(T12)),"< 5 coureurs",SUM(P12:T12)) -> 229
A13: 51209 | B13: MASSON | C13: Noah | D13: M | E13: 2005-12-23 | G13: 512 | H13: BENJAMIN | I13: 00:13:10 | J13: 12 | N13: 12ème | O13: 504 | P13: 29 | Q13: 46 | R13: 60 | S13: 61 | T13: 66 | U13: =IF(OR(ISBLANK(P13),ISBLANK(Q13),ISBLANK(R13),ISBLANK(S13),ISBLANK(T13)),"< 5 coureurs",SUM(P13:T13)) -> 262
A14: 50705 | B14: LAQUIA | C14: Roman | D14: M | E14: 2004-09-08 | G14: 507 | H14: MINIME | I14: 00:13:11 | J14: 13
A15: 50803 | B15: MCHINDRA | C15: Rakib | D15: M | E15: 2004-08-17 | G15: 508 | H15: MINIME | I15: 00:13:19 | J15: 14 | N15: Médailles d'or | P15: 503
A16: 50310 | B16: REVASK-RABOULA | C16: Ethan | D16: M | E16: 2005-05-11 | G16: 503 | H16: BENJAMIN | I16: 00:13:20 | J16: 15
A17: 51010 | B17: SALEDY | C17: Thomas | D17: M | E17: 2005-04-21 | G17: 510 | H17: BENJAMIN | I17: 00:13:22 | J17: 16 | M17: BEAUPATRE | O17: PICARD | Q17: REVASK-RABOULA | S17: THEVENIN | U17: BANCALIN
A18: 50105 | B18: MAHADALY | C18: Laïd | D18: M | E18: 2005-11-16 | G18: 501 | H18: BENJAMIN | I18: 00:13:23 | J18: 17 | M18: Killian | O18: Kirane | Q18: Ethan | S18: Bruno | U18: Tom
A19: 50106 | B19: MISSIBAHOU | C19: Elianzize | D19: M | E19: 2005-04-05 | G19: 501 | H19: BENJAMIN | I19: 00:13:25 | J19: 18
A20: 51007 | B20: LE CONSTANT | C20: Djiliann | D20: M | E20: 2005-03-16 | G20: 510 | H20: BENJAMIN | I20: 00:13:30 | J20: 19 | N20: Médailles d'argent | P20: 502
A21: 50805 | B21: PAUSE | C21: Roman | D21: M | E21: 2005-01-03 | G21: 508 | H21: BENJAMIN | I21: 00:13:31 | J21: 20
A22: 50313 | B22: THEVENIN | C22: Bruno | D22: M | E22: 2005-01-09 | G22: 503 | H22: BENJAMIN | I22: 00:13:33 | J22: 21 | M22: MOUZIDALIFFA | O22: IMARE | Q22: M'ROIVILI | S22: BOINA | U22: HUBERT
A23: 50301 | B23: BANCALIN | C23: Tom | D23: M | E23: 2005-05-13 | G23: 503 | H23: BENJAMIN | I23: 00:13:34 | J23: 22 | M23: Yacer | O23: Emrick | Q23: Naim | S23: Malik | U23: Florian
A24: 50611 | B24: ROBERT | C24: Lukas | D24: M | E24: 2005-08-14 | G24: 506 | H24: BENJAMIN | I24: 00:13:36 | J24: 23
A25: 50605 | B25: HOARAU | C25: Thomas | D25: M | E25: 2004-08-28 | G25: 506 | H25: MINIME | I25: 00:13:38 | J25: 24 | N25: Médailles de bronze | P25: 501
A26: 50802 | B26: GERCARA | C26: Clement-Louis | D26: M | E26: 2005-08-04 | G26: 508 | H26: BENJAMIN | I26: 00:13:41 | J26: 25
A27: 51110 | B27: MOUNIEN | C27: Yadiradjen | D27: M | E27: 2005-09-11 | G27: 511 | H27: BENJAMIN | I27: 00:13:42 | J27: 26 | M27: MADI | O27: MOEGNE | Q27: MAHADALY | S27: MISSIBAHOU | U27: MAGONET
A28: 50906 | B28: PHILEAS | C28: Ulrich | D28: M | E28: 2004-12-12 | G28: 509 | H28: MINIME | I28: 00:13:44 | J28: 27 | M28: Rahiki | O28: Youlda | Q28: Laïd | S28: Elianzize | U28: Roman
A29: 50910 | B29: THIANCOURT | C29: Samuel | D29: M | E29: 2005-03-19 | G29: 509 | H29: BENJAMIN | I29: 00:13:46 | J29: 28
A30: 50407 | B30: NALLAMAN | C30: Ethan | D30: M | E30: 2005-06-04 | G30: 504 | H30: BENJAMIN | I30: 00:13:49 | J30: 29
A31: 50203 | B31: BOINA | C31: Malik | D31: M | E31: 2004-04-30 | G31: 502 | H31: MINIME | I31: 00:13:51 | J31: 30
A32: 50602 | B32: DIORFLAR | C32: Eddy Julian | D32: M | E32: 2004-10-11 | G32: 506 | H32: MINIME | I32: 00:13:52 | J32: 31
A33: 50904 | B33: GOSSARD | C33: Xavier | D33: M | E33: 2005-05-23 | G33: 509 | H33: BENJAMIN | I33: 00:13:56 | J33: 32
A34: 51214 | B34: TAYLLAMIN | C34: Alex | D34: M | E34: 2005-02-25 | G34: 512 | H34: BENJAMIN | I34: 00:13:58 | J34: 33
A35: 51106 | B35: GONTHIER | C35: Florent | D35: M | E35: 2005-12-05 | G35: 511 | H35: BENJAMIN | I35: 00:14:00 | J35: 34
A36: 50603 | B36: FLORICOURT | C36: Joshua | D36: M | E36: 2004-11-21 | G36: 506 | H36: MINIME | I36: 00:14:01 | J36: 35
A37: 51011 | B37: SOUSTELLE | C37: Théo | D37: M | E37: 2005-08-13 | G37: 510 | H37: BENJAMIN | I37: 00:14:03 | J37: 36
A38: 51105 | B38: GIGANT | C38: Bruny- Marc | D38: M | E38: 2005-03-07 | G38: 511 | H38: BENJAMIN | I38: 00:14:05 | J38: 37
A39: 50204 | B39: HUBERT | C39: Florian | D39: M | E39: 2004-03-18 | G39: 502 | H39: MINIME | I39: 00:14:08 | J39: 38
A40: 50703 | B40: FONTAINE | C40: Kendry | D40: M | E40: 2005-09-16 | G40: 507 | H40: BENJAMIN | I40: 00:14:09 | J40: 39
A41: 51005 | B41: GRONDIN | C41: Damien | D41: M | E41: 2005-04-08 | G41: 510 | H41: BENJAMIN | I41: 00:14:11 | J41: 40
A42: 51012 | B42: TECHER | C42: Viran | D42: M | E42: 2005-07-11 | G42: 510 | H42: BENJAMIN | I42: 00:14:13 | J42: 41
A43: 50312 | B43: SOILIHI | C43: David | D43: M | E43: 2003-12-11 | F43: ULIS | G43: 503 | H43: MINIME | I43: 00:14:15 | J43: 42
A44: 50909 | B44: TERGEMINA | C44: Loïc | D44: M | E44: 2004-07-19 | G44: 509 | H44: MINIME | I44: 00:14:16 | J44: 43
A45: 50311 | B45: SELIMANI | C45: Stanislas | D45: M | E45: 2005-10-20 | G45: 503 | H45: BENJAMIN | I45: 00:14:18 | J45: 44
A46: 50509 | B46: RIVIERE | C46: Tommy | D46: M | E46: 2005-03-06 | G46: 505 | H46: BENJAMIN | I46: 00:14:20 | J46: 45
A47: 50401 | B47: AMADA ALI | C47: Nassair | D47: M | E47: 2005-01-16 | G47: 504 | H47: BENJAMIN | I47: 00:14:22 | J47: 46
A48: 51210 | B48: OTIN | C48: Enzo | D48: M | E48: 2005-06-15 | G48: 512 | H48: BENJAMIN | I48: 00:14:29 | J48: 47
A49: 51107 | B49: HODGI | C49: Bryan | D49: M | E49: 2003-11-25 | F49: ULIS | G49: 511 | H49: MINIME | I49: 00:14:30 | J49: 48
A50: 50601 | B50: ADAM | C50: Karim | D50: M | E50: 2005-11-12 | G50: 506 | H50: BENJAMIN | I50: 00:14:32 | J50: 49
A51: 50708 | B51: MARTIN | C51: Yohan | D51: M | E51: 2005-04-16 | G51: 507 | H51: BENJAMIN | I51: 00:14:33 | J51: 50
A52: 50961 | B52: SEUSSE | C52: Nelson | D52: F | E52: 2005-09-07 | G52: 509 | H52: BENJAMINE | I52: 00:14:35 | J52: 51
A53: 50706 | B53: LEBON | C53: Thomas | D53: M | E53: 2005-01-03 | G53: 507 | H53: BENJAMIN | I53: 00:14:37 | J53: 52
A54: 50209 | B54: SERVEAUX | C54: Ulrick | D54: M | E54: 2004-10-20 | G54: 502 | H54: MINIME | I54: 00:14:40 | J54: 53
A55: 50501 | B55: DIDAT | C55: Lukas | D55: M | E55: 2005-01-28 | G55: 505 | H55: BENJAMIN | I55: 00:14:42 | J55: 54
A56: 50104 | B56: MAGONET | C56: Roman | D56: M | E56: 2004-11-11 | G56: 501 | H56: MINIME | I56: 00:14:43 | J56: 55
A57: 50303 | B57: BEURARD | C57: Axel | D57: M | E57: 2005-10-02 | G57: 503 | H57: BENJAMIN | I57: 00:14:47 | J57: 56
A58: 50607 | B58: LAFABLE | C58: Jordan | D58: M | E58: 2004-04-12 | G58: 506 | H58: MINIME | I58: 00:14:48 | J58: 57
A59: 51212 | B59: REAME | C59: Ryan | D59: M | E59: 2005-06-07 | G59: 512 | H59: BENJAMIN | I59: 00:14:49 | J59: 58
A60: 51204 | B60: FOUSSANE | C60: Jason | D60: M | E60: 2004-10-01 | G60: 512 | H60: MINIME | I60: 00:14:50 | J60: 59
A61: 50412 | B61: SAUTRON | C61: Stéphen | D61: M | E61: 2004-10-11 | G61: 504 | H61: MINIME | I61: 00:14:53 | J61: 60
A62: 50411 | B62: RIVIERE | C62: Rudy | D62: M | E62: 2005-12-05 | G62: 504 | H62: BENJAMIN | I62: 00:14:54 | J62: 61
A63: 50305 | B63: CELESTIN | C63: Mosiah | D63: M | E63: 2005-09-04 | G63: 503 | H63: BENJAMIN | I63: 00:14:56 | J63: 62
A64: 50901 | B64: CAMBLAIN | C64: Théo | D64: M | E64: 2005-08-25 | G64: 509 | H64: BENJAMIN | I64: 00:14:57 | J64: 63
A65: 50502 | B65: FELIX | C65: Lowan | D65: M | E65: 2005-12-05 | G65: 505 | H65: BENJAMIN | I65: 00:14:59 | J65: 64
A66: 50902 | B66: CONJAN | C66: Dharmaradj | D66: M | E66: 2005-04-15 | G66: 509 | H66: BENJAMIN | I66: 00:15:01 | J66: 65
A67: 50404 | B67: GOULAMOUSSENE | C67: Devalen | D67: M | E67: 2005-05-16 | G67: 504 | H67: BENJAMIN | I67: 00:15:03 | J67: 66
A68: 51213 | B68: RICHARD | C68: Yohann | D68: M | E68: 2005-10-27 | G68: 512 | H68: BENJAMIN | I68: 00:15:19 | J68: 67
A69: 50307 | B69: MAILLOT | C69: Adrien | D69: M | E69: 2005-11-15 | G69: 503 | H69: BENJAMIN | I69: 00:15:20 | J69: 68
A70: 51111 | B70: PAYET | C70: Kenzo | D70: M | E70: 2005-07-20 | G70: 511 | H70: BENJAMIN | I70: 00:15:21 | J70: 69
A71: 51006 | B71: GUSTAVIN | C71: Romain | D71: M | E71: 2006-05-18 | G71: 510 | H71: BENJAMIN | I71: 00:15:23 | J71: 70
A72: 50408 | B72: OMERALY | C72: Daven | D72: M | E72: 2005-02-25 | G72: 504 | H72: BENJAMIN | I72: 00:15:24 | J72: 71
A73: 50907 | B73: PHILOMAR | C73: Kenzo | D73: M | E73: 2005-06-20 | G73: 509 | H73: BENJAMIN | I73: 00:15:26 | J73: 72
A74: 50604 | B74: GEORGET | C74: Benjamin | D74: M | E74: 2005-05-22 | G74: 506 | H74: BENJAMIN | I74: 00:15:27 | J74: 73
A75: 51004 | B75: BOYER | C75: Carmelo | D75: M | E75: 2005-12-15 | F75: IME | G75: 510 | H75: BENJAMIN | I75: 00:15:29 | J75: 74
A76: 50701 | B76: ANTIER | C76: Mathéo | D76: M | E76: 2005-07-13 | G76: 507 | H76: BENJAMIN | I76: 00:15:30 | J76: 75
A77: 50806 | B77: SEUSSE | C77: Maël | D77: M | E77: 2005-08-05 | G77: 508 | H77: BENJAMIN | I77: 00:15:32 | J77: 76
A78: 50506 | B78: HOAREAU | C78: Noah | D78: M | E78: 2005-02-15 | G78: 505 | H78: BENJAMIN | I78: 00:15:35 | J78: 77
A79: 51101 | B79: AHAMADI | C79: Amri | D79: M | E79: 2004-08-03 | G79: 511 | H79: MINIME | I79: 00:15:36 | J79: 78
A80: 51103 | B80: CEBARRE | C80: Romuald | D80: M | E80: 2005-01-24 | G80: 511 | H80: BENJAMIN | I80: 00:15:38 | J80: 79
A81: 51112 | B81: SAÏD | C81: Régis | D81: M | E81: 2005-07-20 | G81: 511 | H81: BENJAMIN | I81: 00:16:01 | J81: 80
A82: 51109 | B82: LIVAVATE--BEGUE | C82: Benoit | D82: M | E82: 2005-03-06 | G82: 511 | H82: BENJAMIN | I82: 00:16:02 | J82: 81
A83: 51207 | B83: IVOULA | C83: Danny | D83: M | E83: 2005-12-21 | G83: 512 | H83: BENJAMIN | I83: 00:16:03 | J83: 82
A84: 50612 | B84: SAUTRON | C84: Kenny | D84: M | E84: 2005-01-31 | G84: 506 | H84: BENJAMIN | I84: 00:16:05 | J84: 83
A85: 50707 | B85: MADI-ALI--COMBO | C85: Zaride | D85: M | E85: 2005-09-21 | G85: 507 | H85: BENJAMIN | I85: 00:16:07 | J85: 84
A86: 51108 | B86: LEDORMEUR | C86: Enzo | D86: M | E86: 2005-06-03 | G86: 511 | H86: BENJAMIN | I86: 00:16:08 | J86: 85
A87: 50804 | B87: MOUNIEN | C87: Lucas | D87: M | E87: 2005-07-23 | G87: 508 | H87: BENJAMIN | I87: 00:16:11 | J87: 86
A88: 50508 | B88: OVA | C88: Anthony | D88: M | E88: 2005-09-05 | G88: 505 | H88: BENJAMIN | I88: 00:16:12 | J88: 87
A89: 50511 | B89: SOUPIN COULIN | C89: Christopher | D89: M | E89: 2005-07-05 | G89: 505 | H89: BENJAMIN | I89: 00:16:22 | J89: 88
A90: 50410 | B90: RAMDIALE | C90: Kyllian | D90: M | E90: 2005-07-31 | G90: 504 | H90: BENJAMIN | I90: 00:16:23 | J90: 89
A91: 51001 | B91: BANCALA | C91: Mahe | D91: M | E91: 2005-01-04 | G91: 510 | H91: BENJAMIN | I91: 00:16:25 | J91: 90
A92: 51009 | B92: MORIN | C92: Benoit | D92: M | E92: 2005-11-10 | G92: 510 | H92: BENJAMIN | I92: 00:16:27 | J92: 91
A93: 50609 | B93: PAKIRCHY | C93: Antoine | D93: M | E93: 2005-12-22 | G93: 506 | H93: BENJAMIN | I93: 00:16:32 | J93: 92
A94: 51202 | B94: DEVANE | C94: Romaric | D94: M | E94: 2004-10-09 | G94: 512 | H94: MINIME | I94: 00:16:33 | J94: 93
A95: 50201 | B95: ADRIEN | C95: Jonathan | D95: M | E95: 2004-05-16 | G95: 502 | H95: MINIME | I95: 00:17:12 | J95: 94
A96: 50504 | B96: GENESTE ROUSSARD | C96: Aaron | D96: M | E96: 2005-05-08 | G96: 505 | H96: BENJAMIN | I96: 00:17:14 | J96: 95
A97: 50405 | B97: HAMILCARO | C97: Allan | D97: M | E97: 2005-11-04 | G97: 504 | H97: BENJAMIN | I97: 00:17:16 | J97: 96
A98: 50109 | B98: PERRAULT | C98: Luidgi | D98: M | E98: 2005-03-14 | G98: 501 | H98: BENJAMIN | I98: 00:17:39 | J98: 97
A99: 50403 | B99: ELLAMA | C99: Nicolas | D99: M | E99: 2005-09-27 | G99: 504 | H99: BENJAMIN | I99: 00:17:40 | J99: 98
A100: 50510 | B100: SAÎDOU | C100: Kyliam | D100: M | E100: 2005-06-13 | G100: 505 | H100: BENJAMIN | I100: 00:17:42 | J100: 99
A101: 50406 | B101: LARAVINE | C101: Killian | D101: M | E101: 2005-04-04 | G101: 504 | H101: BENJAMIN | I101: 00:17:43 | J101: 100
A102: 50110 | B102: TECHER | C102: Donovan | D102: M | E102: 2004-03-13 | G102: 501 | H102: MINIME | I102: 00:17:45 | J102: 101
A103: 50903 | B103: FONTAINE | C103: Thomas | D103: M | E103: 2005-05-14 | G103: 509 | H103: BENJAMIN | I103: 00:17:48 | J103: 102
A104: 50107 | B104: MODELY | C104: Quentin | D104: M | E104: 2004-01-28 | G104: 501 | H104: MINIME | I104: 00:18:00 | J104: 103
A105: 50409 | B105: PONAMA | C105: Kellian | D105: M | E105: 2005-04-07 | G105: 504 | H105: BENJAMIN | I105: 00:18:02 | J105: 104
A106: 50402 | B106: BARBE-GAYET | C106: Aaron | D106: M | E106: 2005-07-11 | G106: 504 | H106: BENJAMIN | I106: 00:18:03 | J106: 105
A107: 50507 | B107: LOUISE | C107: Ryan | D107: M | E107: 2005-08-25 | G107: 505 | H107: BENJAMIN | I107: 00:18:05 | J107: 106
A108: 51002 | B108: BARET | C108: Alexis | D108: M | E108: 2005-07-08 | G108: 510 | H108: BENJAMIN | I108: 00:18:06 | J108: 107

Sheet 4èFilles
A1: DOSSARD | B1: NOM | C1: PRENOM | D1: SEXE | E1: DATENAISS | F1: NOMETABL | G1: CLASSE | H1: CATEGORIE | I1: TEMPS | J1: PLACE | O1: Classe | P1: Classement des 5 premières coureuses de chaque classe | U1: total
A2: 41265 | B2: PAYET | C2: Elodie | D2: F | E2: 2004-10-16 | G2: 412 | H2: MINIME | I2: 00:09:41 | J2: 1 | N2: 1er | O2: 412 | P2: 1 | Q2: 3 | R2: 5 | S2: 22 | T2: 23 | U2: =IF(OR(ISBLANK(P2),ISBLANK(Q2),ISBLANK(R2),ISBLANK(S2),ISBLANK(T2)),"< 5 coureurs",SUM(P2:T2)) -> 54
A3: 40756 | B3: FONTAINE | C3: Gabrielle | D3: F | E3: 2004-01-04 | G3: 407 | H3: MINIME | I3: 00:10:03 | J3: 2 | N3: 2ème | O3: 410 | P3: 4 | Q3: 10 | R3: 11 | S3: 16 | T3: 21 | U3: =IF(OR(ISBLANK(P3),ISBLANK(Q3),ISBLANK(R3),ISBLANK(S3),ISBLANK(T3)),"< 5 coureurs",SUM(P3:T3)) -> 62
A4: 41255 | B4: COUTURIER | C4: Chloe | D4: F | E4: 2004-05-21 | G4: 412 | H4: MINIME | I4: 00:10:15 | J4: 3 | N4: 3ème | O4: 409 | P4: 7 | Q4: 8 | R4: 9 | S4: 12 | T4: 27 | U4: =IF(OR(ISBLANK(P4),ISBLANK(Q4),ISBLANK(R4),ISBLANK(S4),ISBLANK(T4)),"< 5 coureurs",SUM(P4:T4)) -> 63
A5: 41062 | B5: RICHARD | C5: Louna | D5: F | E5: 2004-09-03 | G5: 410 | H5: MINIME | I5: 00:10:40 | J5: 4 | N5: 4ème | O5: 407 | P5: 2 | Q5: 13 | R5: 17 | S5: 20 | T5: 33 | U5: =IF(OR(ISBLANK(P5),ISBLANK(Q5),ISBLANK(R5),ISBLANK(S5),ISBLANK(T5)),"< 5 coureurs",SUM(P5:T5)) -> 85
A6: 41267 | B6: SAID | C6: Ramlati | D6: F | E6: 2004-09-05 | G6: 412 | H6: MINIME | I6: 00:10:57 | J6: 5 | N6: 5ème | O6: 403 | P6: 6 | Q6: 14 | R6: 18 | S6: 19 | T6: 36 | U6: =IF(OR(ISBLANK(P6),ISBLANK(Q6),ISBLANK(R6),ISBLANK(S6),ISBLANK(T6)),"< 5 coureurs",SUM(P6:T6)) -> 93
A7: 40356 | B7: NAÏLANI | C7: Faoula | D7: F | E7: 2004-07-13 | G7: 403 | H7: MINIME | I7: 00:10:58 | J7: 6 | N7: 6ème | O7: 405 | P7: 15 | Q7: 24 | R7: 26 | S7: 31 | T7: 55 | U7: =IF(OR(ISBLANK(P7),ISBLANK(Q7),ISBLANK(R7),ISBLANK(S7),ISBLANK(T7)),"< 5 coureurs",SUM(P7:T7)) -> 151
A8: 40961 | B8: SANDALOM | C8: Orlane | D8: F | E8: 2004-10-17 | G8: 409 | H8: MINIME | I8: 00:11:12 | J8: 7 | N8: 7ème | O8: 411 | P8: 30 | Q8: 32 | R8: 35 | S8: 40 | T8: 42 | U8: =IF(OR(ISBLANK(P8),ISBLANK(Q8),ISBLANK(R8),ISBLANK(S8),ISBLANK(T8)),"< 5 coureurs",SUM(P8:T8)) -> 179
A9: 40959 | B9: MAILLOT | C9: Anne Laure | D9: F | E9: 2004-01-28 | G9: 409 | H9: MINIME | I9: 00:11:13 | J9: 8 | N9: 8ème | O9: 406 | P9: 39 | Q9: 60 | R9: 67 | S9: 75 | T9: 85 | U9: =IF(OR(ISBLANK(P9),ISBLANK(Q9),ISBLANK(R9),ISBLANK(S9),ISBLANK(T9)),"< 5 coureurs",SUM(P9:T9)) -> 326
A10: 40954 | B10: CONSTANT | C10: Julie | D10: F | E10: 2004-12-07 | G10: 409 | H10: MINIME | I10: 00:11:15 | J10: 9 | N10: 9ème | O10: 401 | P10: 50 | Q10: 73 | U10: =IF(OR(ISBLANK(P10),ISBLANK(Q10),ISBLANK(R10),ISBLANK(S10),ISBLANK(T10)),"< 5 coureurs",SUM(P10:T10)) -> < 5 coureurs
A11: 41060 | B11: PAYET | C11: Lorianne | D11: F | E11: 2004-01-25 | G11: 410 | H11: MINIME | I11: 00:11:27 | J11: 10 | N11: 10ème | O11: 402 | P11: 72 | Q11: 89 | U11: =IF(OR(ISBLANK(P11),ISBLANK(Q11),ISBLANK(R11),ISBLANK(S11),ISBLANK(T11)),"< 5 coureurs",SUM(P11:T11)) -> < 5 coureurs
A12: 41064 | B12: VIALA | C12: Marylou | D12: F | E12: 2004-03-10 | G12: 410 | H12: MINIME | I12: 00:11:34 | J12: 11 | N12: 11ème | O12: 404 | P12: 68 | Q12: 78 | U12: =IF(OR(ISBLANK(P12),ISBLANK(Q12),ISBLANK(R12),ISBLANK(S12),ISBLANK(T12)),"< 5 coureurs",SUM(P12:T12)) -> < 5 coureurs
A13: 40958 | B13: HOAREAU | C13: Maeva | D13: F | E13: 2004-05-24 | G13: 409 | H13: MINIME | I13: 00:11:41 | J13: 12 | N13: 12ème | O13: 408 | P13: 61 | Q13: 62 | R13: 80 | S13: 82 | U13: =IF(OR(ISBLANK(P13),ISBLANK(Q13),ISBLANK(R13),ISBLANK(S13),ISBLANK(T13)),"< 5 coureurs",SUM(P13:T13)) -> < 5 coureurs
A14: 40759 | B14: MOFROY | C14: Océane | D14: F | E14: 2004-01-27 | G14: 407 | H14: MINIME | I14: 00:12:09 | J14: 13
A15: 40358 | B15: ROBERT | C15: Angelique | D15: F | E15: 2004-03-14 | G15: 403 | H15: MINIME | I15: 00:12:14 | J15: 14 | N15: Médailles d'or | P15: 412
A16: 40557 | B16: MARDE | C16: Anaïs | D16: F | E16: 2003-03-11 | G16: 405 | H16: MINIME | I16: 00:12:15 | J16: 15
A17: 41054 | B17: BOYER | C17: Chloe | D17: F | E17: 2004-10-19 | G17: 410 | H17: MINIME | I17: 00:12:18 | J17: 16 | M17: PAYET | O17: COUTURIER | Q17: SAID | S17: LEBEAU | U17: TRAJEAN
A18: 40755 | B18: FERRIER | C18: Gabriella | D18: F | E18: 2004-06-07 | G18: 407 | H18: MINIME | I18: 00:12:21 | J18: 17 | M18: Elodie | O18: Chloe | Q18: Ramlati | S18: Emmanuelle | U18: Lauriane
A19: 40359 | B19: SANDAYE | C19: Erika | D19: F | E19: 2004-08-10 | G19: 403 | H19: MINIME | I19: 00:12:31 | J19: 18
A20: 40360 | B20: SITAYA | C20: Marine | D20: F | E20: 2004-09-13 | G20: 403 | H20: MINIME | I20: 00:12:32 | J20: 19 | N20: Médailles d'argent | P20: 410
A21: 40760 | B21: RAMASSAMY | C21: Manon | D21: F | E21: 2004-02-04 | G21: 407 | H21: MINIME | I21: 00:12:34 | J21: 20
A22: 41059 | B22: MOUTALE | C22: Anjalie | D22: F | E22: 2004-07-31 | G22: 410 | H22: MINIME | I22: 00:12:59 | J22: 21 | M22: RICHARD | O22: PAYET | Q22: VIALA | S22: BOYER | U22: MOUTALE
A23: 41256 | B23: LEBEAU | C23: Emmanuelle | D23: F | E23: 2004-05-08 | G23: 412 | H23: MINIME | I23: 00:13:00 | J23: 22 | M23: Louna | O23: Lorianne | Q23: Marylou | S23: Chloe | U23: Anjalie
A24: 41268 | B24: TRAJEAN | C24: Lauriane | D24: F | E24: 2004-08-27 | G24: 412 | H24: MINIME | I24: 00:13:01 | J24: 23
A25: 40559 | B25: RANGANAYAGUY | C25: Chloé | D25: F | E25: 2004-08-02 | G25: 405 | H25: MINIME | I25: 00:13:02 | J25: 24 | N25: Médailles de bronze | P25: 409
A26: 41058 | B26: MAILLOT | C26: Doriane | D26: F | E26: 2004-05-27 | G26: 410 | H26: MINIME | I26: 00:13:04 | J26: 25
A27: 40554 | B27: COMORASSAMY | C27: Cloé | D27: F | E27: 2004-08-19 | G27: 405 | H27: MINIME | I27: 00:13:05 | J27: 26 | M27: SANDALOM | O27: MAILLOT | Q27: CONSTANT | S27: HOAREAU | U27: PICARD
A28: 40960 | B28: PICARD | C28: Orlane | D28: F | E28: 2004-11-17 | G28: 409 | H28: MINIME | I28: 00:13:14 | J28: 27 | M28: Orlane | O28: Anne Laure | Q28: Julie | S28: Maeva | U28: Orlane
A29: 41266 | B29: PICARD | C29: Stacy | D29: F | E29: 2004-08-24 | G29: 412 | H29: MINIME | I29: 00:13:15 | J29: 28
A30: 41261 | B30: NAZE | C30: Daisy | D30: F | E30: 2004-11-27 | G30: 412 | H30: MINIME | I30: 00:13:16 | J30: 29
A31: 41158 | B31: REBUA | C31: Lea | D31: F | E31: 2004-10-20 | G31: 411 | H31: MINIME | I31: 00:13:18 | J31: 30
A32: 40552 | B32: ASSICANON | C32: Marine | D32: F | E32: 2004-08-19 | G32: 405 | H32: MINIME | I32: 00:13:34 | J32: 31
A33: 41153 | B33: LANNELUC | C33: Thamia | D33: F | E33: 2004-05-01 | G33: 411 | H33: MINIME | I33: 00:13:36 | J33: 32
A34: 40763 | B34: SINAMALE | C34: Morgane | D34: F | E34: 2004-02-13 | G34: 407 | H34: MINIME | I34: 00:13:49 | J34: 33
A35: 41264 | B35: PAUSE | C35: Alexandra | D35: F | E35: 2004-04-08 | G35: 412 | H35: MINIME | I35: 00:13:50 | J35: 34
A36: 41155 | B36: LEVENEUR | C36: Daphnée | D36: F | E36: 2004-02-08 | G36: 411 | H36: MINIME | I36: 00:13:52 | J36: 35
A37: 40354 | B37: ELLEAPADEATCHY | C37: Floriane | D37: F | E37: 2004-06-24 | G37: 403 | H37: MINIME | I37: 00:13:53 | J37: 36
A38: 40355 | B38: GRONDIN | C38: Emily Rose | D38: F | E38: 2004-12-18 | G38: 403 | H38: MINIME | I38: 00:13:59 | J38: 37
A39: 40758 | B39: LEBEAU | C39: Lisa | D39: F | E39: 2004-01-31 | G39: 407 | H39: MINIME | I39: 00:14:01 | J39: 38
A40: 40657 | B40: GRONDIN | C40: Florane | D40: F | E40: 2004-03-30 | G40: 406 | H40: MINIME | I40: 00:14:03 | J40: 39
A41: 41159 | B41: ROBERT | C41: Anjali | D41: F | E41: 2004-09-12 | G41: 411 | H41: MINIME | I41: 00:14:10 | J41: 40
A42: 40957 | B42: GRONDIN | C42: Noémie | D42: F | E42: 2004-08-02 | G42: 409 | H42: MINIME | I42: 00:14:12 | J42: 41
A43: 41162 | B43: SEUSSE | C43: Maëlle | D43: F | E43: 2004-01-15 | G43: 411 | H43: MINIME | I43: 00:14:13 | J43: 42
A44: 41152 | B44: HOAREAU | C44: Emmanuelle | D44: F | E44: 2004-03-02 | G44: 411 | H44: MINIME | I44: 00:14:15 | J44: 43
A45: 41251 | B45: AMOURGOM | C45: Keylia | D45: F | E45: 2004-08-18 | G45: 412 | H45: MINIME | I45: 00:14:27 | J45: 44
A46: 41161 | B46: SAUTRON | C46: Léa | D46: F | E46: 2004-09-21 | G46: 411 | H46: MINIME | I46: 00:14:28 | J46: 45
A47: 40955 | B47: CRESCENCE | C47: Léa | D47: F | E47: 2004-05-08 | G47: 409 | H47: MINIME | I47: 00:14:29 | J47: 46
A48: 41263 | B48: PARAVEMAN | C48: Isia | D48: F | E48: 2004-01-19 | G48: 412 | H48: MINIME | I48: 00:14:32 | J48: 47
A49: 41053 | B49: BALAGOUROU | C49: Samantha | D49: F | E49: 2004-06-03 | G49: 410 | H49: MINIME | I49: 00:14:36 | J49: 48
A50: 10001 | B50: THOMAS | C50: Lorna | D50: F | G50: 407 | H50: MINIME | I50: 00:14:38 | J50: 49
A51: 40152 | B51: OUMOURI BOINAYDI | C51: Samira | D51: F | E51: 2003-11-24 | G51: 401 | H51: MINIME | I51: 00:14:59 | J51: 50
A52: 40762 | B52: SAINT-ALME | C52: Lisa | D52: F | E52: 2004-10-15 | G52: 407 | H52: MINIME | I52: 00:15:14 | J52: 51
A53: 41157 | B53: RASDA | C53: Chayna | D53: F | E53: 2004-12-07 | G53: 411 | H53: MINIME | I53: 00:15:15 | J53: 52
A54: 40765 | B54: TURPIN | C54: Daïna | D54: F | E54: 2004-01-15 | G54: 407 | H54: MINIME | I54: 00:15:17 | J54: 53
A55: 40353 | B55: DOUYERE | C55: Fabienne | D55: F | E55: 2004-01-07 | G55: 403 | H55: MINIME | I55: 00:15:18 | J55: 54
A56: 40551 | B56: ANDUMA | C56: Aïcha | D56: F | E56: 2003-03-30 | G56: 405 | H56: MINIME | I56: 00:15:19 | J56: 55
A57: 41051 | B57: ALAMELE | C57: Sephora | D57: F | E57: 2004-10-08 | G57: 410 | H57: MINIME | I57: 00:15:39 | J57: 56
A58: 41260 | B58: NAGAMA | C58: Ilona | D58: F | E58: 2004-05-29 | G58: 412 | H58: MINIME | I58: 00:15:40 | J58: 57
A59: 41257 | B59: LORICOURT | C59: Julicia | D59: F | E59: 2004-07-06 | G59: 412 | H59: MINIME | I59: 00:15:42 | J59: 58
A60: 41269 | B60: VIRAPIN | C60: Léanne | D60: F | E60: 2004-10-29 | G60: 412 | H60: MINIME | I60: 00:15:45 | J60: 59
A61: 40656 | B61: GOSSARD | C61: Faïza | D61: F | E61: 2004-03-14 | G61: 406 | H61: MINIME | I61: 00:15:47 | J61: 60
A62: 40851 | B62: BLUKER | C62: Ludivine | D62: F | E62: 2004-09-14 | G62: 408 | H62: MINIME | I62: 00:15:51 | J62: 61
A63: 40852 | B63: DARCALLE-HUBERT | C63: Nina | D63: F | E63: 2004-05-19 | G63: 408 | H63: MINIME | I63: 00:15:53 | J63: 62
A64: 40757 | B64: GOSSARD | C64: Héléna | D64: F | E64: 2004-02-21 | G64: 407 | H64: MINIME | I64: 00:15:55 | J64: 63
A65: 41160 | B65: ROBERT | C65: Chloe | D65: F | E65: 2004-12-20 | G65: 411 | H65: MINIME | I65: 00:16:19 | J65: 64
A66: 41063 | B66: TAÏLE | C66: Brenda | D66: F | E66: 2003-06-14 | G66: 410 | H66: MINIME | I66: 00:16:21 | J66: 65
A67: 41056 | B67: FOUSSANE | C67: Alyson | D67: F | E67: 2004-01-02 | G67: 410 | H67: MINIME | I67: 00:16:22 | J67: 66
A68: 40662 | B68: SOLONIRINA | C68: Tantely | D68: F | E68: 2004-11-03 | G68: 406 | H68: MINIME | I68: 00:16:24 | J68: 67
A69: 40451 | B69: BORIGNIOL | C69: Anne-Laure | D69: F | E69: 2003-01-11 | G69: 404 | H69: MINIME | I69: 00:16:27 | J69: 68
A70: 40351 | B70: ANQUIBOU | C70: Marion | D70: F | E70: 2004-01-02 | G70: 403 | H70: MINIME | I70: 00:16:28 | J70: 69
A71: 40754 | B71: FENELON | C71: Aurélia | D71: F | E71: 2004-07-11 | F71: IME | G71: 407 | H71: MINIME | I71: 00:16:30 | J71: 70
A72: 40952 | B72: BALAGOUROU | C72: Maéva | D72: F | E72: 2004-06-03 | G72: 409 | H72: MINIME | I72: 00:17:08 | J72: 71
A73: 40254 | B73: SAINDOU COMBO | C73: Maria | D73: F | E73: 2003-06-04 | G73: 402 | H73: MINIME | I73: 00:17:10 | J73: 72
A74: 40151 | B74: ABDOU-LIFATAHOU | C74: Bahati | D74: F | E74: 2003-08-30 | G74: 401 | H74: MINIME | I74: 00:17:12 | J74: 73
A75: 40555 | B75: GOPAUL | C75: Ourvashe | D75: F | E75: 2004-11-26 | G75: 405 | H75: MINIME | I75: 00:17:14 | J75: 74
A76: 40660 | B76: LESTE | C76: Ericka | D76: F | E76: 2004-01-11 | G76: 406 | H76: MINIME | I76: 00:17:15 | J76: 75
A77: 41061 | B77: PERMALNAICK | C77: Emma | D77: F | E77: 2004-01-29 | G77: 410 | H77: MINIME | I77: 00:17:17 | J77: 76
A78: 40956 | B78: GENESTE ROUSSARD | C78: Kaycie | D78: F | E78: 2004-04-24 | G78: 409 | H78: MINIME | I78: 00:17:25 | J78: 77
A79: 40458 | B79: SELLAMBAYE | C79: Loriane | D79: F | E79: 2004-07-15 | G79: 404 | H79: MINIME | I79: 00:17:26 | J79: 78
A80: 41163 | B80: TURPIN | C80: Angélique | D80: F | E80: 2003-11-27 | G80: 411 | H80: MINIME | I80: 00:17:28 | J80: 79
A81: 40854 | B81: HOUNG CHUI KIENG | C81: Cécile | D81: F | E81: 2004-01-08 | G81: 408 | H81: MINIME | I81: 00:17:30 | J81: 80
A82: 41154 | B82: L'ATTENTION | C82: Colynne | D82: F | E82: 2004-03-05 | G82: 411 | H82: MINIME | I82: 00:17:31 | J82: 81
A83: 40856 | B83: LESTE | C83: Scheryline | D83: F | E83: 2004-04-05 | G83: 408 | H83: MINIME | I83: 00:17:33 | J83: 82
A84: 41258 | B84: MARIE | C84: Manuella | D84: F | E84: 2004-03-31 | G84: 412 | H84: MINIME | I84: 00:17:50 | J84: 83
A85: 40751 | B85: ALAMELOU | C85: Coralie | D85: F | E85: 2004-06-04 | G85: 407 | H85: MINIME | I85: 00:17:52 | J85: 84
A86: 40654 | B86: COMORASSAMY | C86: Emma | D86: F | E86: 2004-05-10 | G86: 406 | H86: MINIME | I86: 00:18:24 | J86: 85
A87: 40761 | B87: ROBERT | C87: Sarah | D87: F | E87: 2004-07-15 | G87: 407 | H87: MINIME | I87: 00:18:25 | J87: 86
A88: 40664 | B88: VINGUETAMA-PERIANAGOM | C88: Sandira | D88: F | E88: 2004-08-12 | G88: 406 | H88: MINIME | I88: 00:18:27 | J88: 87
A89: 40753 | B89: DOUCERAIN SERVEAU | C89: Nellsie | D89: F | E89: 2004-07-10 | G89: 407 | H89: MINIME | I89: 00:18:37 | J89: 88
A90: 40252 | B90: LARAVINE | C90: Eva | D90: F | E90: 2003-11-01 | G90: 402 | H90: MINIME | I90: 00:18:38 | J90: 89
A91: 40651 | B91: ALIZE | C91: Stessie | D91: F | E91: 2003-11-16 | G91: 406 | H91: MINIME | I91: 00:18:40 | J91: 90
A92: 40653 | B92: BERILE | C92: Coline | D92: F | E92: 2004-07-29 | G92: 406 | H92: MINIME | I92: 00:18:42 | J92: 91
A93: 41253 | B93: CELY | C93: Clémence | D93: F | E93: 2004-12-13 | G93: 412 | H93: MINIME | I93: 00:18:56 | J93: 92
A94: 40556 | B94: HOULAM | C94: Lynesia | D94: F | E94: 2004-04-14 | G94: 405 | H94: MINIME | I94: 00:18:58 | J94: 93
A95: 40558 | B95: POTOU | C95: Stephy | D95: F | E95: 2004-07-19 | G95: 405 | H95: MINIME | I95: 00:19:06 | J95: 94
A96: 40661 | B96: PONCELAY | C96: Clensy | D96: F | E96: 2004-09-18 | G96: 406 | H96: MINIME | I96: 00:19:18 | J96: 95
A97: 41055 | B97: DALLEAU | C97: Sabrina | D97: F | E97: 2004-10-20 | F97: IME | G97: 410 | H97: MINIME | I97: 00:19:27 | J97: 96
A98: 40953 | B98: BOYER | C98: Prisca | D98: F | E98: 2004-01-13 | G98: 409 | H98: MINIME | I98: 00:20:16 | J98: 97
A99: 40853 | B99: GAILLAC | C99: Cassandra | D99: F | E99: 2004-04-13 | G99: 408 | H99: MINIME | I99: 00:20:30 | J99: 98
A100: 40764 | B100: TATEYA | C100: Magalie | D100: F | E100: 2004-03-14 | G100: 407 | H100: MINIME | I100: 00:21:23 | J100: 99
A101: 40752 | B101: BENOIT | C101: Dayana | D101: F | E101: 2004-09-03 | G101: 407 | H101: MINIME | I101: 00:21:25 | J101: 100

Sheet 4èGarçons
A1: DOSSARD | B1: NOM | C1: PRENOM | D1: SEXE | E1: DATENAISS | F1: NOMETABL | G1: CLASSE | H1: CATEGORIE | I1: TEMPS | J1: PLACE | O1: Classe | P1: Classement des 5 premiers coureurs de chaque classe | U1: total
A2: 40805 | B2: GANNE | C2: Yoni | D2: M | E2: 2004-02-05 | G2: 408 | H2: MINIME | I2: 00:10:11 | J2: 1 | N2: 1er | O2: 409 | P2: 4 | Q2: 6 | R2: 8 | S2: 20 | T2: 42 | U2: =IF(OR(ISBLANK(P2),ISBLANK(Q2),ISBLANK(R2),ISBLANK(S2),ISBLANK(T2)),"< 5 coureurs",SUM(P2:T2)) -> 80
A3: 40501 | B3: ABDOU | C3: Darouèche | D3: M | E3: 2004-02-25 | G3: 405 | H3: MINIME | I3: 00:10:19 | J3: 2 | N3: 2ème | O3: 405 | P3: 2 | Q3: 5 | R3: 18 | S3: 26 | T3: 37 | U3: =IF(OR(ISBLANK(P3),ISBLANK(Q3),ISBLANK(R3),ISBLANK(S3),ISBLANK(T3)),"< 5 coureurs",SUM(P3:T3)) -> 88
A4: 40203 | B4: BOURHANI | C4: Djadirou | D4: M | E4: 2003-01-13 | G4: 402 | H4: MINIME | I4: 00:10:20 | J4: 3 | N4: 3ème | O4: 408 | P4: 1 | Q4: 7 | R4: 24 | S4: 27 | T4: 45 | U4: =IF(OR(ISBLANK(P4),ISBLANK(Q4),ISBLANK(R4),ISBLANK(S4),ISBLANK(T4)),"< 5 coureurs",SUM(P4:T4)) -> 104
A5: 40906 | B5: FOUSSANE | C5: Guillaume | D5: M | E5: 2004-05-28 | G5: 409 | H5: MINIME | I5: 00:11:06 | J5: 4 | N5: 4ème | O5: 403 | P5: 14 | Q5: 15 | R5: 19 | S5: 34 | T5: 36 | U5: =IF(OR(ISBLANK(P5),ISBLANK(Q5),ISBLANK(R5),ISBLANK(S5),ISBLANK(T5)),"< 5 coureurs",SUM(P5:T5)) -> 118
A6: 40513 | B6: YOUNOUSSA | C6: Hairidine | D6: M | E6: 2003-05-07 | G6: 405 | H6: MINIME | I6: 00:11:09 | J6: 5 | N6: 5ème | O6: 411 | P6: 9 | Q6: 25 | R6: 29 | S6: 31 | T6: 44 | U6: =IF(OR(ISBLANK(P6),ISBLANK(Q6),ISBLANK(R6),ISBLANK(S6),ISBLANK(T6)),"< 5 coureurs",SUM(P6:T6)) -> 138
A7: 40913 | B7: PEDRE | C7: Emmanuel | D7: M | E7: 2004-03-14 | G7: 409 | H7: MINIME | I7: 00:11:31 | J7: 6 | N7: 6ème | O7: 402 | P7: 3 | Q7: 16 | R7: 38 | S7: 40 | T7: 51 | U7: =IF(OR(ISBLANK(P7),ISBLANK(Q7),ISBLANK(R7),ISBLANK(S7),ISBLANK(T7)),"< 5 coureurs",SUM(P7:T7)) -> 148
A8: 40803 | B8: BORIGNIOL | C8: Aaron | D8: M | E8: 2003-10-18 | G8: 408 | H8: MINIME | I8: 00:11:32 | J8: 7 | N8: 7ème | O8: 404 | P8: 21 | Q8: 28 | R8: 33 | S8: 39 | T8: 57 | U8: =IF(OR(ISBLANK(P8),ISBLANK(Q8),ISBLANK(R8),ISBLANK(S8),ISBLANK(T8)),"< 5 coureurs",SUM(P8:T8)) -> 178
A9: 40904 | B9: DANY | C9: Nicolas | D9: M | E9: 2003-08-28 | G9: 409 | H9: MINIME | I9: 00:11:34 | J9: 8 | N9: 8ème | O9: 406 | P9: 10 | Q9: 13 | R9: 35 | S9: 63 | T9: 76 | U9: =IF(OR(ISBLANK(P9),ISBLANK(Q9),ISBLANK(R9),ISBLANK(S9),ISBLANK(T9)),"< 5 coureurs",SUM(P9:T9)) -> 197
A10: 41102 | B10: ANTIER | C10: Bryan | D10: M | E10: 2003-07-04 | G10: 411 | H10: MINIME | I10: 00:11:36 | J10: 9 | N10: 9ème | O10: 412 | P10: 11 | Q10: 12 | R10: 46 | S10: 53 | T10: 88 | U10: =IF(OR(ISBLANK(P10),ISBLANK(Q10),ISBLANK(R10),ISBLANK(S10),ISBLANK(T10)),"< 5 coureurs",SUM(P10:T10)) -> 210
A11: 40606 | B11: SAUROY | C11: Keny | D11: M | E11: 2004-01-29 | G11: 406 | H11: MINIME | I11: 00:11:38 | J11: 10 | N11: 10ème | O11: 401 | P11: 17 | Q11: 32 | R11: 49 | S11: 50 | T11: 66 | U11: =IF(OR(ISBLANK(P11),ISBLANK(Q11),ISBLANK(R11),ISBLANK(S11),ISBLANK(T11)),"< 5 coureurs",SUM(P11:T11)) -> 214
A12: 41206 | B12: VALLÈS | C12: Pablo | D12: M | E12: 2004-12-21 | G12: 412 | H12: MINIME | I12: 00:11:39 | J12: 11 | N12: 11ème | O12: 410 | P12: 22 | Q12: 23 | R12: 55 | S12: 85 | T12: 89 | U12: =IF(OR(ISBLANK(P12),ISBLANK(Q12),ISBLANK(R12),ISBLANK(S12),ISBLANK(T12)),"< 5 coureurs",SUM(P12:T12)) -> 274
A13: 41201 | B13: IVA | C13: Kenny | D13: M | E13: 2004-12-16 | G13: 412 | H13: MINIME | I13: 00:11:41 | J13: 12 | N13: 12ème | O13: 407 | P13: 30 | Q13: 48 | R13: 90 | S13: 91 | T13: 100 | U13: =IF(OR(ISBLANK(P13),ISBLANK(Q13),ISBLANK(R13),ISBLANK(S13),ISBLANK(T13)),"< 5 coureurs",SUM(P13:T13)) -> 359
A14: 40604 | B14: MCHINDRA | C14: Djounaidi | D14: M | E14: 2003-03-24 | G14: 406 | H14: MINIME | I14: 00:11:43 | J14: 13
A15: 40303 | B15: DAMOUR | C15: Luidji | D15: M | E15: 2004-11-26 | G15: 403 | H15: MINIME | I15: 00:11:49 | J15: 14 | N15: Médailles d'or | P15: 409
A16: 40301 | B16: ALI-ADA | C16: Anrifou | D16: M | E16: 2004-02-13 | G16: 403 | H16: MINIME | I16: 00:11:50 | J16: 15
A17: 40204 | B17: CARCANY | C17: Ludovic | D17: M | E17: 2003-10-11 | G17: 402 | H17: MINIME | I17: 00:11:52 | J17: 16 | M17: FOUSSANE | O17: PEDRE | Q17: DANY | S17: NAGUIN | U17: MAILLOT
A18: 40109 | B18: HOUMADI | C18: Radjabou | D18: M | E18: 2002-10-05 | G18: 401 | H18: CADET | I18: 00:11:57 | J18: 17 | M18: Guillaume | O18: Emmanuel | Q18: Nicolas | S18: Anthony | U18: Lucas
A19: 40510 | B19: ROBERT | C19: Mickaël | D19: M | E19: 2004-05-26 | G19: 405 | H19: MINIME | I19: 00:11:59 | J19: 18
A20: 40305 | B20: PACARI | C20: Théo | D20: M | E20: 2004-12-28 | G20: 403 | H20: MINIME | I20: 00:12:26 | J20: 19 | N20: Médailles d'argent | P20: 405
A21: 40912 | B21: NAGUIN | C21: Anthony | D21: M | E21: 2004-08-06 | G21: 409 | H21: MINIME | I21: 00:12:28 | J21: 20
A22: 40408 | B22: NALLAMAN | C22: Kyllian | D22: M | E22: 2004-09-17 | G22: 404 | H22: MINIME | I22: 00:12:30 | J22: 21 | M22: ABDOU | O22: YOUNOUSSA | Q22: ROBERT | S22: PARIS | U22: CRESCENCE
A23: 41002 | B23: CALICHARANE | C23: Theo | D23: M | E23: 2004-05-09 | G23: 410 | H23: MINIME | I23: 00:12:31 | J23: 22 | M23: Darouèche | O23: Hairidine | Q23: Mickaël | S23: Romuald | U23: Noah
A24: 41008 | B24: IBRAHIME | C24: Zaidou | D24: M | E24: 2004-05-24 | G24: 410 | H24: MINIME | I24: 00:12:33 | J24: 23
A25: 40813 | B25: SOUNDRON | C25: Yvan | D25: M | E25: 2004-02-28 | G25: 408 | H25: MINIME | I25: 00:12:38 | J25: 24 | N25: Médailles de bronze | P25: 408
A26: 41110 | B26: RASOANAIVO | C26: Mathieu | D26: M | E26: 2004-12-09 | G26: 411 | H26: MINIME | I26: 00:12:40 | J26: 25
A27: 40509 | B27: PARIS | C27: Romuald | D27: M | E27: 2004-06-26 | G27: 405 | H27: MINIME | I27: 00:12:43 | J27: 26 | M27: GANNE | O27: BORIGNIOL | Q27: SOUNDRON | S27: BLAGNAC | U27: GIRAUD
A28: 40802 | B28: BLAGNAC | C28: Rayan | D28: M | E28: 2004-01-25 | G28: 408 | H28: MINIME | I28: 00:13:09 | J28: 27 | M28: Yoni | O28: Aaron | Q28: Yvan | S28: Rayan | U28: Regis
A29: 40401 | B29: BATAILLOU | C29: Lucas | D29: M | E29: 2004-05-07 | G29: 404 | H29: MINIME | I29: 00:13:11 | J29: 28
A30: 41107 | B30: MARTIN | C30: Dylan | D30: M | E30: 2003-07-12 | G30: 411 | H30: MINIME | I30: 00:13:12 | J30: 29
A31: 40702 | B31: BERILE | C31: Daryl | D31: M | E31: 2004-01-09 | G31: 407 | H31: MINIME | I31: 00:13:14 | J31: 30
A32: 41103 | B32: BOULANGER | C32: Benjamin | D32: M | E32: 2003-03-29 | G32: 411 | H32: MINIME | I32: 00:13:19 | J32: 31
A33: 40111 | B33: MAILLOT | C33: Florent | D33: M | E33: 2003-09-28 | G33: 401 | H33: MINIME | I33: 00:13:21 | J33: 32
A34: 40403 | B34: GUILGORI | C34: Brams | D34: M | E34: 2004-08-20 | G34: 404 | H34: MINIME | I34: 00:13:23 | J34: 33
A35: 40311 | B35: SINAMOUTOU | C35: Arnaud | D35: M | E35: 2004-02-23 | G35: 403 | H35: MINIME | I35: 00:13:25 | J35: 34
A36: 40608 | B36: YOUNOUSSA | C36: Aydine | D36: M | E36: 2004-08-14 | G36: 406 | H36: MINIME | I36: 00:13:30 | J36: 35
A37: 40312 | B37: TOPLAN | C37: Anthony | D37: M | E37: 2004-11-15 | G37: 403 | H37: MINIME | I37: 00:13:32 | J37: 36
A38: 40504 | B38: CRESCENCE | C38: Noah | D38: M | E38: 2004-05-08 | G38: 405 | H38: MINIME | I38: 00:13:34 | J38: 37
A39: 40202 | B39: BASSONVILLE | C39: Rayan | D39: M | E39: 2003-07-15 | G39: 402 | H39: MINIME | I39: 00:13:37 | J39: 38
A40: 40410 | B40: PITOU | C40: Julien | D40: M | E40: 2004-10-25 | G40: 404 | H40: MINIME | I40: 00:13:39 | J40: 39
A41: 40205 | B41: COLLET | C41: Allan | D41: M | E41: 2003-11-11 | G41: 402 | H41: MINIME | I41: 00:13:49 | J41: 40
A42: 40508 | B42: NALEM | C42: Nicolas | D42: M | E42: 2003-11-06 | G42: 405 | H42: MINIME | I42: 00:13:51 | J42: 41
A43: 40910 | B43: MAILLOT | C43: Lucas | D43: M | E43: 2004-08-27 | G43: 409 | H43: MINIME | I43: 00:13:53 | J43: 42
A44: 40903 | B44: CELERINE | C44: Sébastien | D44: M | E44: 2004-03-28 | G44: 409 | H44: MINIME | I44: 00:13:57 | J44: 43
A45: 41104 | B45: CLAIN | C45: Xavier | D45: M | E45: 2004-01-03 | G45: 411 | H45: MINIME | I45: 00:14:04 | J45: 44
A46: 40807 | B46: GIRAUD | C46: Regis | D46: M | E46: 2004-08-24 | G46: 408 | H46: MINIME | I46: 00:14:20 | J46: 45
A47: 41205 | B47: VALENTIN | C47: Léo | D47: M | E47: 2004-06-11 | G47: 412 | H47: MINIME | I47: 00:14:22 | J47: 46
A48: 40308 | B48: RAMOUCHE | C48: Enzo | D48: M | E48: 2003-03-28 | G48: 403 | H48: MINIME | I48: 00:14:24 | J48: 47
A49: 40701 | B49: BEGUE | C49: Anthony | D49: M | E49: 2004-02-01 | G49: 407 | H49: MINIME | I49: 00:14:27 | J49: 48
A50: 40113 | B50: SAID | C50: Raouf | D50: M | E50: 2003-10-06 | G50: 401 | H50: MINIME | I50: 00:14:46 | J50: 49
A51: 40101 | B51: ABDOU ALI | C51: Mohamad | D51: M | E51: 2003-09-10 | G51: 401 | H51: MINIME | I51: 00:14:48 | J51: 50
A52: 40206 | B52: HAFIDHOU | C52: Anrich | D52: M | E52: 2003-07-22 | G52: 402 | H52: MINIME | I52: 00:14:50 | J52: 51
A53: 41112 | B53: SUARES | C53: Lenny | D53: M | E53: 2004-01-27 | G53: 411 | H53: MINIME | I53: 00:14:51 | J53: 52
A54: 41202 | B54: MASSON | C54: Kyran | D54: M | E54: 2004-06-02 | G54: 412 | H54: MINIME | I54: 00:14:53 | J54: 53
A55: 40806 | B55: GERMAIN | C55: Keyran | D55: M | E55: 2004-07-06 | G55: 408 | H55: MINIME | I55: 00:14:58 | J55: 54
A56: 41001 | B56: ABDOU | C56: Soubira | D56: M | E56: 2004-03-20 | G56: 410 | H56: MINIME | I56: 00:15:00 | J56: 55
A57: 10412 | B57: GUEROLD | C57: Pascal | G57: 412 | H57: PARRAINAGE | I57: 00:15:04 | J57: 56
A58: 40413 | B58: TANCOURT | C58: Alexandre | D58: M | E58: 2004-02-21 | G58: 404 | H58: MINIME | I58: 00:15:24 | J58: 57
A59: 40502 | B59: BASTIDE | C59: Lucien | D59: M | E59: 2004-06-22 | G59: 405 | H59: MINIME | I59: 00:15:26 | J59: 58
A60: 40302 | B60: ASSANDRIPA | C60: Lucas | D60: M | E60: 2004-03-07 | G60: 403 | H60: MINIME | I60: 00:15:28 | J60: 59
A61: 40809 | B61: MAILLOT | C61: Noah | D61: M | E61: 2004-03-10 | G61: 408 | H61: MINIME | I61: 00:15:29 | J61: 60
A62: 40914 | B62: SALAMA | C62: Lucas | D62: M | E62: 2004-10-05 | G62: 409 | H62: MINIME | I62: 00:15:35 | J62: 61
A63: 41105 | B63: ESTORGUES | C63: Aïron | D63: M | E63: 2005-04-04 | G63: 411 | H63: BENJAMIN | I63: 00:15:37 | J63: 62
A64: 40603 | B64: MANORO | C64: Evans | D64: M | E64: 2004-10-03 | G64: 406 | H64: MINIME | I64: 00:15:38 | J64: 63
A65: 41109 | B65: RAMASSAMY | C65: Enzo | D65: M | E65: 2004-06-30 | G65: 411 | H65: MINIME | I65: 00:15:40 | J65: 64
A66: 40313 | B66: TURPIN | C66: Thomas | D66: M | E66: 2004-04-29 | G66: 403 | H66: MINIME | I66: 00:15:42 | J66: 65
A67: 40105 | B67: BUDEL | C67: Lorenzo | D67: M | E67: 2003-05-01 | G67: 401 | H67: MINIME | I67: 00:15:49 | J67: 66
A68: 40505 | B68: FONTAINE | C68: Judikaël | D68: M | E68: 2004-07-14 | G68: 405 | H68: MINIME | I68: 00:15:50 | J68: 67
A69: 40210 | B69: SOUDJAE | C69: Youssouf | D69: M | E69: 2003-06-03 | G69: 402 | H69: MINIME | I69: 00:15:52 | J69: 68
A70: 40108 | B70: HOAREAU | C70: Evan | D70: M | E70: 2003-02-03 | G70: 401 | H70: MINIME | I70: 00:15:57 | J70: 69
A71: 40209 | B71: SORRES | C71: Haïlé | D71: M | E71: 2003-09-14 | G71: 402 | H71: MINIME | I71: 00:15:59 | J71: 70
A72: 40507 | B72: MARDAMA NAYAGOM | C72: Ganyshenty | D72: M | E72: 2004-09-23 | G72: 405 | H72: MINIME | I72: 00:16:02 | J72: 71
A73: 40405 | B73: LESTE | C73: Ritchy | D73: M | E73: 2004-02-10 | G73: 404 | H73: MINIME | I73: 00:16:16 | J73: 72
A74: 40208 | B74: PICOT | C74: Damien | D74: M | E74: 2003-12-02 | G74: 402 | H74: MINIME | I74: 00:16:17 | J74: 73
A75: 40112 | B75: NASSIBOU | C75: Nathan | D75: M | E75: 2003-02-25 | G75: 401 | H75: MINIME | I75: 00:16:19 | J75: 74
A76: 40402 | B76: GRONDIN | C76: Romain | D76: M | E76: 2004-01-31 | G76: 404 | H76: MINIME | I76: 00:16:21 | J76: 75
A77: 40602 | B77: MAILLOT | C77: Ivan | D77: M | E77: 2004-04-28 | G77: 406 | H77: MINIME | I77: 00:16:26 | J77: 76
A78: 40110 | B78: MAHANO | C78: Tony | D78: M | E78: 2003-10-12 | G78: 401 | H78: MINIME | I78: 00:17:07 | J78: 77
A79: 40905 | B79: FLEURICOURT | C79: Mathias | D79: M | E79: 2004-11-26 | G79: 409 | H79: MINIME | I79: 00:17:08 | J79: 78
A80: 41111 | B80: SABABADY | C80: Radjee | D80: M | E80: 2004-08-01 | G80: 411 | H80: MINIME | I80: 00:17:10 | J80: 79
A81: 40601 | B81: BOYER | C81: Emmanuel | D81: M | E81: 2004-07-21 | G81: 406 | H81: MINIME | I81: 00:17:11 | J81: 80
A82: 40306 | B82: PAVADY | C82: Lucas | D82: M | E82: 2004-12-17 | G82: 403 | H82: MINIME | I82: 00:17:30 | J82: 81
A83: 40304 | B83: DIJOUX | C83: Ruben | D83: M | E83: 2004-02-03 | G83: 403 | H83: MINIME | I83: 00:17:53 | J83: 82
A84: 40310 | B84: SAMINADIN | C84: Erwan | D84: M | E84: 2004-05-04 | G84: 403 | H84: MINIME | I84: 00:17:54 | J84: 83
A85: 40307 | B85: RAMASSAMY | C85: Grégory | D85: M | E85: 2004-11-21 | G85: 403 | H85: MINIME | I85: 00:18:20 | J85: 84
A86: 41009 | B86: SEVAMY TAILAMIN | C86: Nicolas | D86: M | E86: 2004-07-22 | G86: 410 | H86: MINIME | I86: 00:18:21 | J86: 85
A87: 40114 | B87: SAMINADIN | C87: Lucas | D87: M | E87: 2003-03-22 | G87: 401 | H87: MINIME | I87: 00:18:23 | J87: 86
A88: 40103 | B88: BERNARD | C88: Charles | D88: M | E88: 2003-12-09 | G88: 401 | H88: MINIME | I88: 00:18:25 | J88: 87
A89: 41203 | B89: MOREAU | C89: Benjy | D89: M | E89: 2004-02-05 | G89: 412 | H89: MINIME | I89: 00:18:27 | J89: 88
A90: 41010 | B90: VIALLON | C90: Kyeran | D90: M | E90: 2004-02-24 | G90: 410 | H90: MINIME | I90: 00:18:31 | J90: 89
A91: 40707 | B91: ULDARIC NAUCHE | C91: Evan | D91: M | E91: 2004-07-22 | G91: 407 | H91: MINIME | I91: 00:19:11 | J91: 90
A92: 40703 | B92: BERNARD | C92: Kenny | D92: M | E92: 2004-07-04 | G92: 407 | H92: MINIME | I92: 00:19:13 | J92: 91
A93: 40902 | B93: BANCALIN | C93: Rafael | D93: M | E93: 2004-02-09 | G93: 409 | H93: MINIME | I93: 00:19:14 | J93: 92
A94: 40412 | B94: SEYCHELLES | C94: Floran | D94: M | E94: 2004-06-28 | G94: 404 | H94: MINIME | I94: 00:19:16 | J94: 93
A95: 40404 | B95: HOAREAU | C95: Damien | D95: M | E95: 2004-04-29 | G95: 404 | H95: MINIME | I95: 00:19:17 | J95: 94
A96: 10003 | B96: YOVE | C96: Yllian | G96: 406 | H96: MINIME | I96: 00:19:28 | J96: 95
A97: 41106 | B97: LESTE | C97: Bryan | D97: M | E97: 2004-09-13 | G97: 411 | H97: MINIME | I97: 00:19:29 | J97: 96
A98: 41101 | B98: ANANASSE | C98: Ménélik | D98: M | E98: 2003-07-03 | F98: IME | G98: 411 | H98: MINIME | I98: 00:19:44 | J98: 97
A99: 40512 | B99: SINAN | C99: Keyann | D99: M | E99: 2003-04-01 | G99: 405 | H99: MINIME | I99: 00:19:46 | J99: 98
A100: 40406 | B100: MAHE | C100: Rajiv | D100: M | E100: 2004-08-12 | G100: 404 | H100: MINIME | I100: 00:19:48 | J100: 99
A101: 40706 | B101: POINY-VAITY | C101: Samuel | D101: M | E101: 2004-08-19 | G101: 407 | H101: MINIME | I101: 00:19:50 | J101: 100
A102: 40106 | B102: FONTAINE | C102: Yann | D102: M | E102: 2003-07-22 | G102: 401 | H102: MINIME | I102: 00:20:30 | J102: 101
A103: 41007 | B103: FIVRIA | C103: Roan | D103: M | E103: 2004-12-27 | G103: 410 | H103: MINIME | I103: 00:20:59 | J103: 102
A104: 40607 | B104: SINAPIN | C104: Rohan | D104: M | E104: 2004-02-23 | G104: 406 | H104: MINIME | I104: 00:21:01 | J104: 103
A105: 41108 | B105: MONTFORT | C105: Lucas | D105: M | E105: 2004-11-28 | G105: 411 | H105: MINIME | I105: 00:21:02 | J105: 104
A106: 40104 | B106: BOYER | C106: Armel | D106: M | E106: 2003-06-27 | G106: 401 | H106: MINIME | I106: 00:22:40 | J106: 105
A107: 41006 | B107: ELLAMA | C107: Fabien | D107: M | E107: 2004-04-19 | G107: 410 | H107: MINIME | I107: 00:22:41 | J107: 106
A108: 40511 | B108: RODOT | C108: Nicolas | D108: M | E108: 2004-01-15 | G108: 405 | H108: MINIME | I108: 00:23:05 | J108: 107
A109: 41005 | B109: CERVEAU | C109: Eroan | D109: M | E109: 2004-10-09 | G109: 410 | H109: MINIME | I109: 00:24:11 | J109: 108
A110: 41004 | B110: CASIMIR | C110: Laurent | D110: M | E110: 2004-06-21 | G110: 410 | H110: MINIME | I110: 00:24:13 | J110: 109
A111: 40909 | B111: LAUP | C111: Noah | D111: M | E111: 2004-03-25 | G111: 409 | H111: MINIME | I111: 00:24:15 | J111: 110
A112: 41003 | B112: CARRIER | C112: Thomas | D112: M | E112: 2004-05-10 | F112: IME | G112: 410 | H112: MINIME | I112: 00:24:28 | J112: 111
A113: 40207 | B113: MARIE | C113: Russel | D113: M | E113: 2003-04-28 | G113: 402 | H113: MINIME | I113: 00:24:30 | J113: 112

Sheet 3èFilles
A1: DOSSARD | B1: NOM | C1: PRENOM | D1: SEXE | E1: DATENAISS | F1: NOMETABL | G1: CLASSE | H1: CATEGORIE | I1: TEMPS | J1: PLACE | O1: Classe | P1: Classement des 5 premières coureuses de chaque classe | U1: total
A2: 31155 | B2: GANNE | C2: Ophélie | D2: F | E2: 2003-06-26 | G2: 311 | H2: MINIME | I2: 00:09:29 | J2: 1 | N2: 1er | O2: 311 | P2: 1 | Q2: 2 | R2: 4 | S2: 6 | T2: 31 | U2: =IF(OR(ISBLANK(P2),ISBLANK(Q2),ISBLANK(R2),ISBLANK(S2),ISBLANK(T2)),"< 5 coureurs",SUM(P2:T2)) -> 44
A3: 31163 | B3: THIONVILLE | C3: Aurore | D3: F | E3: 2003-10-06 | G3: 311 | H3: MINIME | I3: 00:09:54 | J3: 2 | N3: 2ème | O3: 309 | P3: 5 | Q3: 8 | R3: 9 | S3: 10 | T3: 21 | U3: =IF(OR(ISBLANK(P3),ISBLANK(Q3),ISBLANK(R3),ISBLANK(S3),ISBLANK(T3)),"< 5 coureurs",SUM(P3:T3)) -> 53
A4: 30361 | B4: WELMANT | C4: Anelsia | D4: F | E4: 2003-01-16 | G4: 303 | H4: MINIME | I4: 00:09:55 | J4: 3 | N4: 3ème | O4: 303 | P4: 3 | Q4: 16 | R4: 22 | S4: 24 | T4: 25 | U4: =IF(OR(ISBLANK(P4),ISBLANK(Q4),ISBLANK(R4),ISBLANK(S4),ISBLANK(T4)),"< 5 coureurs",SUM(P4:T4)) -> 90
A5: 31156 | B5: JEANSON | C5: Maëva | D5: F | E5: 2003-09-22 | G5: 311 | H5: MINIME | I5: 00:10:31 | J5: 4 | N5: 4ème | O5: 305 | P5: 13 | Q5: 19 | R5: 20 | S5: 34 | T5: 43 | U5: =IF(OR(ISBLANK(P5),ISBLANK(Q5),ISBLANK(R5),ISBLANK(S5),ISBLANK(T5)),"< 5 coureurs",SUM(P5:T5)) -> 129
A6: 30960 | B6: PAYET | C6: Aurore | D6: F | E6: 2003-01-14 | G6: 309 | H6: MINIME | I6: 00:10:54 | J6: 5 | N6: 5ème | O6: 307 | P6: 12 | Q6: 15 | R6: 35 | S6: 41 | T6: 46 | U6: =IF(OR(ISBLANK(P6),ISBLANK(Q6),ISBLANK(R6),ISBLANK(S6),ISBLANK(T6)),"< 5 coureurs",SUM(P6:T6)) -> 149
A7: 31160 | B7: SALEDY | C7: Emeline | D7: F | E7: 2003-04-09 | G7: 311 | H7: MINIME | I7: 00:11:21 | J7: 6 | N7: 6ème | O7: 304 | P7: 18 | Q7: 33 | R7: 36 | S7: 39 | T7: 47 | U7: =IF(OR(ISBLANK(P7),ISBLANK(Q7),ISBLANK(R7),ISBLANK(S7),ISBLANK(T7)),"< 5 coureurs",SUM(P7:T7)) -> 173
A8: 30659 | B8: JULIEN | C8: Mélanie | D8: F | E8: 2002-09-12 | G8: 306 | H8: CADETTE | I8: 00:11:24 | J8: 7 | N8: 7ème | O8: 308 | P8: 23 | Q8: 30 | R8: 37 | S8: 44 | T8: 45 | U8: =IF(OR(ISBLANK(P8),ISBLANK(Q8),ISBLANK(R8),ISBLANK(S8),ISBLANK(T8)),"< 5 coureurs",SUM(P8:T8)) -> 179
A9: 30955 | B9: EDMOND | C9: Oceane Marie A | D9: F | E9: 2003-04-03 | G9: 309 | H9: MINIME | I9: 00:11:26 | J9: 8 | N9: 8ème | O9: 310 | P9: 17 | Q9: 29 | R9: 38 | S9: 48 | T9: 51 | U9: =IF(OR(ISBLANK(P9),ISBLANK(Q9),ISBLANK(R9),ISBLANK(S9),ISBLANK(T9)),"< 5 coureurs",SUM(P9:T9)) -> 183
A10: 30952 | B10: BOISEDU | C10: Melodie | D10: F | E10: 2003-02-16 | G10: 309 | H10: MINIME | I10: 00:11:28 | J10: 9 | N10: 9ème | O10: 306 | P10: 7 | Q10: 11 | R10: 50 | S10: 58 | T10: 67 | U10: =IF(OR(ISBLANK(P10),ISBLANK(Q10),ISBLANK(R10),ISBLANK(S10),ISBLANK(T10)),"< 5 coureurs",SUM(P10:T10)) -> 193
A11: 30953 | B11: BOYER | C11: Loanne | D11: F | E11: 2003-03-20 | G11: 309 | H11: MINIME | I11: 00:11:40 | J11: 10 | N11: 10ème | O11: 301 | P11: 14 | Q11: 26 | R11: 27 | U11: =IF(OR(ISBLANK(P11),ISBLANK(Q11),ISBLANK(R11),ISBLANK(S11),ISBLANK(T11)),"< 5 coureurs",SUM(P11:T11)) -> < 5 coureurs
A12: 30652 | B12: DEVANE | C12: Enjie | D12: F | E12: 2003-08-11 | G12: 306 | H12: MINIME | I12: 00:11:41 | J12: 11 | N12: 11ème | O12: 302 | P12: 55 | Q12: 76 | U12: =IF(OR(ISBLANK(P12),ISBLANK(Q12),ISBLANK(R12),ISBLANK(S12),ISBLANK(T12)),"< 5 coureurs",SUM(P12:T12)) -> < 5 coureurs
A13: 30758 | B13: MARDE | C13: Anaelle | D13: F | E13: 2003-03-11 | G13: 307 | H13: MINIME | I13: 00:11:43 | J13: 12 | N13: 12ème | O13: 312 | U13: =IF(OR(ISBLANK(P13),ISBLANK(Q13),ISBLANK(R13),ISBLANK(S13),ISBLANK(T13)),"< 5 coureurs",SUM(P13:T13)) -> < 5 coureurs
A14: 30551 | B14: AHAMADI | C14: Karima | D14: F | E14: 2003-07-26 | G14: 305 | H14: MINIME | I14: 00:11:57 | J14: 13
A15: 30154 | B15: MOUSSA | C15: Samaita | D15: F | E15: 2002-12-21 | G15: 301 | H15: CADETTE | I15: 00:12:19 | J15: 14 | N15: Médailles d'or | P15: 311
A16: 30761 | B16: PARAVEMAN | C16: Maeva Clarisse | D16: F | E16: 2003-11-06 | G16: 307 | H16: MINIME | I16: 00:12:21 | J16: 15
A17: 30359 | B17: PICARD | C17: Anne Laure | D17: F | E17: 2003-09-21 | G17: 303 | H17: MINIME | I17: 00:12:24 | J17: 16 | M17: GANNE | O17: THIONVILLE | Q17: JEANSON | S17: SALEDY | U17: FOUSSANE
A18: 31064 | B18: SAUTRON | C18: Coralie | D18: F | E18: 2003-04-26 | G18: 310 | H18: MINIME | I18: 00:12:26 | J18: 17 | M18: Ophélie | O18: Aurore | Q18: Maëva | S18: Emeline | U18: Kélyne
A19: 30456 | B19: HOAREAU | C19: Delphine | D19: F | E19: 2003-08-16 | G19: 304 | H19: MINIME | I19: 00:12:42 | J19: 18
A20: 30553 | B20: AHMED | C20: Fallone | D20: F | E20: 2003-07-13 | G20: 305 | H20: MINIME | I20: 00:12:45 | J20: 19 | N20: Médailles d'argent | P20: 309
A21: 30554 | B21: BALAGOUROU | C21: Emeline | D21: F | E21: 2002-08-14 | G21: 305 | H21: CADETTE | I21: 00:12:47 | J21: 20
A22: 30957 | B22: FETISOI | C22: Lylie | D22: F | E22: 2003-04-20 | G22: 309 | H22: MINIME | I22: 00:12:49 | J22: 21 | M22: PAYET | O22: EDMOND | Q22: BOISEDU | S22: BOYER | U22: FETISOI
A23: 30357 | B23: MARTIN | C23: Laure | D23: F | E23: 2003-12-15 | G23: 303 | H23: MINIME | I23: 00:13:04 | J23: 22 | M23: Aurore | O23: Oceane Marie A | Q23: Melodie | S23: Loanne | U23: Lylie
A24: 30855 | B24: LAUP | C24: Shauna | D24: F | E24: 2003-06-02 | G24: 308 | H24: MINIME | I24: 00:13:06 | J24: 23
A25: 30356 | B25: LEBLÉ | C25: Mardaïs | D25: F | E25: 2003-12-24 | G25: 303 | H25: MINIME | I25: 00:13:14 | J25: 24 | N25: Médailles de bronze | P25: 303
A26: 30352 | B26: ALI | C26: Hadidja | D26: F | E26: 2003-12-31 | G26: 303 | H26: MINIME | I26: 00:13:16 | J26: 25
A27: 30155 | B27: NASSURI | C27: Nadjima | D27: F | E27: 2002-05-17 | G27: 301 | H27: CADETTE | I27: 00:13:17 | J27: 26 | M27: WELMANT | O27: PICARD | Q27: MARTIN | S27: LEBLÉ | U27: ALI
A28: 30151 | B28: COMBO | C28: Anfina | D28: F | E28: 2002-01-04 | G28: 301 | H28: CADETTE | I28: 00:13:43 | J28: 27 | M28: Anelsia | O28: Anne Laure | Q28: Laure | S28: Mardaïs | U28: Hadidja
A29: 30954 | B29: CERVEAUX | C29: Anne Gabrielle | D29: F | E29: 2003-05-09 | G29: 309 | H29: MINIME | I29: 00:13:45 | J29: 28
A30: 31054 | B30: CARRON | C30: Axèle | D30: F | E30: 2003-04-30 | G30: 310 | H30: MINIME | I30: 00:13:46 | J30: 29
A31: 30857 | B31: MOUTOUSSAMY | C31: Marie Laure | D31: F | E31: 2003-01-07 | G31: 308 | H31: MINIME | I31: 00:13:51 | J31: 30
A32: 31154 | B32: FOUSSANE | C32: Kélyne | D32: F | E32: 2003-06-11 | G32: 311 | H32: MINIME | I32: 00:13:56 | J32: 31
A33: 31164 | B33: VITRY | C33: Clarence | D33: F | E33: 2003-07-01 | G33: 311 | H33: MINIME | I33: 00:13:58 | J33: 32
A34: 30451 | B34: AMBOUDI | C34: Elyna | D34: F | E34: 2003-09-14 | G34: 304 | H34: MINIME | I34: 00:14:17 | J34: 33
A35: 30559 | B35: ISSOUFI | C35: Simila | D35: F | E35: 2003-02-24 | G35: 305 | H35: MINIME | I35: 00:14:18 | J35: 34
A36: 30760 | B36: MORIN | C36: Méryn | D36: F | E36: 2003-08-01 | G36: 307 | H36: MINIME | I36: 00:14:30 | J36: 35
A37: 30455 | B37: GUILGORI | C37: Marie Hélèna | D37: F | E37: 2003-07-21 | G37: 304 | H37: MINIME | I37: 00:14:36 | J37: 36
A38: 30852 | B38: LAMY | C38: Naomy | D38: F | E38: 2003-04-12 | G38: 308 | H38: MINIME | I38: 00:14:49 | J38: 37
A39: 31062 | B39: PERIANAYAGOM | C39: Lucie | D39: F | E39: 2003-06-06 | G39: 310 | H39: MINIME | I39: 00:14:51 | J39: 38
A40: 30459 | B40: RIBOTTE | C40: Eliza | D40: F | E40: 2003-09-10 | G40: 304 | H40: MINIME | I40: 00:15:04 | J40: 39
A41: 30355 | B41: GIGANT | C41: Jenny | D41: F | E41: 2003-05-19 | G41: 303 | H41: MINIME | I41: 00:15:05 | J41: 40
A42: 30755 | B42: CATEMA | C42: Cassandra | D42: F | E42: 2003-04-24 | G42: 307 | H42: MINIME | I42: 00:15:07 | J42: 41
A43: 30961 | B43: SARNON | C43: Loana | D43: F | E43: 2002-05-23 | G43: 309 | H43: CADETTE | I43: 00:15:08 | J43: 42
A44: 30561 | B44: VOSGES | C44: Johanna | D44: F | E44: 2003-04-08 | G44: 305 | H44: MINIME | I44: 00:15:23 | J44: 43
A45: 30851 | B45: GRONDIN | C45: Maéva | D45: F | E45: 2003-07-17 | G45: 308 | H45: MINIME | I45: 00:15:41 | J45: 44
A46: 30859 | B46: PAYET | C46: Elsa | D46: F | E46: 2003-12-09 | G46: 308 | H46: MINIME | I46: 00:15:43 | J46: 45
A47: 30756 | B47: CHARLETTINE | C47: Anne Laure | D47: F | E47: 2003-11-11 | G47: 307 | H47: MINIME | I47: 00:15:44 | J47: 46
A48: 30458 | B48: OUSSENI | C48: Inaïraatisam | D48: F | E48: 2003-08-14 | G48: 304 | H48: MINIME | I48: 00:15:47 | J48: 47
A49: 31066 | B49: THIANCOURT | C49: Maeva | D49: F | E49: 2003-12-18 | G49: 310 | H49: MINIME | I49: 00:15:49 | J49: 48
A50: 30556 | B50: BOYER | C50: Océane | D50: F | E50: 2003-05-12 | G50: 305 | H50: MINIME | I50: 00:15:50 | J50: 49
A51: 30653 | B51: FICHERE | C51: Emeline | D51: F | E51: 2003-05-01 | G51: 306 | H51: MINIME | I51: 00:15:55 | J51: 50
A52: 31058 | B52: MANSOIB | C52: Maïka | D52: F | E52: 2003-11-10 | G52: 310 | H52: MINIME | I52: 00:16:11 | J52: 51
A53: 30754 | B53: CARPANIN | C53: Emma | D53: F | E53: 2004-05-02 | G53: 307 | H53: MINIME | I53: 00:16:12 | J53: 52
A54: 30752 | B54: BALAGOUROU | C54: Sarah | D54: F | E54: 2003-08-27 | G54: 307 | H54: MINIME | I54: 00:16:14 | J54: 53
A55: 31162 | B55: TESCHER | C55: Lou-Anne | D55: F | E55: 2003-07-12 | G55: 311 | H55: MINIME | I55: 00:16:16 | J55: 54
A56: 30252 | B56: CHIBACO | C56: Mali | D56: F | E56: 2002-12-04 | G56: 302 | H56: CADETTE | I56: 00:16:18 | J56: 55
A57: 30856 | B57: MOSELLE | C57: Lermina | D57: F | E57: 2003-01-26 | G57: 308 | H57: MINIME | I57: 00:16:20 | J57: 56
A58: 30454 | B58: FONTAINE | C58: Anne | D58: F | E58: 2002-04-26 | G58: 304 | H58: CADETTE | I58: 00:16:48 | J58: 57
A59: 30657 | B59: HOAREAU | C59: Maëva | D59: F | E59: 2003-10-26 | G59: 306 | H59: MINIME | I59: 00:16:50 | J59: 58
A60: 30757 | B60: IFANOHIZA | C60: Leana | D60: F | E60: 2003-03-04 | G60: 307 | H60: MINIME | I60: 00:16:51 | J60: 59
A61: 30762 | B61: SOUCRAMANIEN | C61: Aurélie | D61: F | E61: 2003-07-19 | G61: 307 | H61: MINIME | I61: 00:16:53 | J61: 60
A62: 31153 | B62: DAMOUR | C62: Déborah | D62: F | E62: 2003-07-25 | G62: 311 | H62: MINIME | I62: 00:16:55 | J62: 61
A63: 30753 | B63: BARET | C63: Cassandra | D63: F | E63: 2003-02-27 | G63: 307 | H63: MINIME | I63: 00:16:56 | J63: 62
A64: 30557 | B64: CHINDRA | C64: Lucinda | D64: F | E64: 2003-02-16 | G64: 305 | H64: MINIME | I64: 00:17:03 | J64: 63
A65: 31158 | B65: MARAND | C65: Maïlys | D65: F | E65: 2003-05-27 | G65: 311 | H65: MINIME | I65: 00:17:04 | J65: 64
A66: 31067 | B66: VOSGES | C66: Ashley | D66: F | E66: 2003-09-09 | G66: 310 | H66: MINIME | I66: 00:17:06 | J66: 65
A67: 30552 | B67: AHAMADI | C67: Rosemine | D67: F | E67: 2003-12-18 | G67: 305 | H67: MINIME | I67: 00:17:07 | J67: 66
A68: 30660 | B68: NEVES | C68: Léa | D68: F | E68: 2003-05-30 | G68: 306 | H68: MINIME | I68: 00:17:09 | J68: 67
A69: 30858 | B69: PAUCHET | C69: Mélyssa | D69: F | E69: 2003-04-09 | G69: 308 | H69: MINIME | I69: 00:17:10 | J69: 68
A70: 30651 | B70: BOURLY | C70: Emma | D70: F | E70: 2003-02-09 | G70: 306 | H70: MINIME | I70: 00:17:15 | J70: 69
A71: 30951 | B71: BERNARD | C71: Pauline | D71: F | E71: 2003-01-18 | G71: 309 | H71: MINIME | I71: 00:17:17 | J71: 70
A72: 30959 | B72: JANAC | C72: Caroline | D72: F | E72: 2003-07-05 | G72: 309 | H72: MINIME | I72: 00:17:18 | J72: 71
A73: 30453 | B73: BARBE | C73: Léa | D73: F | E73: 2003-01-17 | G73: 304 | H73: MINIME | I73: 00:17:28 | J73: 72
A74: 31159 | B74: PAVADY | C74: Agnès | D74: F | E74: 2003-06-29 | G74: 311 | H74: MINIME | I74: 00:17:29 | J74: 73
A75: 30956 | B75: EMIDI | C75: Wanvine | D75: F | E75: 2003-08-20 | G75: 309 | H75: MINIME | I75: 00:17:32 | J75: 74
A76: 30560 | B76: TANDRAYEN | C76: Annaelle | D76: F | E76: 2003-09-22 | G76: 305 | H76: MINIME | I76: 00:17:53 | J76: 75
A77: 30255 | B77: M'CHINDRA | C77: Fazidati | D77: F | E77: 2002-03-19 | G77: 302 | H77: CADETTE | I77: 00:18:13 | J77: 76
A78: 30457 | B78: MASSON | C78: Tamyrah | D78: F | E78: 2003-06-03 | G78: 304 | H78: MINIME | I78: 00:18:38 | J78: 77
A79: 31060 | B79: PALIATA | C79: Marie | D79: F | E79: 2003-05-20 | G79: 310 | H79: MINIME | I79: 00:18:50 | J79: 78
A80: 31157 | B80: LESTE | C80: Thalia | D80: F | E80: 2003-11-08 | G80: 311 | H80: MINIME | I80: 00:18:51 | J80: 79
A81: 30251 | B81: BADJAH | C81: Chloé | D81: F | E81: 2002-12-02 | G81: 302 | H81: CADETTE | I81: 00:19:22 | J81: 80
A82: 30156 | B82: RUTH | C82: Marion | D82: F | E82: 2002-09-01 | G82: 301 | H82: CADETTE | I82: 00:19:23 | J82: 81
A83: 30655 | B83: GEVIA | C83: Lashuana | D83: F | E83: 2002-08-15 | G83: 306 | H83: CADETTE | I83: 00:20:08 | J83: 82
A84: 30253 | B84: GRAVINA | C84: Marie | D84: F | E84: 2002-12-01 | G84: 302 | H84: CADETTE | I84: 00:20:28 | J84: 83
A85: 31152 | B85: BORIGNIOL | C85: Coralie | D85: F | E85: 2003-10-16 | G85: 311 | H85: MINIME | I85: 00:20:30 | J85: 84
A86: 30452 | B86: BANCALIN | C86: Noémie | D86: F | E86: 2003-07-16 | G86: 304 | H86: MINIME | I86: 00:21:36 | J86: 85

Sheet 3èGarçons
A1: DOSSARD | B1: NOM | C1: PRENOM | D1: SEXE | E1: DATENAISS | F1: NOMETABL | G1: CLASSE | H1: CATEGORIE | I1: TEMPS | J1: PLACE | O1: Classe | P1: Classement des 5 premiers coureurs de chaque classe | U1: total
A2: 31107 | B2: PALMISEN | C2: Kenyl | D2: M | E2: 2003-07-21 | G2: 311 | H2: MINIME | I2: 00:09:27 | J2: 1 | N2: 1er | O2: 305 | P2: 7 | Q2: 8 | R2: 11 | S2: 15 | T2: 31 | U2: =IF(OR(ISBLANK(P2),ISBLANK(Q2),ISBLANK(R2),ISBLANK(S2),ISBLANK(T2)),"< 5 coureurs",SUM(P2:T2)) -> 72
A3: 30207 | B3: SAID | C3: Housséridine | D3: M | E3: 2002-08-18 | G3: 302 | H3: CADET | I3: 00:10:07 | J3: 2 | N3: 2ème | O3: 301 | P3: 5 | Q3: 17 | R3: 21 | S3: 22 | T3: 23 | U3: =IF(OR(ISBLANK(P3),ISBLANK(Q3),ISBLANK(R3),ISBLANK(S3),ISBLANK(T3)),"< 5 coureurs",SUM(P3:T3)) -> 88
A4: 30701 | B4: ANTIMENE | C4: Noe | D4: M | E4: 2003-06-17 | G4: 307 | H4: MINIME | I4: 00:10:31 | J4: 3 | N4: 3ème | O4: 306 | P4: 10 | Q4: 16 | R4: 18 | S4: 20 | T4: 25 | U4: =IF(OR(ISBLANK(P4),ISBLANK(Q4),ISBLANK(R4),ISBLANK(S4),ISBLANK(T4)),"< 5 coureurs",SUM(P4:T4)) -> 89
A5: 30704 | B5: MAILLOT | C5: Davy | D5: M | E5: 2003-04-11 | G5: 307 | H5: MINIME | I5: 00:10:33 | J5: 4 | N5: 4ème | O5: 302 | P5: 2 | Q5: 9 | R5: 19 | S5: 36 | T5: 37 | U5: =IF(OR(ISBLANK(P5),ISBLANK(Q5),ISBLANK(R5),ISBLANK(S5),ISBLANK(T5)),"< 5 coureurs",SUM(P5:T5)) -> 103
A6: 30105 | B6: DARKAOUI | C6: Daroussi | D6: M | E6: 2002-02-25 | G6: 301 | H6: CADET | I6: 00:10:35 | J6: 5 | N6: 5ème | O6: 303 | P6: 12 | Q6: 27 | R6: 28 | S6: 32 | T6: 47 | U6: =IF(OR(ISBLANK(P6),ISBLANK(Q6),ISBLANK(R6),ISBLANK(S6),ISBLANK(T6)),"< 5 coureurs",SUM(P6:T6)) -> 146
A7: 30804 | B7: MERA | C7: Yoan | D7: M | E7: 2003-08-09 | G7: 308 | H7: MINIME | I7: 00:10:38 | J7: 6 | N7: 6ème | O7: 307 | P7: 3 | Q7: 4 | R7: 24 | S7: 42 | T7: 74 | U7: =IF(OR(ISBLANK(P7),ISBLANK(Q7),ISBLANK(R7),ISBLANK(S7),ISBLANK(T7)),"< 5 coureurs",SUM(P7:T7)) -> 147
A8: 30501 | B8: AHMED OMAR | C8: Alane | D8: M | E8: 2003-09-20 | G8: 305 | H8: MINIME | I8: 00:10:53 | J8: 7 | N8: 7ème | O8: 308 | P8: 6 | Q8: 35 | R8: 38 | S8: 43 | T8: 44 | U8: =IF(OR(ISBLANK(P8),ISBLANK(Q8),ISBLANK(R8),ISBLANK(S8),ISBLANK(T8)),"< 5 coureurs",SUM(P8:T8)) -> 166
A9: 30509 | B9: MAHAVE | C9: Kenny | D9: M | E9: 2003-03-02 | G9: 305 | H9: MINIME | I9: 00:10:54 | J9: 8 | N9: 8ème | O9: 304 | P9: 14 | Q9: 34 | R9: 52 | S9: 54 | T9: 58 | U9: =IF(OR(ISBLANK(P9),ISBLANK(Q9),ISBLANK(R9),ISBLANK(S9),ISBLANK(T9)),"< 5 coureurs",SUM(P9:T9)) -> 212
A10: 30206 | B10: ROBERT | C10: Dylan | D10: M | E10: 2002-11-28 | G10: 302 | H10: CADET | I10: 00:11:11 | J10: 9 | N10: 9ème | O10: 311 | P10: 1 | Q10: 40 | R10: 55 | S10: 57 | T10: 60 | U10: =IF(OR(ISBLANK(P10),ISBLANK(Q10),ISBLANK(R10),ISBLANK(S10),ISBLANK(T10)),"< 5 coureurs",SUM(P10:T10)) -> 213
A11: 30604 | B11: CAZAL | C11: Yannick | D11: M | E11: 2002-12-22 | G11: 306 | H11: CADET | I11: 00:11:13 | J11: 10 | N11: 10ème | O11: 309 | P11: 13 | Q11: 76 | R11: 81 | S11: 88 | U11: =IF(OR(ISBLANK(P11),ISBLANK(Q11),ISBLANK(R11),ISBLANK(S11),ISBLANK(T11)),"< 5 coureurs",SUM(P11:T11)) -> < 5 coureurs
A12: 30510 | B12: MALLARD | C12: Nicolas | D12: M | E12: 2003-09-30 | G12: 305 | H12: MINIME | I12: 00:11:18 | J12: 11 | N12: 11ème | O12: 310 | P12: 29 | Q12: 30 | R12: 33 | S12: 41 | U12: =IF(OR(ISBLANK(P12),ISBLANK(Q12),ISBLANK(R12),ISBLANK(S12),ISBLANK(T12)),"< 5 coureurs",SUM(P12:T12)) -> < 5 coureurs
A13: 30307 | B13: HACHIM | C13: Imamoudine | D13: M | E13: 2003-03-27 | G13: 303 | H13: MINIME | I13: 00:11:20 | J13: 12 | N13: 12ème | O13: 312 | U13: =IF(OR(ISBLANK(P13),ISBLANK(Q13),ISBLANK(R13),ISBLANK(S13),ISBLANK(T13)),"< 5 coureurs",SUM(P13:T13)) -> < 5 coureurs
A14: 30901 | B14: BETON | C14: Jean Noah | D14: M | E14: 2003-05-26 | G14: 309 | H14: MINIME | I14: 00:11:30 | J14: 13
A15: 30410 | B15: MAOULIDA | C15: Amed | D15: M | E15: 2003-01-24 | G15: 304 | H15: MINIME | I15: 00:11:31 | J15: 14 | N15: Médailles d'or | P15: 305
A16: 30507 | B16: HOAREAU | C16: Alexis | D16: M | E16: 2003-10-27 | G16: 305 | H16: MINIME | I16: 00:11:33 | J16: 15
A17: 30658 | B17: HOUMADI | C17: Dinouraïne | D17: F | E17: 2003-02-12 | G17: 306 | H17: MINIME | I17: 00:11:45 | J17: 16 | M17: AHMED OMAR | O17: MAHAVE | Q17: MALLARD | S17: HOAREAU | U17: ELPHEGE
A18: 30101 | B18: ADAME | C18: Ismaen | D18: M | E18: 2002-06-18 | G18: 301 | H18: CADET | I18: 00:11:47 | J18: 17 | M18: Alane | O18: Kenny | Q18: Nicolas | S18: Alexis | U18: Florian
A19: 30610 | B19: MOIRABOU | C19: Ryan | D19: M | E19: 2003-02-12 | G19: 306 | H19: MINIME | I19: 00:12:09 | J19: 18
A20: 30209 | B20: YAZIDOU | C20: Faël | D20: M | E20: 2002-12-06 | G20: 302 | H20: CADET | I20: 00:12:10 | J20: 19 | N20: Médailles d'argent | P20: 301
A21: 30611 | B21: PAYET | C21: Jeffrey | D21: M | E21: 2003-06-08 | G21: 306 | H21: MINIME | I21: 00:12:13 | J21: 20
A22: 10002 | B22: AFFA | C22: Timothé | D22: M | G22: 301 | H22: CADET | I22: 00:12:34 | J22: 21 | M22: DARKAOUI | O22: ADAME | Q22: AFFA | S22: MKOUFOUNDI | U22: CLAIN
A23: 30107 | B23: MKOUFOUNDI | C23: Farid | D23: M | E23: 2002-02-15 | G23: 301 | H23: CADET | I23: 00:12:36 | J23: 22 | M23: Daroussi | O23: Ismaen | Q23: Timothé | S23: Farid | U23: André
A24: 30104 | B24: CLAIN | C24: André | D24: M | E24: 2002-12-27 | G24: 301 | H24: CADET | I24: 00:12:38 | J24: 23
A25: 30710 | B25: SELLY | C25: Xavier | D25: M | E25: 2003-05-12 | G25: 307 | H25: MINIME | I25: 00:12:39 | J25: 24 | N25: Médailles de bronze | P25: 306
A26: 30606 | B26: DALLEAU | C26: Maxime | D26: M | E26: 2003-03-20 | G26: 306 | H26: MINIME | I26: 00:12:41 | J26: 25
A27: 30108 | B27: OILI | C27: Farhane | D27: M | E27: 2002-10-14 | G27: 301 | H27: CADET | I27: 00:12:43 | J27: 26 | M27: CAZAL | O27: HOUMADI | Q27: MOIRABOU | S27: PAYET | U27: DALLEAU
A28: 30306 | B28: GANOFSKY | C28: Samuel | D28: M | E28: 2003-11-26 | G28: 303 | H28: MINIME | I28: 00:12:45 | J28: 27 | M28: Yannick | O28: Dinouraïne | Q28: Ryan | S28: Jeffrey | U28: Maxime
A29: 30308 | B29: NOUCANA | C29: Laurent | D29: M | E29: 2003-05-28 | G29: 303 | H29: MINIME | I29: 00:12:46 | J29: 28
A30: 31002 | B30: CASTAINGT | C30: Vincent | D30: M | E30: 2003-02-26 | G30: 310 | H30: MINIME | I30: 00:12:55 | J30: 29
A31: 31001 | B31: BARRET | C31: Raphaël | D31: M | E31: 2003-08-14 | G31: 310 | H31: MINIME | I31: 00:12:56 | J31: 30
A32: 30504 | B32: ELPHEGE | C32: Florian | D32: M | E32: 2003-03-21 | G32: 305 | H32: MINIME | I32: 00:12:58 | J32: 31
A33: 30311 | B33: THIONVILLE | C33: Rayan Hermann | D33: M | E33: 2003-10-18 | G33: 303 | H33: MINIME | I33: 00:13:22 | J33: 32
A34: 31006 | B34: TURPIN | C34: Damien | D34: M | E34: 2003-05-05 | G34: 310 | H34: MINIME | I34: 00:13:24 | J34: 33
A35: 30406 | B35: GRONDIN | C35: Alan-Théo | D35: M | E35: 2003-12-21 | G35: 304 | H35: MINIME | I35: 00:13:26 | J35: 34
A36: 30809 | B36: SAMBASSOUREDY | C36: Rwan | D36: M | E36: 2003-11-12 | G36: 308 | H36: MINIME | I36: 00:13:28 | J36: 35
A37: 30204 | B37: IMIZE | C37: Andrew | D37: M | E37: 2002-08-11 | G37: 302 | H37: CADET | I37: 00:13:29 | J37: 36
A38: 30201 | B38: CARCANY | C38: Paolo | D38: M | E38: 2002-06-26 | G38: 302 | H38: CADET | I38: 00:13:36 | J38: 37
A39: 30806 | B39: NADAL | C39: Allan | D39: M | E39: 2003-07-06 | G39: 308 | H39: MINIME | I39: 00:13:38 | J39: 38
A40: 50702 | B40: CHEKH | C40: Mostoiffa | D40: M | E40: 2003-05-22 | F40: ULIS | G40: 507 | H40: MINIME | I40: 00:13:40 | J40: 39
A41: 31101 | B41: AMABLE | C41: Alexandre | D41: M | E41: 2003-10-08 | G41: 311 | H41: MINIME | I41: 00:13:54 | J41: 40
A42: 31005 | B42: ROBERT | C42: Yerick | D42: M | E42: 2003-04-14 | G42: 310 | H42: MINIME | I42: 00:13:56 | J42: 41
A43: 30705 | B43: MALBROUCK | C43: Winston | D43: M | E43: 2003-04-11 | G43: 307 | H43: MINIME | I43: 00:13:58 | J43: 42
A44: 30810 | B44: TRINGER | C44: Tristan | D44: M | E44: 2003-02-06 | G44: 308 | H44: MINIME | I44: 00:14:00 | J44: 43
A45: 30803 | B45: JAGLALE | C45: Sergio | D45: M | E45: 2003-04-25 | G45: 308 | H45: MINIME | I45: 00:14:02 | J45: 44
A46: 30805 | B46: MOUTALOU RANGAMA | C46: Evan | D46: M | E46: 2003-02-10 | G46: 308 | H46: MINIME | I46: 00:14:03 | J46: 45
A47: 30802 | B47: FETISSOI | C47: Kenji | D47: M | E47: 2003-02-28 | G47: 308 | H47: MINIME | I47: 00:14:05 | J47: 46
A48: 30302 | B48: ALAGAMA | C48: Thomas | D48: M | E48: 2003-05-06 | G48: 303 | H48: MINIME | I48: 00:14:10 | J48: 47
A49: 30609 | B49: MEDAR | C49: Emmanuel | D49: M | E49: 2003-10-27 | G49: 306 | H49: MINIME | I49: 00:14:12 | J49: 48
A50: 30208 | B50: TAILAME | C50: Chrisna Jean A | D50: M | E50: 2002-07-29 | G50: 302 | H50: CADET | I50: 00:14:46 | J50: 49
A51: 30505 | B51: FETISOI | C51: Benjy | D51: M | E51: 2003-03-28 | G51: 305 | H51: MINIME | I51: 00:14:48 | J51: 50
A52: 30109 | B52: ROBERT | C52: Krishna | D52: M | E52: 2002-10-18 | G52: 301 | H52: CADET | I52: 00:14:50 | J52: 51
A53: 30407 | B53: GRONDIN | C53: Tristan | D53: M | E53: 2003-02-05 | G53: 304 | H53: MINIME | I53: 00:14:52 | J53: 52
A54: 30205 | B54: M'KAVAVO | C54: Chaoïli | D54: M | E54: 2002-12-08 | G54: 302 | H54: CADET | I54: 00:14:54 | J54: 53
A55: 30413 | B55: RAMDIALE | C55: Idryss | D55: M | E55: 2003-04-23 | G55: 304 | H55: MINIME | I55: 00:14:56 | J55: 54
A56: 31104 | B56: GANNE | C56: Thomas | D56: M | E56: 2003-02-20 | G56: 311 | H56: MINIME | I56: 00:15:00 | J56: 55
A57: 30310 | B57: PERIANIN | C57: Sébastien | D57: M | E57: 2003-12-12 | G57: 303 | H57: MINIME | I57: 00:15:35 | J57: 56
A58: 31109 | B58: SEUSSE | C58: Yvann | D58: M | E58: 2003-01-12 | G58: 311 | H58: MINIME | I58: 00:15:37 | J58: 57
A59: 30412 | B59: MOUTALE | C59: Ryan | D59: M | E59: 2003-03-03 | G59: 304 | H59: MINIME | I59: 00:15:54 | J59: 58
A60: 30801 | B60: DANY | C60: Olivier | D60: M | E60: 2003-05-28 | G60: 308 | H60: MINIME | I60: 00:16:11 | J60: 59
A61: 31111 | B61: VU VAN QUIET | C61: Lenny | D61: M | E61: 2003-03-06 | G61: 311 | H61: MINIME | I61: 00:16:13 | J61: 60
A62: 30503 | B62: COULON | C62: Randy | D62: M | E62: 2003-07-02 | G62: 305 | H62: MINIME | I62: 00:16:15 | J62: 61
A63: 30202 | B63: COUPAYE | C63: Jordan | D63: M | E63: 2002-09-24 | G63: 302 | H63: CADET | I63: 00:16:49 | J63: 62
A64: 30304 | B64: DEMBELLE | C64: Lorenzo | D64: M | E64: 2003-05-17 | G64: 303 | H64: MINIME | I64: 00:17:14 | J64: 63
A65: 30807 | B65: RAMSAMY | C65: Ulrich | D65: M | E65: 2003-04-28 | G65: 308 | H65: MINIME | I65: 00:17:16 | J65: 64
A66: 30309 | B66: PAYET--CIMADOMO | C66: Raphaël | D66: M | E66: 2003-04-12 | G66: 303 | H66: MINIME | I66: 00:17:19 | J66: 65
A67: 30301 | B67: AHMED | C67: Charif | D67: M | E67: 2003-03-09 | G67: 303 | H67: MINIME | I67: 00:17:26 | J67: 66
A68: 30106 | B68: GAUDENS | C68: Julien | D68: M | E68: 2002-03-01 | G68: 301 | H68: CADET | I68: 00:17:27 | J68: 67
A69: 30408 | B69: HOAREAU | C69: Kenny | D69: M | E69: 2003-03-05 | G69: 304 | H69: MINIME | I69: 00:19:04 | J69: 68
A70: 30203 | B70: DESILES | C70: Norben | D70: M | E70: 2001-12-03 | G70: 302 | H70: CADET | I70: 00:19:06 | J70: 69
A71: 31110 | B71: TALERIEN | C71: Thomas | D71: M | E71: 2003-06-06 | G71: 311 | H71: MINIME | I71: 00:19:08 | J71: 70
A72: 30409 | B72: LEDORMEUR | C72: Gauthier | D72: M | E72: 2003-09-02 | G72: 304 | H72: MINIME | I72: 00:19:10 | J72: 71
A73: 30511 | B73: MANGALA BIMA | C73: Landry | D73: M | E73: 2003-01-15 | G73: 305 | H73: MINIME | I73: 00:19:12 | J73: 72
A74: 51208 | B74: LAUP | C74: Dylan | D74: M | E74: 2003-05-26 | F74: ULIS | G74: 512 | H74: MINIME | I74: 00:19:14 | J74: 73
A75: 30703 | B75: HUBERT | C75: Tom | D75: M | E75: 2003-11-17 | G75: 307 | H75: MINIME | I75: 00:19:16 | J75: 74
A76: 30103 | B76: BEGUE | C76: Kevin | D76: M | E76: 2002-12-17 | G76: 301 | H76: CADET | I76: 00:19:17 | J76: 75
A77: 30902 | B77: CATAYE | C77: Sollajagane | D77: M | E77: 2003-10-31 | G77: 309 | H77: MINIME | I77: 00:19:19 | J77: 76
A78: 30706 | B78: MANGALA-BIMA | C78: Bryce | D78: M | E78: 2003-11-19 | G78: 307 | H78: MINIME | I78: 00:19:37 | J78: 77
A79: 30708 | B79: MARIE | C79: Hugo | D79: M | E79: 2003-08-29 | G79: 307 | H79: MINIME | I79: 00:19:39 | J79: 78
A80: 31108 | B80: SEUSSE | C80: Yann | D80: M | E80: 2003-06-17 | G80: 311 | H80: MINIME | I80: 00:19:41 | J80: 79
A81: 31102 | B81: CLAIN | C81: Judikaël | D81: M | E81: 2003-05-25 | G81: 311 | H81: MINIME | I81: 00:19:43 | J81: 80
A82: 30910 | B82: SINAN | C82: Thomas | D82: M | E82: 2003-08-11 | G82: 309 | H82: MINIME | I82: 00:19:47 | J82: 81
A83: 30608 | B83: HOAREAU | C83: Joshua | D83: M | E83: 2003-09-19 | G83: 306 | H83: MINIME | I83: 00:20:27 | J83: 82
A84: 30403 | B84: CELY | C84: Allan | D84: M | E84: 2003-06-01 | G84: 304 | H84: MINIME | I84: 00:21:00 | J84: 83
A85: 30707 | B85: MARDE | C85: Jean Erwann | D85: M | E85: 2003-09-23 | G85: 307 | H85: MINIME | I85: 00:22:24 | J85: 84
A86: 30711 | B86: SEUSSE | C86: Mathias | D86: M | E86: 2003-06-02 | G86: 307 | H86: MINIME | I86: 00:22:27 | J86: 85
A87: 30709 | B87: ROSBAUD | C87: Diamone | D87: M | E87: 2002-07-13 | G87: 307 | H87: CADET | I87: 00:22:28 | J87: 86
A88: 30401 | B88: BARRET | C88: Toma | D88: M | E88: 2002-07-25 | G88: 304 | H88: CADET | I88: 00:22:31 | J88: 87
A89: 30905 | B89: RAMSAMY | C89: Jérémy | D89: M | E89: 2002-07-27 | G89: 309 | H89: CADET | I89: 00:22:38 | J89: 88
A90: 31106 | B90: MOUTOUCOMORAPOULLE | C90: Jael | D90: M | E90: 2003-07-31 | G90: 311 | H90: MINIME | I90: 00:23:28 | J90: 89
A91: 30405 | B91: FERRIER | C91: Dorian | D91: M | E91: 2003-02-15 | G91: 304 | H91: MINIME | I91: 00:23:30 | J91: 90

Sheet MILLE PATTES
A1: CLASSE | B1: Coureurs arrivés | C1: Effectif Classe | D1: Parrainage | H1: DOSSARD | I1: NOM | J1: PRENOM | K1: SEXE | L1: DATENAISS | M1: NOMETABL | N1: CLASSE | O1: CATEGORIE | R1: Classe | S1: Effectif
A2: 510 | B2: =COUNTIF(CLASSES,A2)-D2 -> 26 | C2: 26 | D2: 1 | E2: =IF(B2=0,0,B2/C2%+D2) -> 101 | H2: 61152 | I2: AUGUSTE | J2: Myriam | K2: F | L2: 2006-12-23 | N2: 611 | O2: BENJAMINE | R2: 301 | S2: 16
A3: 505 | B3: =COUNTIF(CLASSES,A3)-D3 -> 23 | C3: 23 | D3: 1 | E3: =IF(B3=0,0,B3/C3%+D3) -> 101 | H3: 61258 | I3: THELAÏRE | J3: Lucie | K3: F | L3: 2006-01-27 | N3: 612 | O3: BENJAMINE | R3: 302 | S3: 15
A4: 605 | B4: =COUNTIF(CLASSES,A4)-D4 -> 23 | C4: 24 | D4: 1 | E4: =IF(B4=0,0,B4/C4%+D4) -> 96.83333333 | H4: 61061 | I4: MHADJI | J4: Tamouni | K4: F | L4: 2006-02-27 | N4: 610 | O4: BENJAMINE | R4: 303 | S4: 22
A5: 609 | B5: =COUNTIF(CLASSES,A5)-D5 -> 22 | C5: 23 | D5: 0 | E5: =IF(B5=0,0,B5/C5%+D5) -> 95.65217391 | H5: 60953 | I5: FAUSTIN | J5: Anna | K5: F | L5: 2006-12-30 | N5: 609 | O5: BENJAMINE | R5: 304 | S5: 24
A6: 610 | B6: =COUNTIF(CLASSES,A6)-D6 -> 21 | C6: 23 | D6: 1 | E6: =IF(B6=0,0,B6/C6%+D6) -> 92.30434783 | H6: 60354 | I6: CLAIN | J6: Clèmence | K6: F | L6: 2006-09-01 | N6: 603 | O6: BENJAMINE | R6: 305 | S6: 24
A7: 411 | B7: =COUNTIF(CLASSES,A7)-D7 -> 23 | C7: 25 | D7: 0 | E7: =IF(B7=0,0,B7/C7%+D7) -> 92 | H7: 60956 | I7: GRONDIN | J7: Mathilde | K7: F | L7: 2006-12-10 | N7: 609 | O7: BENJAMINE | R7: 306 | S7: 23
A8: 603 | B8: =COUNTIF(CLASSES,A8)-D8 -> 20 | C8: 22 | D8: 1 | E8: =IF(B8=0,0,B8/C8%+D8) -> 91.90909091 | H8: 60853 | I8: BARET | J8: Sydney | K8: F | L8: 2005-06-27 | N8: 608 | O8: BENJAMINE | R8: 307 | S8: 23
A9: 606 | B9: =COUNTIF(CLASSES,A9)-D9 -> 20 | C9: 22 | D9: 1 | E9: =IF(B9=0,0,B9/C9%+D9) -> 91.90909091 | H9: 61053 | I9: BOISEDU | J9: Anna | K9: F | L9: 2006-10-22 | N9: 610 | O9: BENJAMINE | R9: 308 | S9: 24
A10: 508 | B10: =COUNTIF(CLASSES,A10)-D10 -> 22 | C10: 24 | D10: 0 | E10: =IF(B10=0,0,B10/C10%+D10) -> 91.66666667 | H10: 60960 | I10: MAILLOT | J10: Emeline | K10: F | L10: 2006-09-16 | N10: 609 | O10: BENJAMINE | R10: 309 | S10: 21
A11: 504 | B11: =COUNTIF(CLASSES,A11)-D11 -> 21 | C11: 23 | D11: 0 | E11: =IF(B11=0,0,B11/C11%+D11) -> 91.30434783 | H11: 60762 | I11: IMARA | J11: Maëlle | K11: F | L11: 2005-03-18 | N11: 607 | O11: BENJAMINE | R11: 310 | S11: 23
A12: 612 | B12: =COUNTIF(CLASSES,A12)-D12 -> 20 | C12: 22 | D12: 0 | E12: =IF(B12=0,0,B12/C12%+D12) -> 90.90909091 | H12: 61064 | I12: SOUNDRON | J12: Elisa | K12: F | L12: 2006-07-07 | N12: 610 | O12: BENJAMINE | R12: 311 | S12: 25
A13: 511 | B13: =COUNTIF(CLASSES,A13)-D13 -> 19 | C13: 21 | D13: 0 | E13: =IF(B13=0,0,B13/C13%+D13) -> 90.47619048 | H13: 60862 | I13: SAMINADIN | J13: Adeline | K13: F | L13: 2006-01-26 | N13: 608 | O13: BENJAMINE | R13: 312 | S13: 0
A14: 410 | B14: =COUNTIF(CLASSES,A14)-D14 -> 22 | C14: 25 | D14: 1 | E14: =IF(B14=0,0,B14/C14%+D14) -> 89 | H14: 60552 | I14: BORIGNIOL | J14: Emmanuelle | K14: F | L14: 2005-02-02 | N14: 605 | O14: BENJAMINE | R14: 401 | S14: 16
A15: 401 | B15: =COUNTIF(CLASSES,A15)-D15 -> 14 | C15: 16 | D15: 0 | E15: =IF(B15=0,0,B15/C15%+D15) -> 87.5 | H15: 60553 | I15: FATIMA | J15: Moinamaoulida | K15: F | L15: 2006-03-31 | N15: 605 | O15: BENJAMINE | R15: 402 | S15: 15
A16: 407 | B16: =COUNTIF(CLASSES,A16)-D16 -> 21 | C16: 24 | D16: 0 | E16: =IF(B16=0,0,B16/C16%+D16) -> 87.5 | H16: 60455 | I16: JANAC | J16: Lohana | K16: F | L16: 2006-05-28 | N16: 604 | O16: BENJAMINE | R16: 403 | S16: 23
A17: 307 | B17: =COUNTIF(CLASSES,A17)-D17 -> 20 | C17: 23 | D17: 0 | E17: =IF(B17=0,0,B17/C17%+D17) -> 86.95652174 | H17: 60358 | I17: HOAREAU | J17: Floralie | K17: F | L17: 2006-04-04 | N17: 603 | O17: BENJAMINE | R17: 404 | S17: 22
A18: 403 | B18: =COUNTIF(CLASSES,A18)-D18 -> 20 | C18: 23 | D18: 0 | E18: =IF(B18=0,0,B18/C18%+D18) -> 86.95652174 | H18: 60651 | I18: ABDOU | J18: Sandiya | K18: F | L18: 2006-12-04 | N18: 606 | O18: BENJAMINE | R18: 405 | S18: 22
A19: 611 | B19: =COUNTIF(CLASSES,A19)-D19 -> 20 | C19: 23 | D19: 0 | E19: =IF(B19=0,0,B19/C19%+D19) -> 86.95652174 | H19: 61058 | I19: LACHARMANTE | J19: Laéna | K19: F | L19: 2006-09-10 | N19: 610 | O19: BENJAMINE | R19: 406 | S19: 23
A20: 302 | B20: =COUNTIF(CLASSES,A20)-D20 -> 13 | C20: 15 | D20: 0 | E20: =IF(B20=0,0,B20/C20%+D20) -> 86.66666667 | H20: 60755 | I20: CARCANY | J20: Laurine | K20: F | L20: 2006-10-16 | N20: 607 | O20: BENJAMINE | R20: 407 | S20: 24
A21: 405 | B21: =COUNTIF(CLASSES,A21)-D21 -> 19 | C21: 22 | D21: 0 | E21: =IF(B21=0,0,B21/C21%+D21) -> 86.36363636 | H21: 60860 | I21: PLANTE | J21: Brianna | K21: F | L21: 2006-02-21 | N21: 608 | O21: BENJAMINE | R21: 408 | S21: 21
A22: 509 | B22: =COUNTIF(CLASSES,A22)-D22 -> 19 | C22: 22 | D22: 0 | E22: =IF(B22=0,0,B22/C22%+D22) -> 86.36363636 | H22: 61259 | I22: TRAJAN | J22: Naisha | K22: F | L22: 2006-10-23 | N22: 612 | O22: BENJAMINE | R22: 409 | S22: 26
A23: 608 | B23: =COUNTIF(CLASSES,A23)-D23 -> 19 | C23: 22 | D23: 0 | E23: =IF(B23=0,0,B23/C23%+D23) -> 86.36363636 | H23: 61052 | I23: BLARD | J23: Maëva | K23: F | L23: 2006-06-13 | N23: 610 | O23: BENJAMINE | R23: 410 | S23: 25
A24: 311 | B24: =COUNTIF(CLASSES,A24)-D24 -> 21 | C24: 25 | D24: 0 | E24: =IF(B24=0,0,B24/C24%+D24) -> 84 | H24: 60660 | I24: SOLONIRINA | J24: Hovafiadanana | K24: F | L24: 2006-07-24 | N24: 606 | O24: BENJAMINE | R24: 411 | S24: 25
A25: 506 | B25: =COUNTIF(CLASSES,A25)-D25 -> 18 | C25: 22 | D25: 0 | E25: =IF(B25=0,0,B25/C25%+D25) -> 81.81818182 | H25: 60857 | I25: LEMARCHAND | J25: Amandine | K25: F | L25: 2006-10-01 | N25: 608 | O25: BENJAMINE | R25: 412 | S25: 25
A26: 301 | B26: =COUNTIF(CLASSES,A26)-D26 -> 13 | C26: 16 | D26: 0 | E26: =IF(B26=0,0,B26/C26%+D26) -> 81.25 | H26: 60659 | I26: PARIS | J26: Romane | K26: F | L26: 2006-11-11 | N26: 606 | O26: BENJAMINE | R26: 501 | S26: 16
A27: 602 | B27: =COUNTIF(CLASSES,A27)-D27 -> 13 | C27: 16 | D27: 0 | E27: =IF(B27=0,0,B27/C27%+D27) -> 81.25 | H27: 60955 | I27: FETISOI-MIHA | J27: Jade | K27: F | L27: 2006-09-17 | N27: 609 | O27: BENJAMINE | R27: 502 | S27: 16
A28: 412 | B28: =COUNTIF(CLASSES,A28)-D28 -> 20 | C28: 25 | D28: 1 | E28: =IF(B28=0,0,B28/C28%+D28) -> 81 | H28: 61060 | I28: LESTE | J28: Marie-Anandi | K28: F | L28: 2006-12-26 | N28: 610 | O28: BENJAMINE | R28: 503 | S28: 24
A29: 507 | B29: =COUNTIF(CLASSES,A29)-D29 -> 17 | C29: 21 | D29: 0 | E29: =IF(B29=0,0,B29/C29%+D29) -> 80.95238095 | H29: 60556 | I29: HERMETTE | J29: Maïlyse | K29: F | L29: 2006-05-14 | N29: 605 | O29: BENJAMINE | R29: 504 | S29: 23
A30: 304 | B30: =COUNTIF(CLASSES,A30)-D30 -> 19 | C30: 24 | D30: 1 | E30: =IF(B30=0,0,B30/C30%+D30) -> 80.16666667 | H30: 60252 | I30: ANGO | J30: Estelle | K30: F | L30: 2005-01-09 | N30: 602 | O30: BENJAMINE | R30: 505 | S30: 23
A31: 503 | B31: =COUNTIF(CLASSES,A31)-D31 -> 19 | C31: 24 | D31: 1 | E31: =IF(B31=0,0,B31/C31%+D31) -> 80.16666667 | H31: 60454 | I31: GUSTAVIN | J31: Ciara | K31: F | L31: 2006-03-22 | N31: 604 | O31: BENJAMINE | R31: 506 | S31: 22
A32: 604 | B32: =COUNTIF(CLASSES,A32)-D32 -> 18 | C32: 23 | D32: 1 | E32: =IF(B32=0,0,B32/C32%+D32) -> 79.26086957 | H32: 10605 | I32: GUEROLD | J32: Pascal | N32: 605 | O32: PARRAINAGE | R32: 507 | S32: 21
A33: 607 | B33: =COUNTIF(CLASSES,A33)-D33 -> 19 | C33: 24 | D33: 0 | E33: =IF(B33=0,0,B33/C33%+D33) -> 79.16666667 | H33: 60459 | I33: MOUNIAPN | J33: Varincka | K33: F | L33: 2006-03-10 | N33: 604 | O33: BENJAMINE | R33: 508 | S33: 24
A34: 409 | B34: =COUNTIF(CLASSES,A34)-D34 -> 20 | C34: 26 | D34: 1 | E34: =IF(B34=0,0,B34/C34%+D34) -> 77.92307692 | H34: 60554 | I34: FINAU | J34: Morgane | K34: F | L34: 2006-05-30 | N34: 605 | O34: BENJAMINE | R34: 509 | S34: 22
A35: 501 | B35: =COUNTIF(CLASSES,A35)-D35 -> 12 | C35: 16 | D35: 0 | E35: =IF(B35=0,0,B35/C35%+D35) -> 75 | H35: 60756 | I35: CHAHE DAOUDOU | J35: Elysiane | K35: F | L35: 2006-08-30 | N35: 607 | O35: BENJAMINE | R35: 510 | S35: 26
A36: 406 | B36: =COUNTIF(CLASSES,A36)-D36 -> 17 | C36: 23 | D36: 1 | E36: =IF(B36=0,0,B36/C36%+D36) -> 74.91304348 | H36: 60361 | I36: SCHERILLA | J36: Séréna | K36: F | L36: 2006-06-13 | N36: 603 | O36: BENJAMINE | R36: 511 | S36: 21
A37: 402 | B37: =COUNTIF(CLASSES,A37)-D37 -> 11 | C37: 15 | D37: 0 | E37: =IF(B37=0,0,B37/C37%+D37) -> 73.33333333 | H37: 60961 | I37: TANCOURT | J37: Flora | K37: F | L37: 2006-08-16 | N37: 609 | O37: BENJAMINE | R37: 512 | S37: 24
A38: 305 | B38: =COUNTIF(CLASSES,A38)-D38 -> 17 | C38: 24 | D38: 1 | E38: =IF(B38=0,0,B38/C38%+D38) -> 71.83333333 | H38: 60461 | I38: TANDRAYEN | J38: Alice | K38: F | L38: 2006-01-27 | N38: 604 | O38: BENJAMINE | R38: 601 | S38: 16
A39: 512 | B39: =COUNTIF(CLASSES,A39)-D39 -> 17 | C39: 24 | D39: 0 | E39: =IF(B39=0,0,B39/C39%+D39) -> 70.83333333 | H39: 60551 | I39: ASSANI | J39: Nadia | K39: F | L39: 2005-10-14 | N39: 605 | O39: BENJAMINE | R39: 602 | S39: 16
A40: 303 | B40: =COUNTIF(CLASSES,A40)-D40 -> 15 | C40: 22 | D40: 1 | E40: =IF(B40=0,0,B40/C40%+D40) -> 69.18181818 | H40: 60251 | I40: AHMED ANLI | J40: Radadi | K40: F | L40: 2006-04-22 | N40: 602 | O40: BENJAMINE | R40: 603 | S40: 22
A41: 502 | B41: =COUNTIF(CLASSES,A41)-D41 -> 11 | C41: 16 | D41: 0 | E41: =IF(B41=0,0,B41/C41%+D41) -> 68.75 | H41: 60656 | I41: LATCHIMY | J41: Daphnée | K41: F | L41: 2006-04-04 | N41: 606 | O41: BENJAMINE | R41: 604 | S41: 23
A42: 601 | B42: =COUNTIF(CLASSES,A42)-D42 -> 11 | C42: 16 | D42: 0 | E42: =IF(B42=0,0,B42/C42%+D42) -> 68.75 | H42: 60360 | I42: PICARD | J42: Nathanaëlle | K42: F | L42: 2007-01-03 | N42: 603 | O42: BENJAMINE | R42: 605 | S42: 24
A43: 308 | B43: =COUNTIF(CLASSES,A43)-D43 -> 16 | C43: 24 | D43: 0 | E43: =IF(B43=0,0,B43/C43%+D43) -> 66.66666667 | H43: 60653 | I43: BOYER | J43: Juliana | K43: F | L43: 2005-08-03 | N43: 606 | O43: BENJAMINE | R43: 606 | S43: 22
A44: 309 | B44: =COUNTIF(CLASSES,A44)-D44 -> 14 | C44: 21 | D44: 0 | E44: =IF(B44=0,0,B44/C44%+D44) -> 66.66666667 | H44: 60751 | I44: AHAMADI | J44: Nazra Zaanti | K44: F | L44: 2005-07-24 | N44: 607 | O44: BENJAMINE | R44: 607 | S44: 24
A45: 306 | B45: =COUNTIF(CLASSES,A45)-D45 -> 14 | C45: 23 | D45: 0 | E45: =IF(B45=0,0,B45/C45%+D45) -> 60.86956522 | H45: 60852 | I45: BARET | J45: Kérane | K45: F | L45: 2006-10-25 | N45: 608 | O45: BENJAMINE | R45: 608 | S45: 22
A46: 408 | B46: =COUNTIF(CLASSES,A46)-D46 -> 12 | C46: 21 | D46: 1 | E46: =IF(B46=0,0,B46/C46%+D46) -> 58.14285714 | H46: 61151 | I46: ANDRIAMAHERY-RANJALAHY | J46: Keiko | K46: F | L46: 2006-01-19 | N46: 611 | O46: BENJAMINE | R46: 609 | S46: 23
A47: 404 | B47: =COUNTIF(CLASSES,A47)-D47 -> 12 | C47: 22 | D47: 0 | E47: =IF(B47=0,0,B47/C47%+D47) -> 54.54545455 | H47: 60353 | I47: CATTY MAROUNDIN | J47: Marie Lauryne | K47: F | L47: 2006-05-15 | N47: 603 | O47: BENJAMINE | R47: 610 | S47: 23
A48: 310 | B48: =COUNTIF(CLASSES,A48)-D48 -> 11 | C48: 23 | D48: 1 | E48: =IF(B48=0,0,B48/C48%+D48) -> 48.82608696 | H48: 61054 | I48: DIDAT | J48: Emma | K48: F | L48: 2006-09-15 | N48: 610 | O48: BENJAMINE | R48: 611 | S48: 23
A49: 312 | B49: =COUNTIF(CLASSES,A49)-D49 -> 0 | C49: 0 | D49: 0 | E49: =IF(B49=0,0,B49/C49%+D49) -> 0 | H49: 60458 | I49: LAURENT | J49: Léane | K49: F | L49: 2006-11-20 | N49: 604 | O49: BENJAMINE | R49: 612 | S49: 22
H50: 60555 | I50: GAILLAC | J50: Stessy | K50: F | L50: 2006-03-05 | N50: 605 | O50: BENJAMINE
H51: 60957 | I51: GUICHARD | J51: Salomé | K51: F | L51: 2006-02-23 | N51: 609 | O51: BENJAMINE
H52: 60856 | I52: JHINGUT | J52: Ashnnavee Mari | K52: F | L52: 2006-01-02 | N52: 608 | O52: BENJAMINE
H53: 60658 | I53: MUGUEL MARINA | J53: Juliana | K53: F | L53: 2005-03-16 | N53: 606 | O53: BENJAMINE
H54: 61153 | I54: BALAGOUROU | J54: Cynthia Marie | K54: F | L54: 2006-06-07 | N54: 611 | O54: BENJAMINE
H55: 61062 | I55: MIRANVILLE | J55: Ericka | K55: F | L55: 2005-09-10 | N55: 610 | O55: BENJAMINE
H56: 61051 | I56: ADAVAMIS | J56: Jade | K56: F | L56: 2006-11-17 | N56: 610 | O56: BENJAMINE
H57: 61154 | I57: FENART | J57: Amelie | K57: F | L57: 2006-08-21 | N57: 611 | O57: BENJAMINE
H58: 61155 | I58: GUEDAMA | J58: Solène | K58: F | L58: 2006-05-03 | N58: 611 | O58: BENJAMINE
H59: 60952 | I59: BOURLY | J59: Noémie | K59: F | L59: 2005-12-16 | N59: 609 | O59: BENJAMINE
H60: 60451 | I60: CHUPPA | J60: Eva | K60: F | L60: 2006-09-01 | N60: 604 | O60: BENJAMINE
H61: 61065 | I61: TANDRAYEN | J61: Léna | K61: F | L61: 2006-02-14 | N61: 610 | O61: BENJAMINE
H62: 60155 | I62: OILI | J62: Hidaya | K62: F | L62: 2005-05-09 | N62: 601 | O62: BENJAMINE
H63: 60153 | I63: HOARAU | J63: Paloma | K63: F | L63: 2005-03-23 | N63: 601 | O63: BENJAMINE
H64: 60851 | I64: ALTON | J64: Léa | K64: F | L64: 2006-11-13 | N64: 608 | O64: BENJAMINE
H65: 60560 | I65: MOUNIA | J65: Chloé | K65: F | L65: 2006-02-19 | N65: 605 | O65: BENJAMINE
H66: 60253 | I66: ELISABETH | J66: Asmina | K66: F | L66: 2005-06-07 | N66: 602 | O66: BENJAMINE
H67: 60254 | I67: RANGANAYAGUY | J67: Eloise | K67: F | L67: 2006-11-04 | N67: 602 | O67: BENJAMINE
H68: 60559 | I68: LEPERLIER | J68: Colleen | K68: F | L68: 2006-01-14 | N68: 605 | O68: BENJAMINE
H69: 60562 | I69: SEVOU | J69: Liliana | K69: F | L69: 2006-11-23 | N69: 605 | O69: BENJAMINE
H70: 60951 | I70: BLAGNAC | J70: Chloé | K70: F | L70: 2006-09-29 | N70: 609 | O70: BENJAMINE
H71: 61158 | I71: JOUAN | J71: Marie Séverine | K71: F | L71: 2006-05-30 | N71: 611 | O71: BENJAMINE
H72: 61159 | I72: MARIE | J72: Stella | K72: F | L72: 2006-06-29 | N72: 611 | O72: BENJAMINE
H73: 61160 | I73: PAPOU | J73: Aurélia | K73: F | L73: 2006-04-11 | N73: 611 | O73: BENJAMINE
H74: 60761 | I74: GOINDEN | J74: Sandy | K74: F | L74: 2005-03-17 | N74: 607 | O74: BENJAMINE
H75: 61252 | I75: IGOUF | J75: Néoline | K75: F | L75: 2006-11-26 | N75: 612 | O75: BENJAMINE
H76: 10606 | I76: BEGUE | J76: Béatrice | N76: 606 | O76: PARRAINAGE
H77: 10603 | I77: PAYET | J77: Audrey | N77: 603 | O77: PARRAINAGE
H78: 60652 | I78: ALIZE | J78: Shamira | K78: F | L78: 2006-06-22 | N78: 606 | O78: BENJAMINE
H79: 60359 | I79: MAILLOT | J79: Marie Fany | K79: F | L79: 2006-01-07 | N79: 603 | O79: BENJAMINE
H80: 60959 | I80: LAFABLE | J80: Marie-Camilla | K80: F | L80: 2005-04-26 | N80: 609 | O80: BENJAMINE
H81: 60855 | I81: GOSSARD | J81: Briancy | K81: F | L81: 2006-07-06 | N81: 608 | O81: BENJAMINE
H82: 60861 | I82: PONIN | J82: Marie | K82: F | L82: 2006-02-24 | N82: 608 | O82: BENJAMINE
H83: 61056 | I83: HOARAU | J83: Shannah | K83: F | L83: 2006-12-22 | N83: 610 | O83: BENJAMINE
H84: 60661 | I84: TURPIN | J84: Ludivine | K84: F | L84: 2006-07-27 | N84: 606 | O84: BENJAMINE
H85: 60356 | I85: DIJOUX | J85: Amelie | K85: F | L85: 2006-04-29 | N85: 603 | O85: BENJAMINE
H86: 60763 | I86: RAYMOND | J86: Léane | K86: F | L86: 2006-12-05 | N86: 607 | O86: BENJAMINE
H87: 60859 | I87: NADAL | J87: Laurine | K87: F | L87: 2005-01-17 | N87: 608 | O87: BENJAMINE
H88: 61063 | I88: RAYMOND | J88: Mélyna | K88: F | L88: 2006-10-15 | N88: 610 | O88: BENJAMINE
H89: 61057 | I89: ISSILAME | J89: Emeline | K89: F | L89: 2006-02-16 | N89: 610 | O89: BENJAMINE
H90: 61156 | I90: IMARY-ISSARAMBE | J90: Emilie | K90: F | L90: 2006-01-21 | N90: 611 | O90: BENJAMINE
H91: 60758 | I91: DIJOUX | J91: Emma | K91: F | L91: 2006-03-08 | N91: 607 | O91: BENJAMINE
H92: 61253 | I92: LOISON | J92: Elsa | K92: F | L92: 2006-03-31 | N92: 612 | O92: BENJAMINE
H93: 61257 | I93: PAKIRCHY | J93: Marissa | K93: F | L93: 2005-05-20 | N93: 612 | O93: BENJAMINE
H94: 60753 | I94: BEGUE | J94: Séréna | K94: F | L94: 2005-05-20 | N94: 607 | O94: BENJAMINE
H95: 60457 | I95: LAMBLADIERE | J95: Alicia | K95: F | L95: 2005-04-15 | N95: 604 | O95: BENJAMINE
H96: 60854 | I96: BOISEDU | J96: Anais | K96: F | L96: 2005-12-07 | N96: 608 | O96: BENJAMINE
H97: 10610 | I97: PONAPIN | J97: Jessie | N97: 610 | O97: PARRAINAGE
H98: 60452 | I98: DALLEAU | J98: Aurélie | K98: F | L98: 2006-02-25 | N98: 604 | O98: BENJAMINE
H99: 60754 | I99: BOYER | J99: Océane | K99: F | L99: 2006-02-27 | N99: 607 | O99: BENJAMINE
H100: 61254 | I100: MARTIN - TANDRAYEN | J100: Andjanie | K100: F | L100: 2006-11-29 | N100: 612 | O100: BENJAMINE
H101: 61059 | I101: LESTE | J101: Kayliah | K101: F | L101: 2006-09-16 | N101: 610 | O101: BENJAMINE
H102: 60558 | I102: LATCHIMY | J102: Abigaël | K102: F | L102: 2006-09-14 | N102: 605 | O102: BENJAMINE
H103: 60654 | I103: GANNE | J103: Eleanna | K103: F | L103: 2006-06-13 | N103: 606 | O103: BENJAMINE
H104: 60954 | I104: FENELON | J104: Chloé | K104: F | L104: 2006-09-07 | N104: 609 | O104: BENJAMINE
H105: 61157 | I105: JANAC | J105: Noëllia | K105: F | L105: 2006-09-07 | N105: 611 | O105: BENJAMINE
H106: 60357 | I106: GAILLAC | J106: Jénaie | K106: F | L106: 2006-08-02 | N106: 603 | O106: BENJAMINE
H107: 60760 | I107: FELIX | J107: Kiérane | K107: F | L107: 2006-04-09 | N107: 607 | O107: BENJAMINE
H108: 60757 | I108: DEBY | J108: Flora | K108: F | L108: 2006-08-19 | N108: 607 | O108: BENJAMINE
H109: 60655 | I109: GOVINDIN | J109: Annaëlle | K109: F | L109: 2006-09-09 | N109: 606 | O109: BENJAMINE
H110: 61255 | I110: MOUHIDDINE | J110: Miroiya | K110: F | L110: 2005-04-23 | N110: 612 | O110: BENJAMINE
H111: 60152 | I111: GRONDIN | J111: Audrey | K111: F | L111: 2005-11-13 | N111: 601 | O111: BENJAMINE
H112: 60352 | I112: BOYER | J112: Laurianne | K112: F | L112: 2006-09-23 | N112: 603 | O112: BENJAMINE
H113: 60557 | I113: JEAN- BAPTISTE | J113: Maëva | K113: F | L113: 2006-01-12 | N113: 605 | O113: BENJAMINE
H114: 60561 | I114: NDAVA | J114: Salama | K114: F | L114: 2006-09-27 | N114: 605 | O114: BENJAMINE
H115: 61161 | I115: RODES | J115: Alana | K115: F | L115: 2006-09-14 | N115: 611 | O115: BENJAMINE
H116: 60904 | I116: CONJAN | J116: Krishnaradja | K116: M | L116: 2006-10-14 | N116: 609 | O116: BENJAMIN
H117: 60808 | I117: SENY-COUTY | J117: Syven | K117: M | L117: 2006-12-24 | N117: 608 | O117: BENJAMIN
H118: 60905 | I118: FELIX | J118: Evan | K118: M | L118: 2006-12-31 | N118: 609 | O118: BENJAMIN
H119: 60601 | I119: BEGUE | J119: Enzo | K119: M | L119: 2006-02-19 | N119: 606 | O119: BENJAMIN
H120: 60705 | I120: MAHANO | J120: Giovani | K120: M | L120: 2004-10-29 | M120: ULIS | N120: 607 | O120: MINIME
H121: 60107 | I121: SINALATCHIMY | J121: Lucas | K121: M | L121: 2006-04-14 | N121: 601 | O121: BENJAMIN
H122: 60203 | I122: DJANFFARI | J122: El Habibou | K122: M | L122: 2005-05-10 | N122: 602 | O122: BENJAMIN
H123: 60511 | I123: MOIRABOU | J123: Kévin | K123: M | L123: 2006-08-11 | N123: 605 | O123: BENJAMIN
H124: 60311 | I124: TAFA | J124: Gaël | K124: M | L124: 2006-03-09 | N124: 603 | O124: BENJAMIN
H125: 60505 | I125: DEVILLE | J125: Quentin | K125: M | L125: 2006-07-11 | N125: 605 | O125: BENJAMIN
H126: 61213 | I126: PLANTE | J126: Kendjee | K126: M | L126: 2005-05-23 | N126: 612 | O126: BENJAMIN
H127: 60502 | I127: AROULAPIN | J127: Kyllian | K127: M | L127: 2006-07-25 | N127: 605 | O127: BENJAMIN
H128: 60403 | I128: ANQUIBOU | J128: Erwan | K128: M | L128: 2006-12-19 | N128: 604 | O128: BENJAMIN
H129: 60711 | I129: THIONVILLE | J129: Enzo | K129: M | L129: 2006-08-18 | N129: 607 | O129: BENJAMIN
H130: 60701 | I130: IBRAHIME | J130: Ambdillah | K130: M | L130: 2006-12-02 | N130: 607 | O130: BENJAMIN
H131: 60409 | I131: LESTE | J131: Enzo | K131: M | L131: 2006-04-08 | N131: 604 | O131: BENJAMIN
H132: 60903 | I132: BANCALIN | J132: Djanaël | K132: M | L132: 2006-01-09 | N132: 609 | O132: BENJAMIN
H133: 60507 | I133: FOUSSANE | J133: Romain | K133: M | L133: 2006-06-08 | N133: 605 | O133: BENJAMIN
H134: 60509 | I134: MBINGA | J134: Ayache | K134: M | L134: 2006-12-06 | N134: 605 | O134: BENJAMIN
H135: 60704 | I135: LESTE | J135: Miguel | K135: M | L135: 2006-02-10 | N135: 607 | O135: BENJAMIN
H136: 61209 | I136: CREPU | J136: Kyan | K136: M | L136: 2006-03-28 | N136: 612 | O136: BENJAMIN
H137: 61203 | I137: ARMOET | J137: Evan | K137: M | L137: 2006-06-30 | N137: 612 | O137: BENJAMIN
H138: 60411 | I138: REVASK-RABOULA | J138: Emerick | K138: M | L138: 2006-05-31 | N138: 604 | O138: BENJAMIN
H139: 60508 | I139: LESTE | J139: Pascal | K139: M | L139: 2006-01-30 | N139: 605 | O139: BENJAMIN
H140: 60809 | I140: VAÏTINADAPOULLE | J140: Noah | K140: M | L140: 2005-04-22 | N140: 608 | O140: BENJAMIN
H141: 60902 | I141: ARMOUGOM AYNOU | J141: Matéo | K141: M | L141: 2006-06-16 | N141: 609 | O141: BENJAMIN
H142: 61004 | I142: CERNOT | J142: Henson | K142: M | L142: 2006-04-08 | N142: 610 | O142: BENJAMIN
H143: 61103 | I143: MARTIAL | J143: Ulrich | K143: M | L143: 2006-11-29 | N143: 611 | O143: BENJAMIN
H144: 60707 | I144: PAYET | J144: Evan | K144: M | L144: 2006-11-29 | N144: 607 | O144: BENJAMIN
H145: 60912 | I145: YAYA TOLSY | J145: Alexandre | K145: M | L145: 2006-06-15 | N145: 609 | O145: BENJAMIN
H146: 60907 | I146: IMAZOUTE-ISSIMA | J146: Joachim | K146: M | L146: 2006-07-09 | N146: 609 | O146: BENJAMIN
H147: 61003 | I147: CATEMA | J147: Liévan | K147: M | L147: 2006-08-30 | N147: 610 | O147: BENJAMIN
H148: 61005 | I148: CLAIN | J148: Logan | K148: M | L148: 2006-06-23 | N148: 610 | O148: BENJAMIN
H149: 61201 | I149: AMIRBACASSE MOHADI | J149: Emerick | K149: M | L149: 2006-07-23 | N149: 612 | O149: BENJAMIN
H150: 10001 | I150: TECHER | J150: Joshua | K150: M | N150: CRESSONNIE | O150: PARENT
H151: 61106 | I151: PAYET | J151: Kérian | K151: M | L151: 2005-08-25 | N151: 611 | O151: BENJAMIN
H152: 60503 | I152: BEN AHAMED | J152: Fadel | K152: M | L152: 2005-11-27 | N152: 605 | O152: BENJAMIN
H153: 60908 | I153: LEBON | J153: Kyllian | K153: M | L153: 2006-08-25 | N153: 609 | O153: BENJAMIN
H154: 60510 | I154: MOHAMED | J154: Kayed | K154: M | L154: 2005-03-28 | M154: ULIS | N154: 605 | O154: BENJAMIN
H155: 61212 | I155: PERRAULT | J155: Davy | K155: M | L155: 2006-11-22 | N155: 612 | O155: BENJAMIN
H156: 60301 | I156: BAËTI | J156: Rafaël | K156: M | L156: 2006-11-22 | N156: 603 | O156: BENJAMIN
H157: 61108 | I157: PROVENCHERE | J157: Nicolas | K157: M | L157: 2007-01-26 | N157: 611 | O157: BENJAMIN
H158: 60303 | I158: CASIMIR | J158: Yannick | K158: M | L158: 2006-07-13 | N158: 603 | O158: BENJAMIN
H159: 60108 | I159: TAVERNIER | J159: Jordan | K159: M | L159: 2006-09-20 | N159: 601 | O159: BENJAMIN
H160: 60101 | I160: ALI | J160: Jovani | K160: M | L160: 2005-11-22 | N160: 601 | O160: BENJAMIN
H161: 60307 | I161: M'DOIHOMA | J161: David | K161: M | L161: 2006-05-29 | N161: 603 | O161: BENJAMIN
H162: 60512 | I162: VINGUETAMA-PERIANAGOM | J162: Raoul | K162: M | L162: 2006-09-20 | N162: 605 | O162: BENJAMIN
H163: 60611 | I163: THIANCOURT | J163: Théo | K163: M | L163: 2006-06-13 | N163: 606 | O163: BENJAMIN
H164: 60608 | I164: PAPAMA-COUTIAMA | J164: Mathias | K164: M | L164: 2006-03-01 | N164: 606 | O164: BENJAMIN
H165: 60806 | I165: MAILLOT | J165: Evan | K165: M | L165: 2006-06-19 | N165: 608 | O165: BENJAMIN
H166: 60657 | I166: MOUSSA ALI | J166: Hamsa | K166: F | L166: 2005-02-04 | N166: 606 | O166: BENJAMINE
H167: 60607 | I167: LEPERLIER | J167: Kalahan | K167: M | L167: 2006-10-04 | N167: 606 | O167: BENJAMIN
H168: 60103 | I168: MATEYA | J168: Dylan | K168: M | L168: 2005-10-17 | N168: 601 | O168: BENJAMIN
H169: 60803 | I169: DALLEAU | J169: Evan | K169: M | L169: 2006-05-05 | N169: 608 | O169: BENJAMIN
H170: 60302 | I170: BRIGY-CATRONIA | J170: Kéran | K170: M | L170: 2006-03-11 | N170: 603 | O170: BENJAMIN
H171: 60906 | I171: GENTAZ | J171: Mathéo | K171: M | L171: 2006-12-22 | N171: 609 | O171: BENJAMIN
H172: 60110 | I172: TECHER | J172: Roman | K172: M | L172: 2005-01-15 | N172: 601 | O172: BENJAMIN
H173: 60609 | I173: PARAVEMAN | J173: Lenny | K173: M | L173: 2006-08-21 | N173: 606 | O173: BENJAMIN
H174: 61211 | I174: MALET | J174: Quentin | K174: M | L174: 2006-04-21 | N174: 612 | O174: BENJAMIN
H175: 60310 | I175: ROMELY | J175: Warren | K175: M | L175: 2006-09-20 | N175: 603 | O175: BENJAMIN
H176: 60604 | I176: GRONDIN | J176: Yohan | K176: M | L176: 2006-04-29 | N176: 606 | O176: BENJAMIN
H177: 60804 | I177: DOUYERE | J177: Yvann | K177: M | L177: 2005-02-28 | N177: 608 | O177: BENJAMIN
H178: 10003 | I178: MOHAMED | J178: Youssouf | K178: M | N178: 601 | O178: PARENT
H179: 61110 | I179: SINAN | J179: Rohann | K179: M | L179: 2005-09-14 | N179: 611 | O179: BENJAMIN
H180: 61101 | I180: BREZE | J180: Lucas | K180: M | L180: 2006-04-13 | N180: 611 | O180: BENJAMIN
H181: 61111 | I181: SOILIHI | J181: Johan | K181: M | L181: 2005-11-17 | N181: 611 | O181: BENJAMIN
H182: 60306 | I182: GOURVILLE | J182: Hosman | K182: M | L182: 2006-11-17 | N182: 603 | O182: BENJAMIN
H183: 60910 | I183: PERIANAYAGOM | J183: Thomas | K183: M | L183: 2006-02-05 | N183: 609 | O183: BENJAMIN
H184: 60901 | I184: ADOLPHE--VENEROSY | J184: Grégory | K184: M | L184: 2006-08-25 | N184: 609 | O184: BENJAMIN
H185: 60911 | I185: SAVRIAMA | J185: Lucas | K185: M | L185: 2006-09-22 | N185: 609 | O185: BENJAMIN
H186: 60909 | I186: MAILLOT | J186: Lucas | K186: M | L186: 2006-02-10 | N186: 609 | O186: BENJAMIN
H187: 61007 | I187: GRONDIN | J187: Alexandre | K187: M | L187: 2006-01-24 | N187: 610 | O187: BENJAMIN
H188: 60304 | I188: COLI-JUN-ONG | J188: Wilson | K188: M | L188: 2006-08-23 | N188: 603 | O188: BENJAMIN
H189: 61105 | I189: NARASSAMY VIRAMA | J189: Hugo | K189: M | L189: 2006-10-08 | N189: 611 | O189: BENJAMIN
H190: 61001 | I190: APPAVOU | J190: Maxence | K190: M | L190: 2006-10-06 | N190: 610 | O190: BENJAMIN
H191: 61006 | I191: COTAYA | J191: Raphael | K191: M | L191: 2006-04-07 | N191: 610 | O191: BENJAMIN
H192: 60412 | I192: ROBERT | J192: Lucas | K192: M | L192: 2006-10-08 | N192: 604 | O192: BENJAMIN
H193: 60706 | I193: MCHINDRA | J193: Ambdi | K193: M | L193: 2005-05-25 | N193: 607 | O193: BENJAMIN
H194: 60305 | I194: DIJOUX | J194: Thomas | K194: M | L194: 2006-01-07 | N194: 603 | O194: BENJAMIN
H195: 60207 | I195: IBRAHIM | J195: Ayad-Ibn-Djadi | K195: M | L195: 2005-01-06 | N195: 602 | O195: BENJAMIN
H196: 60106 | I196: ROMON | J196: Mattheo | K196: M | L196: 2005-06-22 | N196: 601 | O196: BENJAMIN
H197: 60104 | I197: MOEGNE | J197: Youlhadje | K197: M | L197: 2005-06-19 | N197: 601 | O197: BENJAMIN
H198: 60506 | I198: DOUYERE | J198: Roman | K198: M | L198: 2006-06-04 | N198: 605 | O198: BENJAMIN
H199: 61208 | I199: BOYER | J199: Lucas | K199: M | L199: 2006-02-22 | N199: 612 | O199: BENJAMIN
H200: 60404 | I200: BANCALIN | J200: Benjy | K200: M | L200: 2005-05-09 | N200: 604 | O200: BENJAMIN
... 653 more rows

Sheet Qualifiés Cross District
A4: BENJAMINES | G4: BENJAMINES
A6: ANTIER | B6: Britanie | C6: 2005-09-26 | D6: 510 | G6: =A6 -> ANTIER | H6: =B6 -> Britanie | I6: =D6 -> 510
A7: NIACAVERE | B7: Prudence | C7: 2005-08-15 | D7: 508 | G7: =A7 -> NIACAVERE | H7: =B7 -> Prudence | I7: =D7 -> 508
A8: ISSOUFI | B8: Saouda | C8: 2005-10-07 | D8: 503 | G8: =A8 -> ISSOUFI | H8: =B8 -> Saouda | I8: =D8 -> 503
A9: MANGATA | B9: Kavindra | C9: 2005-07-04 | D9: 503 | G9: =A9 -> MANGATA | H9: =B9 -> Kavindra | I9: =D9 -> 503
A10: ITEMA | B10: Emmy | C10: 2005-12-14 | D10: 509 | G10: =A10 -> ITEMA | H10: =B10 -> Emmy | I10: =D10 -> 509
A11: GOSSARD | B11: Marie-Loena | C11: 2006-06-22 | D11: 503 | G11: =A11 -> GOSSARD | H11: =B11 -> Marie-Loena | I11: =D11 -> 503
A12: ADEKALOM | B12: Naïma | C12: 2005-03-13 | D12: 511 | G12: =A12 -> ADEKALOM | H12: =B12 -> Naïma | I12: =D12 -> 511
A13: AUGUSTE | B13: Myriam | C13: 2006-12-23 | D13: 611 | G13: =A13 -> AUGUSTE | H13: =B13 -> Myriam | I13: =D13 -> 611
A14: THELAÏRE | B14: Lucie | C14: 2006-01-27 | D14: 612 | G14: =A14 -> THELAÏRE | H14: =B14 -> Lucie | I14: =D14 -> 612
A15: MHADJI | B15: Tamouni | C15: 2006-02-27 | D15: 610 | G15: =A15 -> MHADJI | H15: =B15 -> Tamouni | I15: =D15 -> 610
A16: FAUSTIN | B16: Anna | C16: 2006-12-30 | D16: 609 | G16: =A16 -> FAUSTIN | H16: =B16 -> Anna | I16: =D16 -> 609
A19: BENJAMINS | G19: BENJAMINS
A21: RAYAPIN | B21: Etienne | C21: 2005-08-23 | D21: 512 | G21: =A21 -> RAYAPIN | H21: =B21 -> Etienne | I21: =D21 -> 512
A22: FETISOI-MIHA | B22: Johanny | C22: 2005-10-26 | D22: 505 | G22: =A22 -> FETISOI-MIHA | H22: =B22 -> Johanny | I22: =D22 -> 505
A23: PICARD | B23: Kirane | C23: 2005-02-19 | D23: 503 | G23: =A23 -> PICARD | H23: =B23 -> Kirane | I23: =D23 -> 503
A24: HAFIDHOU | B24: Mousslime | C24: 2005-09-22 | D24: 505 | G24: =A24 -> HAFIDHOU | H24: =B24 -> Mousslime | I24: =D24 -> 505
A25: MANDER | B25: Zakary | C25: 2005-11-26 | D25: 510 | G25: =A25 -> MANDER | H25: =B25 -> Zakary | I25: =D25 -> 510
A26: MASSON | B26: Noah | C26: 2005-12-23 | D26: 512 | G26: =A26 -> MASSON | H26: =B26 -> Noah | I26: =D26 -> 512
A27: CONJAN | B27: Krishnaradja | C27: 2006-10-14 | D27: 609 | G27: =A27 -> CONJAN | H27: =B27 -> Krishnaradja | I27: =D27 -> 609
A28: SENY-COUTY | B28: Syven | C28: 2006-12-24 | D28: 608 | G28: =A28 -> SENY-COUTY | H28: =B28 -> Syven | I28: =D28 -> 608
A29: FELIX | B29: Evan | C29: 2006-12-31 | D29: 609 | G29: =A29 -> FELIX | H29: =B29 -> Evan | I29: =D29 -> 609
A30: BEGUE | B30: Enzo | C30: 2006-02-19 | D30: 606 | G30: =A30 -> BEGUE | H30: =B30 -> Enzo | I30: =D30 -> 606
A34: MINIMES FILLES | G34: MINIMES FILLES
A36: GANNE | B36: Ophélie | C36: 2003-06-26 | D36: 311 | G36: =A36 -> GANNE | H36: =B36 -> Ophélie | I36: =D36 -> 311
A37: THIONVILLE | B37: Aurore | C37: 2003-10-06 | D37: 311 | G37: =A37 -> THIONVILLE | H37: =B37 -> Aurore | I37: =D37 -> 311
A38: WELMANT | B38: Anelsia | C38: 2003-01-16 | D38: 303 | G38: =A38 -> WELMANT | H38: =B38 -> Anelsia | I38: =D38 -> 303
A39: JEANSON | B39: Maëva | C39: 2003-09-22 | D39: 311 | G39: =A39 -> JEANSON | H39: =B39 -> Maëva | I39: =D39 -> 311
A40: PAYET | B40: Aurore | C40: 2003-01-14 | D40: 309 | G40: =A40 -> PAYET | H40: =B40 -> Aurore | I40: =D40 -> 309
A41: SALEDY | B41: Emeline | C41: 2003-04-09 | D41: 311 | G41: =A41 -> SALEDY | H41: =B41 -> Emeline | I41: =D41 -> 311
A42: PAYET | B42: Elodie | C42: 2004-10-16 | D42: 412 | G42: =A42 -> PAYET | H42: =B42 -> Elodie | I42: =D42 -> 412
A43: FONTAINE | B43: Gabrielle | C43: 2004-01-04 | D43: 407 | G43: =A43 -> FONTAINE | H43: =B43 -> Gabrielle | I43: =D43 -> 407
A44: COUTURIER | B44: Chloe | C44: 2004-05-21 | D44: 412 | G44: =A44 -> COUTURIER | H44: =B44 -> Chloe | I44: =D44 -> 412
A45: RICHARD | B45: Louna | C45: 2004-09-03 | D45: 410 | G45: =A45 -> RICHARD | H45: =B45 -> Louna | I45: =D45 -> 410
A46: SAID | B46: Ramlati | C46: 2004-09-05 | D46: 412 | G46: =A46 -> SAID | H46: =B46 -> Ramlati | I46: =D46 -> 412
A47: NAÏLANI | B47: Faoula | C47: 2004-07-13 | D47: 403 | G47: =A47 -> NAÏLANI | H47: =B47 -> Faoula | I47: =D47 -> 403
A49: MINIMES GARCONS | G49: MINIMES GARCONS
A51: PALMISEN | B51: Kenyl | C51: 2003-07-21 | D51: 311 | G51: =A51 -> PALMISEN | H51: =B51 -> Kenyl | I51: =D51 -> 311
A52: ANTIMENE | B52: Noe | C52: 2003-06-17 | D52: 307 | G52: =A52 -> ANTIMENE | H52: =B52 -> Noe | I52: =D52 -> 307
A53: MAILLOT | B53: Davy | C53: 2003-04-11 | D53: 307 | G53: =A53 -> MAILLOT | H53: =B53 -> Davy | I53: =D53 -> 307
A54: MERA | B54: Yoan | C54: 2003-08-09 | D54: 308 | G54: =A54 -> MERA | H54: =B54 -> Yoan | I54: =D54 -> 308
A55: AHMED OMAR | B55: Alane | C55: 2003-09-20 | D55: 305 | G55: =A55 -> AHMED OMAR | H55: =B55 -> Alane | I55: =D55 -> 305
A56: MAHAVE | B56: Kenny | C56: 2003-03-02 | D56: 305 | G56: =A56 -> MAHAVE | H56: =B56 -> Kenny | I56: =D56 -> 305
A57: GANNE | B57: Yoni | C57: 2004-02-05 | D57: 408 | G57: =A57 -> GANNE | H57: =B57 -> Yoni | I57: =D57 -> 408
A58: ABDOU | B58: Darouèche | C58: 2004-02-25 | D58: 405 | G58: =A58 -> ABDOU | H58: =B58 -> Darouèche | I58: =D58 -> 405
A59: BOURHANI | B59: Djadirou | C59: 2003-01-13 | D59: 402 | G59: =A59 -> BOURHANI | H59: =B59 -> Djadirou | I59: =D59 -> 402
A60: FOUSSANE | B60: Guillaume | C60: 2004-05-28 | D60: 409 | G60: =A60 -> FOUSSANE | H60: =B60 -> Guillaume | I60: =D60 -> 409
A61: BEAUPATRE | B61: Killian | C61: 2004-06-25 | D61: 503 | G61: =A61 -> BEAUPATRE | H61: =B61 -> Killian | I61: =D61 -> 503
A62: MOUZIDALIFFA | B62: Yacer | C62: 2004-08-15 | D62: 502 | G62: =A62 -> MOUZIDALIFFA | H62: =B62 -> Yacer | I62: =D62 -> 502
A65: CADETS | G65: CADETS
A67: SAID | B67: Housséridine | C67: 2002-08-18 | D67: 302 | G67: =A67 -> SAID | H67: =B67 -> Housséridine | I67: =D67 -> 302
A68: DARKAOUI | B68: Daroussi | C68: 2002-02-25 | D68: 301 | G68: =A68 -> DARKAOUI | H68: =B68 -> Daroussi | I68: =D68 -> 301
A69: ROBERT | B69: Dylan | C69: 2002-11-28 | D69: 302 | G69: =A69 -> ROBERT | H69: =B69 -> Dylan | I69: =D69 -> 302
A70: CAZAL | B70: Yannick | C70: 2002-12-22 | D70: 306 | G70: =A70 -> CAZAL | H70: =B70 -> Yannick | I70: =D70 -> 306
A71: ADAME | B71: Ismaen | C71: 2002-06-18 | D71: 301 | G71: =A71 -> ADAME | H71: =B71 -> Ismaen | I71: =D71 -> 301

Sheet Importation (hidden)
B9: A faire :
C13: macro qualifiés cross district

Sheet Feuil3
A1: LISTE DES QUALIFIES POUR LE CROSS DU DISTRICT
A2: Mercredi 16 Novembre
A3: BRAS-PANON Rivière des Roches
B6: BENJAMINES
B8: ANTIER | C8: Britanie | D8: 610
B9: BOYER | C9: Chloe | D9: 510
B10: FILA | C10: Zoulaïka | D10: 601
B11: FONTAINE | C11: Gabrielle | D11: 507
B12: NAÏLANI | C12: Faoula | D12: 503
B13: NIACAVERE | C13: Prudence | D13: 607
B14: PAYET | C14: Lorianne | D14: 510
B15: RICHARD | C15: Louna | D15: 510
B16: SAID | C16: Ramlati | D16: 512
B17: VADAMALE | C17: Alyssia | D17: 507
B18: VIALA | C18: Marylou | D18: 510
B21: BENJAMINS
B23: ABDOU | C23: Darouèche | D23: 506
B24: BEAUPATRE | C24: Killian | D24: 603
B25: BOISEDU | C25: Nowan | D25: 603
B26: CLAIN | C26: Xavier | D26: 511
B27: FOUSSANE | C27: Guillaume | D27: 504
B28: GANNE | C28: Yoni | D28: 509
B29: GAUVIN | C29: Johnny | D29: 604
B30: IMARE | C30: Emrick | D30: 601
B31: IVA | C31: Kenny | D31: 512
B32: VALLES | C32: Pablo | D32: 512
B35: MINIMES FILLES
B37: ADEKALOM | C37: Angéline | D37: 308
B38: AMBOUDI | C38: Elyna | D38: 407
B39: AZOR | C39: Heloïse | D39: 310
B40: BOYER | C40: Anne-Gaëlle | D40: 309
B41: DALLEAU | C41: Gwenaelle | D41: 411
B42: FERRERE | C42: Angélique | D42: 507
B43: GANNE | C43: Ophélie | D43: 411
B44: JEANSON | C44: Maéva | D44: 411
B45: MOUSSA | C45: Samaita | D45: 401
B46: NASSURI | C46: Nadjima | D46: 401
B47: THIONVILLE | C47: Aurore | D47: 411
B48: WELMANT | C48: Anelsia | D48: 403
B51: MINIMES GARCONS
B53: AHMED OMAR | C53: Alane | D53: 405
B54: ALI IBRAHIM | C54: Mohamed | D54: 401
B55: AUGUSTE | C55: Thomas | D55: 310
B56: BETON | C56: Jean Noah | D56: 408
B57: CASIMIR | C57: Bryan | D57: 309
B58: ELPHEGE | C58: Florian | D58: 405
B59: KAROUMBATA | C59: Romain | D59: 305
B60: PALMISEN | C60: Kenyl | D60: 408
B61: PICARD | C61: Florent | D61: 307
B62: RIVIERE | C62: Yann | D62: 306
B63: ROBERT | C63: Dylan | D63: 402
B64: SERAPHINE | C64: Florian | D64: 304
B67: CADETS
B69: BOURLY | C69: Emmanuel | D69: 304
B70: CAZAMBO | C70: Evan | D70: 304
B71: MADI | C71: Toiriki | D71: 307
B72: ROBERT | C72: Thomas | D72: 307
B73: SENY-COUTY | C73: Stéphane | D73: 305
